Business Unit Description,Expense Code,Expense Code Description,GL Date,Document No,Invoice No,Invoiced Value,Supplier Name,Address Book No,Proclass Details Level 1,Thomson Classification Description
STRUCTURES                    ,8460,CONSULTANTS FEES              ,01/07/2013,3478549,12682,831.81,REDACTED PERSONAL DATA,565073,Unclassified Non Trade,OUT OF SCOPE FOR SIC MONITORIN
SHEFFIELD COMMUNITY NETWORK   ,9120,OTHER AGENCIES                ,01/07/2013,3478972,ERS INVOICE85908         ,6620.95,COMMUNITY MEDIA SOLUTIONS LIMITED       ,558337,Unclassified Trade,BROADCASTING SERVICES         
SHEFFIELD COMMUNITY NETWORK   ,9120,OTHER AGENCIES                ,01/07/2013,3478973,ERS INVOICE85909         ,3303.75,SERO CONSULTING LTD                     ,434360,Consultancy,BUSINESS & MANAGEMENT CONSULTA
COUNCIL HOMES NEW BUILD PROG  ,1141,PURCHASE OF BUILDINGS         ,01/07/2013,3478975,ERS INVOICE85911         ,1639575.00,ATHERTON GODFREY SOLICITORS             ,527436,Legal Services,SOLICITORS                    
CARE PROCEEDINGS (LEGAL FEES) ,8470,LEGAL FEES                    ,01/07/2013,3478977,ERS INVOICE85913         ,390.90,CARTER BROWN ASSOCIATES LTD             ,417243,Medical ,PSYCHOLOGISTS                 
CARE PROCEEDINGS (LEGAL FEES) ,8470,LEGAL FEES                    ,01/07/2013,3478980,ERS INVOICE85917         ,421.20,CARTER BROWN ASSOCIATES LTD             ,417243,Medical ,PSYCHOLOGISTS                 
CARE PROCEEDINGS (LEGAL FEES) ,8470,LEGAL FEES                    ,01/07/2013,3478981,ERS INVOICE85918         ,894.74,CARTER BROWN ASSOCIATES LTD             ,417243,Medical ,PSYCHOLOGISTS                 
CITY DEAL                     ,9120,OTHER AGENCIES                ,01/07/2013,3475022,SINV.27676               ,5391.00,CHESTERFIELD COLLEGE                    ,317687,Unclassified Non Trade,SCHOOLS & COLLEGES - FURTHER E
CITY DEAL                     ,9120,OTHER AGENCIES                ,01/07/2013,3475025,SINV.27677               ,5391.00,CHESTERFIELD COLLEGE                    ,317687,Unclassified Non Trade,SCHOOLS & COLLEGES - FURTHER E
"LIASON, DE-ESCALATION & GOV SE",8270,SUBSCRIPTIONS                 ,01/07/2013,3475666,13-058MG                 ,467.25,LEARNING POOL LIMITED                   ,535432,Education,E-LEARNING                    
PROVIDER CONTRACT AUG12-JUL13 ,9120,OTHER AGENCIES                ,01/07/2013,3478317,WCF12B035                ,565.00,WOODHOUSE & DISTRICT COMMUNITY FORUM    ,482835,Unclassified Non Trade,COMMUNITY PROJECTS            
CORPORATE PARENTING           ,9120,OTHER AGENCIES                ,01/07/2013,3478333,29229,30659.91,NATIONAL YOUTH ADVOCACY SERVICE         ,546945,Unclassified Non Trade,CHARITIES & VOLUNTARY ORGANISA
PARKHILL DEMOLITION SHM (STH) ,1143,COMPENSATION                  ,01/07/2013,3478989,ERS INVOICE85927         ,4700.00,REDACTED PERSONAL DATA,584498,Unclassified Non Trade,OUT OF SCOPE FOR SIC MONITORIN
PCASS DRUG SERVICES           ,8350,MISCELLANEOUS EXPENSES        ,01/07/2013,3470160,13742,1540.00,HOME HEALTH UK LTD                      ,583481,Unclassified Non Trade,PUBLIC HEALTH SUPPLIERS       
PCASS DRUG SERVICES           ,8350,MISCELLANEOUS EXPENSES        ,01/07/2013,3470161,13746,1181.75,HOME HEALTH UK LTD                      ,583481,Unclassified Non Trade,PUBLIC HEALTH SUPPLIERS       
PCASS DRUG SERVICES           ,8350,MISCELLANEOUS EXPENSES        ,01/07/2013,3470162,13928,1540.00,HOME HEALTH UK LTD                      ,583481,Unclassified Non Trade,PUBLIC HEALTH SUPPLIERS       
PCASS DRUG SERVICES           ,8350,MISCELLANEOUS EXPENSES        ,01/07/2013,3470165,13964,1181.75,HOME HEALTH UK LTD                      ,583481,Unclassified Non Trade,PUBLIC HEALTH SUPPLIERS       
PCASS DRUG SERVICES           ,8350,MISCELLANEOUS EXPENSES        ,01/07/2013,3470166,14150,770.00,HOME HEALTH UK LTD                      ,583481,Unclassified Non Trade,PUBLIC HEALTH SUPPLIERS       
GRENOSIDE GRANGE              ,6270,SERVICE / PFI UNITARY CHARGE  ,01/07/2013,3470487,2100079302,6717.00,SHEFFIELD CARE TRUST (SP)               ,366826,Unclassified Non Trade,CHARITIES & VOLUNTARY ORGANISA
SWIMMING DEVELOPMENT          ,6280,HIRE OF PREMISES              ,01/07/2013,3471221,3027441,6674.87,PONDS FORGE                             ,320223,Leisure Services,LEISURE & RECREATION CENTRES  
AQUATICS SQUADS               ,6280,HIRE OF PREMISES              ,01/07/2013,3471237,3027446,1402.40,PONDS FORGE                             ,320223,Leisure Services,LEISURE & RECREATION CENTRES  
CLAIMS                        ,8740,HIGHWAYS                      ,01/07/2013,3478987,ERS INVOICE85925         ,3450.00,REDACTED PERSONAL DATA,584677,Unclassified Non Trade,OUT OF SCOPE FOR SIC MONITORIN
DISCETIONARY HOUSING PAYMENTS ,9480,RENT ALLOWANCE BACS           ,01/07/2013,3478943,ERS INVOICE85872         ,284.70,REDACTED PERSONAL DATA,584346,Unclassified Non Trade,OUT OF SCOPE FOR SIC MONITORIN
DISCETIONARY HOUSING PAYMENTS ,9480,RENT ALLOWANCE BACS           ,01/07/2013,3478952,ERS INVOICE85881         ,372.84,WM GREGORY                              ,209574,Unclassified Trade,PROPERTY & ESTATE MANAGEMENT  
CARE PROCEEDINGS (LEGAL FEES) ,8470,LEGAL FEES                    ,01/07/2013,3478955,ERS INVOICE85884         ,933.04,CARTER BROWN ASSOCIATES LTD             ,417243,Medical ,PSYCHOLOGISTS                 
CARE PROCEEDINGS (LEGAL FEES) ,8470,LEGAL FEES                    ,01/07/2013,3478956,ERS INVOICE85885         ,267.14,CARTER BROWN ASSOCIATES LTD             ,417243,Medical ,PSYCHOLOGISTS                 
CLAIMS                        ,8740,HIGHWAYS                      ,01/07/2013,3478959,ERS INVOICE85888         ,480.00,DEPARTMENT FOR WORK & PENSIONS          ,326920,Unclassified Non Trade,CENTRAL GOVERNMENT            
CARE PROCEEDINGS (LEGAL FEES) ,8470,LEGAL FEES                    ,01/07/2013,3478960,ERS INVOICE85889         ,316.67,DR M LAXTON-KANE                        ,530523,Medical ,DOCTORS                       
VSP DELIVER                   ,9120,OTHER AGENCIES                ,01/07/2013,3478963,ERS INVOICE85893         ,1143.00,WHIRLOW HALL FARM TRUST LTD             ,318019,Unclassified Non Trade,CHARITIES & VOLUNTARY ORGANISA
VSP DELIVER                   ,9120,OTHER AGENCIES                ,01/07/2013,3478964,ERS INVOICE85894         ,2215.68,THE SHEFFIELD COLLEGE                   ,297611,Unclassified Non Trade,SCHOOLS & COLLEGES - FURTHER E
VSP DELIVER                   ,9120,OTHER AGENCIES                ,01/07/2013,3478965,ERS INVOICE85896         ,635.00,WHIRLOW HALL FARM TRUST LTD             ,318019,Unclassified Non Trade,CHARITIES & VOLUNTARY ORGANISA
VSP DELIVER                   ,9140,PRIVATE CONTRACTORS           ,01/07/2013,3478966,ERS INVOICE85897         ,750.00,A MIND APART THEATRE COMPANY LTD        ,508180,Education,DRAMA SCHOOLS                 
VSP DELIVER                   ,9140,PRIVATE CONTRACTORS           ,01/07/2013,3478967,ERS INVOICE85898         ,1492.25,NACRO                                   ,297575,Unclassified Non Trade,CHARITIES & VOLUNTARY ORGANISA
VSP DELIVER                   ,9140,PRIVATE CONTRACTORS           ,01/07/2013,3478968,ERS INVOICE85900         ,2159.00,SHEFFIELD TEACHING HOSPITALS NHS TRUST  ,299675,Unclassified Non Trade,HOSPITALS - POST MORTEM       
VSP DELIVER                   ,9140,PRIVATE CONTRACTORS           ,01/07/2013,3478969,ERS INVOICE85901         ,2063.32,THE SHEFFIELD COLLEGE                   ,297611,Unclassified Non Trade,SCHOOLS & COLLEGES - FURTHER E
SHEFFIELD COMMUNITY NETWORK   ,9120,OTHER AGENCIES                ,01/07/2013,3478970,ERS INVOICE85906         ,7286.56,CULTURAL INDUSTRIES QUARTER AGENCY      ,318230,Unclassified Non Trade,DEVELOPMENT AGENCIES          
SHEFFIELD COMMUNITY NETWORK   ,9120,OTHER AGENCIES                ,01/07/2013,3478971,ERS INVOICE85907         ,3722.13,COMMUNITY MEDIA ASSOCIATION             ,562477,Unclassified Non Trade,COMMUNITY PROJECTS            
DISCETIONARY HOUSING PAYMENTS ,9480,RENT ALLOWANCE BACS           ,01/07/2013,3479236,ERS INVOICE85938         ,596.60,MR TITUS ABAYOMI                        ,538681,Unclassified Trade,LETTING AGENTS                
DISABLED GRANTS               ,1165,NC&A OTHER                    ,01/07/2013,3479241,ERS INVOICE85944         ,2802.00,ABLE BATHING & BUILDING CONTRACTORS     ,503765,Construction,BUILDERS                      
DISCETIONARY HOUSING PAYMENTS ,9480,RENT ALLOWANCE BACS           ,01/07/2013,3479242,ERS INVOICE85945         ,276.90,REDACTED PERSONAL DATA,584589,Unclassified Non Trade,OUT OF SCOPE FOR SIC MONITORIN
DISCETIONARY HOUSING PAYMENTS ,9480,RENT ALLOWANCE BACS           ,01/07/2013,3479245,ERS INVOICE85948         ,603.20,REDACTED PERSONAL DATA,584585,Unclassified Non Trade,OUT OF SCOPE FOR SIC MONITORIN
DISCETIONARY HOUSING PAYMENTS ,9480,RENT ALLOWANCE BACS           ,01/07/2013,3479257,ERS INVOICE85960         ,284.31,SOUTH YORKSHIRE HOUSING                 ,564831,Social Community Care,CAREFIRST DIRECT PAYMENTS     
DISCETIONARY HOUSING PAYMENTS ,9480,RENT ALLOWANCE BACS           ,01/07/2013,3479258,ERS INVOICE85961         ,312.78,SOUTH YORKSHIRE HOUSING                 ,564831,Social Community Care,CAREFIRST DIRECT PAYMENTS     
DISABLED GRANTS               ,1165,NC&A OTHER                    ,01/07/2013,3479262,ERS INVOICE85965         ,3909.00,STANNAH LIFT SERVICES LTD.              ,208625,Social Community Care,STAIRLIFTS - MNFRS & INSTALLER
DISCETIONARY HOUSING PAYMENTS ,9480,RENT ALLOWANCE BACS           ,01/07/2013,3479265,ERS INVOICE85968         ,758.20,REDACTED PERSONAL DATA,583315,Unclassified Non Trade,OUT OF SCOPE FOR SIC MONITORIN
VSP DELIVER                   ,9140,PRIVATE CONTRACTORS           ,01/07/2013,3479266,ERS INVOICE85969         ,1125.00,THE SHEFFIELD COLLEGE                   ,297611,Unclassified Non Trade,SCHOOLS & COLLEGES - FURTHER E
VSP DELIVER                   ,9140,PRIVATE CONTRACTORS           ,01/07/2013,3479267,ERS INVOICE85970         ,1968.75,THE SHARKS                              ,540033,Leisure Services,SPORTS CLUBS & ASSOCIATIONS   
DISCETIONARY HOUSING PAYMENTS ,9480,RENT ALLOWANCE BACS           ,01/07/2013,3479269,ERS INVOICE85972         ,387.79,REDACTED PERSONAL DATA,584653,Unclassified Non Trade,OUT OF SCOPE FOR SIC MONITORIN
DISCETIONARY HOUSING PAYMENTS ,9480,RENT ALLOWANCE BACS           ,01/07/2013,3479271,ERS INVOICE85974         ,627.90,REDACTED PERSONAL DATA,584643,Unclassified Non Trade,OUT OF SCOPE FOR SIC MONITORIN
VSP DELIVER                   ,9140,PRIVATE CONTRACTORS           ,01/07/2013,3479272,ERS INVOICE85975         ,1984.38,MANOR AND CASTLE DEVELOPMENT TRUST      ,486881,Unclassified Non Trade,YOUTH ORGANISATIONS & CENTRES 
VSP DELIVER                   ,9120,OTHER AGENCIES                ,01/07/2013,3479273,ERS INVOICE85976         ,2120.07,THE SHEFFIELD COLLEGE                   ,297611,Unclassified Non Trade,SCHOOLS & COLLEGES - FURTHER E
DISCETIONARY HOUSING PAYMENTS ,9480,RENT ALLOWANCE BACS           ,01/07/2013,3479278,ERS INVOICE85981         ,500.00,REDACTED PERSONAL DATA,578564,Unclassified Non Trade,OUT OF SCOPE FOR SIC MONITORIN
DISCETIONARY HOUSING PAYMENTS ,9480,RENT ALLOWANCE BACS           ,01/07/2013,3479360,ERS INVOICE86063         ,261.95,YORKSHIRE METROPOLITAN H A LTD          ,447611,Unclassified Non Trade,"HOUSING ASSOCIATIONS, SOCIETIE"
DISCETIONARY HOUSING PAYMENTS ,9480,RENT ALLOWANCE BACS           ,01/07/2013,3479362,ERS INVOICE86065         ,269.75,GUINNESS NORTHERN COUNTIES HOUSING      ,504343,Unclassified Non Trade,"HOUSING ASSOCIATIONS, SOCIETIE"
DISCETIONARY HOUSING PAYMENTS ,9480,RENT ALLOWANCE BACS           ,01/07/2013,3479363,ERS INVOICE86066         ,284.96,REDACTED PERSONAL DATA,562967,Unclassified Non Trade,OUT OF SCOPE FOR SIC MONITORIN
DISCETIONARY HOUSING PAYMENTS ,9480,RENT ALLOWANCE BACS           ,01/07/2013,3479364,ERS INVOICE86067         ,312.52,SOUTH YORKSHIRE HOUSING                 ,564831,Social Community Care,CAREFIRST DIRECT PAYMENTS     
DISCETIONARY HOUSING PAYMENTS ,9480,RENT ALLOWANCE BACS           ,01/07/2013,3479365,ERS INVOICE86068         ,258.36,REDACTED PERSONAL DATA,583418,Unclassified Non Trade,OUT OF SCOPE FOR SIC MONITORIN
DISCETIONARY HOUSING PAYMENTS ,9480,RENT ALLOWANCE BACS           ,01/07/2013,3479366,ERS INVOICE86069         ,299.91,REDACTED PERSONAL DATA,578563,Unclassified Non Trade,OUT OF SCOPE FOR SIC MONITORIN
DISCETIONARY HOUSING PAYMENTS ,9480,RENT ALLOWANCE BACS           ,01/07/2013,3479367,ERS INVOICE86070         ,272.74,ACIS GROUP LTD                          ,463082,Unclassified Non Trade,CHARITIES & VOLUNTARY ORGANISA
BUSINESS DEVELOPMENT          ,8460,CONSULTANTS FEES              ,01/07/2013,3367200,3823,3720.00,"KNIGHT, KAVANAGH & PAGE                 ",568426,Consultancy,BUSINESS & MANAGEMENT CONSULTA
INDEPENDENT PLACEMENTS        ,9310,EDUCATIONAL OR JOINT PLACEMENT,01/07/2013,3395995,SIN000107                ,17284.85,BRANTWOOD SPECIALIST SCHOOL             ,559883,Unclassified Non Trade,CHARITIES & VOLUNTARY ORGANISA
INDEPENDENT PLACEMENTS        ,9310,EDUCATIONAL OR JOINT PLACEMENT,01/07/2013,3402664,SIN000110                ,20394.00,BRANTWOOD SPECIALIST SCHOOL             ,559883,Unclassified Non Trade,CHARITIES & VOLUNTARY ORGANISA
72 GREGG HOUSE ROAD           ,6210,RENTS                         ,01/07/2013,3453376,SHA018560                ,341.20,SANCTUARY GROUP                         ,351140,Unclassified Non Trade,"HOUSING ASSOCIATIONS, SOCIETIE"
COMMERCIAL ESTATE             ,8460,CONSULTANTS FEES              ,01/07/2013,3461060,SLINV2/00048326          ,2770.00,IOM CONSULTING LTD                      ,442538,Health and Safety,SAFETY CONSULTANTS            
SAFEGUARDING CHILDREN SERVICE ,8410,GENERAL OFFICE EXPENSES       ,01/07/2013,3462471,1174,7333.00,SHEFFIELD INFORMATION LINK              ,332794,Human Resources,INFORMATION SERVICES          
72 GREGG HOUSE ROAD           ,6210,RENTS                         ,01/07/2013,3464284,SHA019020                ,341.20,SANCTUARY GROUP                         ,351140,Unclassified Non Trade,"HOUSING ASSOCIATIONS, SOCIETIE"
MOBILE CARETAKING             ,8060,MATERIALS AND SUPPLIES GENERAL,01/07/2013,3464393,3458,357.85,FLEETFIELD CHEMICAL CO LTD              ,204891,Cleaning and Janitorial,CLEANING MATERIALS & EQUIPMENT
PMY MAINT.ELEC - HALLAM PMY   ,1148,SURVEY COSTS                  ,01/07/2013,3464721,6997,1644.00,EURO ENVIRONMENTAL LTD                  ,399641,Construction,ASBESTOS SURVEYS & REMOVALS   
SAFEGUARDING CHILDREN SERVICE ,8410,GENERAL OFFICE EXPENSES       ,01/07/2013,3467171,1167,7333.00,SHEFFIELD INFORMATION LINK              ,332794,Human Resources,INFORMATION SERVICES          
ACCOMMODATION & DEVEL TEAM    ,8490,OTHER PROFESSIONAL FEES       ,01/07/2013,3467319,2100079295,3361.15,SHEFFIELD CARE TRUST (SP)               ,366826,Unclassified Non Trade,CHARITIES & VOLUNTARY ORGANISA
ACCOMMODATION & DEVEL TEAM    ,8490,OTHER PROFESSIONAL FEES       ,01/07/2013,3467320,2100079297,3623.60,SHEFFIELD CARE TRUST (SP)               ,366826,Unclassified Non Trade,CHARITIES & VOLUNTARY ORGANISA
SCC BALANCE SHEET             ,1540,PUBLIC SAFETY CONTROL ACCOUNT ,01/07/2013,3468261,22947,516.00,DEMEX LTD                               ,204333,Construction,DEMOLITION & DISMANTLING CONTR
PCASS DRUG SERVICES           ,8350,MISCELLANEOUS EXPENSES        ,01/07/2013,3470159,14318,4250.00,HOME HEALTH UK LTD                      ,583481,Unclassified Non Trade,PUBLIC HEALTH SUPPLIERS       
WATER POLO                    ,6280,HIRE OF PREMISES              ,01/07/2013,3471241,3027440,2273.60,PONDS FORGE                             ,320223,Leisure Services,LEISURE & RECREATION CENTRES  
HOLIDAY PROGRAMMES            ,8010,EQUIPMENT PURCHASE AND REPAIR ,01/07/2013,3471332,GS0000016811             ,510.56,YOUTH SPORT DIRECT LTD                  ,583085,Sports & Playground,SPORTS EQUIPMENT MNFRS & DISTR
STIMULATING ENTERPRISING ENVT ,7140,PUBLIC TRANSPORT COSTS        ,01/07/2013,3474642,01/4217765               ,495.18,CO-OPERATIVE TRAVEL MANAGEMENT          ,440689,Facilities Management,TRAVEL AGENTS & HOLIDAY COMPAN
PCASS DRUG SERVICES           ,8350,MISCELLANEOUS EXPENSES        ,01/07/2013,3474648,14441,770.00,HOME HEALTH UK LTD                      ,583481,Unclassified Non Trade,PUBLIC HEALTH SUPPLIERS       
TRAINING - BROCKWOOD          ,8440,FEE EXPENSES                  ,01/07/2013,3474673,802892549,345.00,CITY & GUILDS                           ,424267,Education,EXAMINATION BOARDS            
DIVING DEVELOPMENT            ,6280,HIRE OF PREMISES              ,01/07/2013,3474799,3027503,400.00,PONDS FORGE                             ,320223,Leisure Services,LEISURE & RECREATION CENTRES  
SWIMMING DEVELOPMENT          ,6280,HIRE OF PREMISES              ,01/07/2013,3474801,3027501,647.25,PONDS FORGE                             ,320223,Leisure Services,LEISURE & RECREATION CENTRES  
HANDSWORTH GRANGE             ,1161,NC&A MAIN CONTRACT            ,01/07/2013,3475002,1189,58237.36,SHEFFIELD LEP LTD                       ,482230,Unclassified Non Trade,LOCAL GOVERNMENT              
CITY DEAL                     ,9120,OTHER AGENCIES                ,01/07/2013,3475013,SFP/INV/NL480            ,5391.00,STAFFORCE PERSONNEL LIMITED             ,329315,Human Resources,EMPLOYMENT & RECRUITMENT AGENC
CITY DEAL                     ,9120,OTHER AGENCIES                ,01/07/2013,3475015,SFP/INV/NL479            ,5391.00,STAFFORCE PERSONNEL LIMITED             ,329315,Human Resources,EMPLOYMENT & RECRUITMENT AGENC
ASSET MANGEMENT               ,8440,FEE EXPENSES                  ,01/07/2013,3476030,INV118676                ,527.31,NATIONAL ENERGY SERVICES LIMITED        ,298519,Consultancy,ENERGY CONSERVATION CONSULTANT
ASSET MANGEMENT               ,8440,FEE EXPENSES                  ,01/07/2013,3476031,INV118390                ,933.32,NATIONAL ENERGY SERVICES LIMITED        ,298519,Consultancy,ENERGY CONSERVATION CONSULTANT
STRATEGIC COMM/PARTNERSHIPS   ,8400,PUBLICATIONS AND PERIODICALS  ,01/07/2013,3476064,83686,800.00,LAING & BUISSON (PUBLICATIONS) LTD      ,320736,Human Resources,BUSINESS INFORMATION SERVICES 
RE-OPENING OF WOODBOURN       ,1163,NC&A SUB CONTRACTORS          ,01/07/2013,3476290,4561,11720.00,STONE TECHNICAL SERVICES LTD            ,583775,Construction,STONEMASONS                   
CITY WIDE CARE ALARMS         ,8010,EQUIPMENT PURCHASE AND REPAIR ,01/07/2013,3476475,3IN/10223782             ,290.00,TUNSTALL HEALTHCARE (UK) LIMITED        ,209178,ICT,TELECOMMUNICATIONS EQUIPMENT &
CITY WIDE CARE ALARMS         ,8010,EQUIPMENT PURCHASE AND REPAIR ,01/07/2013,3476478,3IN/10223781             ,275.50,TUNSTALL HEALTHCARE (UK) LIMITED        ,209178,ICT,TELECOMMUNICATIONS EQUIPMENT &
CHANCET WOOD                  ,8010,EQUIPMENT PURCHASE AND REPAIR ,01/07/2013,3476667,11832251,357.50,CURRYS ELECTRICAL                       ,425865,Domestic Goods,ELECTRICAL GOODS - SALES      
POST IMPLEMENTATION           ,1161,NC&A MAIN CONTRACT            ,01/07/2013,3476821,ED03218/11(F)            ,14840.91,KIER SHEFFIELD LLP                      ,352687,Construction,PROPERTY MAINTENANCE & REPAIRS
MINOR WORKS & ADAPTATIONS     ,6020,REPAIRS AND MTCE - PROGRAMMED ,01/07/2013,3477065,608,712.00,NEIL CONSTRUCTION                       ,453315,Construction,BUILDING SERVICES             
PROVIDER CONTRACT AUG12-JUL13 ,9120,OTHER AGENCIES                ,01/07/2013,3477108,1314/29                  ,1720.90,GLEADLESS VALLEY COMMUNITY FORUM        ,394371,Unclassified Non Trade,CHARITIES & VOLUNTARY ORGANISA
PROVIDER CONTRACT AUG12-JUL13 ,9120,OTHER AGENCIES                ,01/07/2013,3477109,1314/31                  ,1589.00,GLEADLESS VALLEY COMMUNITY FORUM        ,394371,Unclassified Non Trade,CHARITIES & VOLUNTARY ORGANISA
EAST MAST                     ,8490,TRANSLATN/SIGN/INTERPRET FEES ,01/07/2013,3477119,43254,762.20,LANGUAGELINE SOLUTIONS                  ,471915,Human Resources,TRANSLATORS & INTERPRETERS    
NORTH MAST                    ,8490,TRANSLATN/SIGN/INTERPRET FEES ,01/07/2013,3477120,43225,1530.00,LANGUAGELINE SOLUTIONS                  ,471915,Human Resources,TRANSLATORS & INTERPRETERS    
PROVIDER CONTRACT AUG12-JUL13 ,9120,OTHER AGENCIES                ,01/07/2013,3477207,41438,395.50,FLOWER ESTATE FAMILY ACTION (GROUP A/C) ,418616,Unclassified Non Trade,CHARITIES & VOLUNTARY ORGANISA
INCLUSION CENTRE              ,8040,LEARNING RESOURCES            ,01/07/2013,3477322,100505SCC                ,2304.00,HOPKINS BOOK SERVICE                    ,205576,Education,BOOKSELLERS                   
VSP DELIVER                   ,9120,OTHER AGENCIES                ,01/07/2013,3477339,4000352540,359.10,SHEFFIELD TEACHING HOSPITAL NHS         ,309216,Unclassified Non Trade,HOSPITALS                     
APS - MANOR CENTRE            ,8010,EQUIPMENT PURCHASE AND REPAIR ,01/07/2013,3478255,919034848,762.90,ARCO LTD                                ,203022,Clothing,SAFETY EQUIPMENT & CLOTHING   
CITY WIDE CARE ALARMS         ,8010,EQUIPMENT PURCHASE AND REPAIR ,01/07/2013,3478274,3IN/10223867             ,750.00,TUNSTALL HEALTHCARE (UK) LIMITED        ,209178,ICT,TELECOMMUNICATIONS EQUIPMENT &
TRAINING - BROCKWOOD          ,8490,OTHER PROFESSIONAL FEES       ,01/07/2013,3478287,2810000275,450.00,YORKSHIRE AMBULANCE SERVICE NHS TRUST   ,329215,Unclassified Non Trade,HOSPITALS                     
STANIFORTH ROAD WORKSHOPS     ,5750,TRAINING EXPENDITURE          ,01/07/2013,3478382,INV0078342               ,1120.00,TRAPEZE GROUP (UK) LIMITED              ,507965,Consultancy,COMPUTER SYSTEMS & SOFTWARE (D
CITY DEAL                     ,9120,OTHER AGENCIES                ,01/07/2013,3478406,822,5391.00,THE SOURCE AT MEADOWHALL                ,350485,Human Resources,TRAINING CENTRES              
CITY DEAL                     ,9120,OTHER AGENCIES                ,01/07/2013,3478407,821,5391.00,THE SOURCE AT MEADOWHALL                ,350485,Human Resources,TRAINING CENTRES              
CITY DEAL                     ,9120,OTHER AGENCIES                ,01/07/2013,3478408,3533,5391.00,FERN GLOBAL LTD                         ,517222,Human Resources,EMPLOYMENT & RECRUITMENT AGENC
MEDICO LEGAL CENTRE           ,8010,EQUIPMENT PURCHASE AND REPAIR ,01/07/2013,3478416,C6970                    ,1103.27,CHEMSOL LTD                             ,342893,Unclassified Trade,CHEMICALS - DISTRIBUTORS & WHO
FUTURE PROOF NEETS 14 - 25    ,9120,OTHER AGENCIES                ,01/07/2013,3478444,87,348.40,IN2CHANGE SOUTH YORKS LTD               ,558793,Unclassified Non Trade,CHARITIES & VOLUNTARY ORGANISA
SHORT BREAKS FUNDING FOR DISAB,9120,OTHER AGENCIES                ,01/07/2013,3478466,282,2040.00,MASKK                                   ,386161,Unclassified Non Trade,CHARITIES & VOLUNTARY ORGANISA
USER INVOLVEMENT              ,8350,MISCELLANEOUS EXPENSES        ,01/07/2013,3478541,SYC&S/TURNINGPOINT/01    ,771.30,SOUTH YORKS PRE SCHOOL LEARNING ALLIANCE,339062,Unclassified Non Trade,CHARITIES & VOLUNTARY ORGANISA
HOLLINSEND MUGA               ,1161,NC&A MAIN CONTRACT            ,01/07/2013,3478926,PW04086/2                ,27700.00,BLAKEDOWN LANDSCAPES (OPERATIONS) LTD   ,525818,Construction,LANDSCAPE CONTRACTORS         
POST IMPLEMENTATION           ,1161,NC&A MAIN CONTRACT            ,01/07/2013,3478928,ED03212/11(F)            ,10267.87,KIER SHEFFIELD LLP                      ,352687,Construction,PROPERTY MAINTENANCE & REPAIRS
MFDS                          ,8370,MFD CHARGES                   ,01/07/2013,3478871,1108232209,1813.80,KONICA MINOLTA BUSINESS SOLUTIONS EAST  ,206267,ICT,OFFICE EQUIPMENT MNFRS & DISTR
MFDS                          ,8370,MFD CHARGES                   ,01/07/2013,3478872,1108214001,3489.39,KONICA MINOLTA BUSINESS SOLUTIONS EAST  ,206267,ICT,OFFICE EQUIPMENT MNFRS & DISTR
TRANSPORT FLEET MANAGEMENT    ,8070,STOCKS AND STORES             ,01/07/2013,3478875,9714495,6580.20,CARLTON FUELS                           ,466741,Vehicles Not Buses,FUEL DEALERS                  
CASTLE MARKET                 ,6150,ELECTRICITY                   ,01/07/2013,3478925,581523662/0010           ,631.11,SOUTHERN ELECTRIC                       ,318926,Utilities,ELECTRICITY COMPANIES         
CAR PARKING MANAGEMENT        ,8390,STATIONERY                    ,01/07/2013,3478929,1108232006,360.48,KONICA MINOLTA BUSINESS SOLUTIONS EAST  ,206267,ICT,OFFICE EQUIPMENT MNFRS & DISTR
CAR PARKING MANAGEMENT        ,8390,STATIONERY                    ,01/07/2013,3478930,1108025273,1121.94,KONICA MINOLTA BUSINESS SOLUTIONS EAST  ,206267,ICT,OFFICE EQUIPMENT MNFRS & DISTR
UTILITIES                     ,6150,ELECTRICITY                   ,01/07/2013,3478931,27140654,900.81,NPOWER NORTHERN LTD                     ,207191,Utilities,ELECTRICITY COMPANIES         
UTILITIES                     ,6150,ELECTRICITY                   ,01/07/2013,3478932,27140654,2420.82,NPOWER NORTHERN LTD                     ,207191,Utilities,ELECTRICITY COMPANIES         
PURCHASING LEARNING DISABILITI,9180,RESPITE                       ,01/07/2013,3478615,J639980 230613           ,349.80,REDACTED PERSONAL DATA,369406,Social Community Care,HOME CARE SERVICES            
PURCHASING LEARNING DISABILITI,9180,RESPITE                       ,01/07/2013,3478616,J640566 230613           ,314.82,REDACTED PERSONAL DATA,333053,Social Community Care,HOME CARE SERVICES            
ADULT SOCIAL CARE PURCHASING  ,9180,DAYCARE                       ,01/07/2013,3478646,J637196 230613           ,286.48,REDACTED PERSONAL DATA,464799,Social Community Care,HOME CARE SERVICES            
SUPPORTED & TEMP ACCOM TEAM   ,6210,BED & BREAKFAST PAYMENTS      ,01/07/2013,3478839,1087,1333.20,EARL MARSHALL GUEST HOUSE               ,391589,Facilities Management,GUEST HOUSES                  
PURCHASING LEARNING DISABILITI,9210,FUNDED NURSING CARE (INCOME)  ,01/07/2013,3478701,J640584                  ,6245.66,REDACTED PERSONAL DATA,401050,Social Community Care,CAREFIRST DIRECT PAYMENTS     
ADULT SOCIAL CARE PURCHASING  ,9190,DIRECT PAYMENTS               ,01/07/2013,3478702,J640584                  ,4099.14,REDACTED PERSONAL DATA,474088,Social Community Care,CAREFIRST DIRECT PAYMENTS     
ADULT SOCIAL CARE PURCHASING  ,9190,DIRECT PAYMENTS               ,01/07/2013,3478703,J640584                  ,1150.00,REDACTED PERSONAL DATA,515241,Social Community Care,CAREFIRST DIRECT PAYMENTS     
ADULT SOCIAL CARE PURCHASING  ,9190,DIRECT PAYMENTS               ,01/07/2013,3478704,J640584                  ,1751.25,REDACTED PERSONAL DATA,531633,Unclassified Non Trade,OUT OF SCOPE FOR SIC MONITORIN
PURCHASING LEARNING DISABILITI,9190,DIRECT PAYMENTS               ,01/07/2013,3478705,J640584                  ,687.60,A4E                                     ,547567,Human Resources,TRAINING SERVICES             
ADULT SOCIAL CARE PURCHASING  ,9190,DIRECT PAYMENTS               ,01/07/2013,3478706,J640584                  ,395.52,SARAH CARE LTD                          ,556288,Social Community Care,CAREFIRST DIRECT PAYMENTS     
PURCHASING                    ,9190,DIRECT PAYMENTS               ,01/07/2013,3478707,J640584                  ,7047.54,SHEFFIELD MIND                          ,556296,Social Community Care,CAREFIRST DIRECT PAYMENTS     
ADULT SOCIAL CARE PURCHASING  ,9190,DIRECT PAYMENTS               ,01/07/2013,3478708,J640584                  ,1995.00,PENDERELS TRUST                         ,556454,Social Community Care,CAREFIRST DIRECT PAYMENTS     
PURCHASING LEARNING DISABILITI,9190,DIRECT PAYMENTS               ,01/07/2013,3478709,J640584                  ,492.66,CARE2CARE TRAINING SERVICES             ,556893,Social Community Care,CAREFIRST DIRECT PAYMENTS     
RIGHT TO CONTROL              ,9190,DIRECT PAYMENTS               ,01/07/2013,3478710,J640584                  ,1000.00,BTCV ENTERPRISES                        ,562542,Social Community Care,CAREFIRST DIRECT PAYMENTS     
PURCHASING                    ,9190,DIRECT PAYMENTS               ,01/07/2013,3478711,J640584                  ,3654.00,REDACTED PERSONAL DATA,567919,Social Community Care,CAREFIRST DIRECT PAYMENTS     
ADULT SOCIAL CARE PURCHASING  ,9190,DIRECT PAYMENTS               ,01/07/2013,3478712,J640584                  ,2159.80,REDACTED PERSONAL DATA,571896,Social Community Care,CAREFIRST DIRECT PAYMENTS     
PURCHASING                    ,9190,DIRECT PAYMENTS               ,01/07/2013,3478713,J640584                  ,2295.52,REDACTED PERSONAL DATA,584207,Social Community Care,CAREFIRST DIRECT PAYMENTS     
ADULT SOCIAL CARE PURCHASING  ,9190,DIRECT PAYMENTS               ,01/07/2013,3478714,J640584                  ,1668.60,REDACTED PERSONAL DATA,584570,Social Community Care,CAREFIRST DIRECT PAYMENTS     
ADULT SOCIAL CARE PURCHASING  ,9190,SUPPORT PLANNING COSTS        ,01/07/2013,3478715,J640585                  ,400.00,CARE2CARE TRAINING SERVICES             ,556893,Social Community Care,CAREFIRST DIRECT PAYMENTS     
ADULT SOCIAL CARE PURCHASING  ,9190,SUPPORT PLANNING COSTS        ,01/07/2013,3478716,J640585                  ,880.00,IDK SUPPORT 4 YOU LTD - MANAGED ACCOUNTS,562179,Social Community Care,CAREFIRST DIRECT PAYMENTS     
PURCHASING LEARNING DISABILITI,9250,INDEPENDENT DAY CARE          ,01/07/2013,3478717,16786,339.60,BURTON STREET PROJECT                   ,342774,Unclassified Non Trade,CHARITIES & VOLUNTARY ORGANISA
PURCHASING LEARNING DISABILITI,9250,INDEPENDENT DAY CARE          ,01/07/2013,3478718,4019,376.00,BURTON STREET PROJECT                   ,342774,Unclassified Non Trade,CHARITIES & VOLUNTARY ORGANISA
PURCHASING LEARNING DISABILITI,9250,INDEPENDENT DAY CARE          ,01/07/2013,3478719,4020,564.00,BURTON STREET PROJECT                   ,342774,Unclassified Non Trade,CHARITIES & VOLUNTARY ORGANISA
PURCHASING LEARNING DISABILITI,9250,INDEPENDENT DAY CARE          ,01/07/2013,3478720,4022,564.00,BURTON STREET PROJECT                   ,342774,Unclassified Non Trade,CHARITIES & VOLUNTARY ORGANISA
PURCHASING LEARNING DISABILITI,9250,INDEPENDENT DAY CARE          ,01/07/2013,3478724,16782,339.60,BURTON STREET PROJECT                   ,342774,Unclassified Non Trade,CHARITIES & VOLUNTARY ORGANISA
PURCHASING LEARNING DISABILITI,9250,INDEPENDENT DAY CARE          ,01/07/2013,3478725,16783,914.40,BURTON STREET PROJECT                   ,342774,Unclassified Non Trade,CHARITIES & VOLUNTARY ORGANISA
PURCHASING LEARNING DISABILITI,9250,INDEPENDENT DAY CARE          ,01/07/2013,3478726,16784,738.00,BURTON STREET PROJECT                   ,342774,Unclassified Non Trade,CHARITIES & VOLUNTARY ORGANISA
PURCHASING LEARNING DISABILITI,9190,CITYWIDE SPOT                 ,01/07/2013,3478728,16787,452.80,BURTON STREET PROJECT                   ,342774,Unclassified Non Trade,CHARITIES & VOLUNTARY ORGANISA
PURCHASING LEARNING DISABILITI,9190,CITYWIDE SPOT                 ,01/07/2013,3478735,1833,18776.24,ABBEYCARE & NURSING HOME LTD            ,518411,Social Community Care,RESIDENTIAL CARE HOMES        
ADULT SOCIAL CARE PURCHASING  ,9190,CITYWIDE SPOT                 ,01/07/2013,3478735,1833,1928.13,ABBEYCARE & NURSING HOME LTD            ,518411,Social Community Care,RESIDENTIAL CARE HOMES        
PURCHASING LEARNING DISABILITI,9190,CITYWIDE SPOT                 ,01/07/2013,3478736,2100079608,42544.17,COMMUNITY HEALTH SHEFFIELD              ,361895,Unclassified Non Trade,HOSPITALS                     
ADULT SOCIAL CARE PURCHASING  ,9190,CITYWIDE SPOT                 ,01/07/2013,3478736,2100079608,1117.51,COMMUNITY HEALTH SHEFFIELD              ,361895,Unclassified Non Trade,HOSPITALS                     
ADULT SOCIAL CARE PURCHASING  ,9190,CITYWIDE SPOT                 ,01/07/2013,3478737,2417,1007.90,NEW HORIZONS TRUST HOME CARE SERVICES   ,532473,Social Community Care,HOME CARE SERVICES            
PDSI PURCHASING               ,9190,CITYWIDE SPOT                 ,01/07/2013,3478738,2420,672.08,NEW HORIZONS TRUST HOME CARE SERVICES   ,532473,Social Community Care,HOME CARE SERVICES            
ADULT SOCIAL CARE PURCHASING  ,9190,CITYWIDE SPOT                 ,01/07/2013,3478739,2424,780.17,NEW HORIZONS TRUST HOME CARE SERVICES   ,532473,Social Community Care,HOME CARE SERVICES            
ADULT SOCIAL CARE PURCHASING  ,9190,CITYWIDE SPOT                 ,01/07/2013,3478740,12346,1028.17,SSA SOCIAL CARE & COMMUNITY SERVICES LTD,301604,Human Resources,EMPLOYMENT & RECRUITMENT AGENC
PURCHASING                    ,9190,CITYWIDE SPOT                 ,01/07/2013,3478740,12346,271.65,SSA SOCIAL CARE & COMMUNITY SERVICES LTD,301604,Human Resources,EMPLOYMENT & RECRUITMENT AGENC
PURCHASING LEARNING DISABILITI,9190,CITYWIDE SPOT                 ,01/07/2013,3478741,4021,564.00,BURTON STREET PROJECT                   ,342774,Unclassified Non Trade,CHARITIES & VOLUNTARY ORGANISA
INDEPENDENT RES BLOCK PLACEMEN,9270,INDEPENDENT RESIDENTIAL PMENT ,01/07/2013,3478694,4243,9171.43,TWENTY FOUR SEVEN                       ,364408,Unclassified Non Trade,CHARITIES & VOLUNTARY ORGANISA
PREVENTION & SUPPORT - CDT    ,9270,CARELEAVERS INDEPENDENT LIVING,01/07/2013,3478695,225268455,1951.48,R M S PAYROLL MANAGEMENT LTD            ,478856,Financial Services,PAYROLL SERVICES              
TRANSITIONS                   ,9270,CARELEAVERS INDEPENDENT LIVING,01/07/2013,3478695,225268455,575.53,R M S PAYROLL MANAGEMENT LTD            ,478856,Financial Services,PAYROLL SERVICES              
 LUNCH CLUB GRANT             ,8180,GRANTS                        ,01/07/2013,3478752,MPA20130701155 1         ,713.50,CHRIST CHURCH PITSMOOR LUNCH CLUB       ,321910,Unclassified Non Trade,CHARITIES & VOLUNTARY ORGANISA
 LUNCH CLUB GRANT             ,8180,GRANTS                        ,01/07/2013,3478754,MPA20130701155 11        ,381.50,ADLINGTON LUNCHEON CLUB                 ,295201,Unclassified Non Trade,CHARITIES & VOLUNTARY ORGANISA
 LUNCH CLUB GRANT             ,8180,GRANTS                        ,01/07/2013,3478755,MPA20130701155 12        ,1299.50,DARNALL LUNCH CLUB                      ,295216,Unclassified Non Trade,CHARITIES & VOLUNTARY ORGANISA
 LUNCH CLUB GRANT             ,8180,GRANTS                        ,01/07/2013,3478757,MPA20130701155 14        ,565.50,GLEADLESS VALLEY LUNCHEON CLUB          ,295224,Unclassified Non Trade,CHARITIES & VOLUNTARY ORGANISA
 LUNCH CLUB GRANT             ,8180,GRANTS                        ,01/07/2013,3478758,MPA20130701155 15        ,668.00,DUKE STREET COMMUNITY CENTRE            ,375030,Unclassified Non Trade,COMMUNITY CENTRES             
 LUNCH CLUB GRANT             ,8180,GRANTS                        ,01/07/2013,3478759,MPA20130701155 16        ,838.25,ST OSWALDS LUNCHEON CLUB                ,385325,Unclassified Non Trade,CHARITIES & VOLUNTARY ORGANISA
 LUNCH CLUB GRANT             ,8180,GRANTS                        ,01/07/2013,3478761,MPA20130701155 18        ,1945.00,BIRLEY SPA LUNCH CLUB                   ,295206,Unclassified Non Trade,CHARITIES & VOLUNTARY ORGANISA
 LUNCH CLUB GRANT             ,8180,GRANTS                        ,01/07/2013,3478763,MPA20130701155 2         ,1014.25,CROSSPOOL LUNCH CLUB                    ,321911,Unclassified Non Trade,CHARITIES & VOLUNTARY ORGANISA
 LUNCH CLUB GRANT             ,8180,GRANTS                        ,01/07/2013,3478764,MPA20130701155 20        ,679.50,ST SWITHUNS LUNCH CLUB                  ,295166,Unclassified Non Trade,CHARITIES & VOLUNTARY ORGANISA
 LUNCH CLUB GRANT             ,8180,GRANTS                        ,01/07/2013,3478765,MPA20130701155 21        ,405.75,MICHAEL CHURCH LOWEDGES THURS LUNCH CLUB,295189,Unclassified Non Trade,CHARITIES & VOLUNTARY ORGANISA
 LUNCH CLUB GRANT             ,8180,GRANTS                        ,01/07/2013,3478766,MPA20130701155 22        ,529.50,ST JOHN'S ABBEYDALE LUNCH CLUB          ,385324,Unclassified Non Trade,CHARITIES & VOLUNTARY ORGANISA
 LUNCH CLUB GRANT             ,8180,GRANTS                        ,01/07/2013,3478767,MPA20130701155 23        ,544.50,GRAPEVINE CENTRE LUNCHEON CLUB          ,295190,Unclassified Non Trade,CHARITIES & VOLUNTARY ORGANISA
 LUNCH CLUB GRANT             ,8180,GRANTS                        ,01/07/2013,3478769,MPA20130701155 25        ,1193.75,THE SALVATION ARMY SHEFFIELD CASTLE     ,327783,Unclassified Non Trade,"HOUSING ASSOCIATIONS, SOCIETIE"
 LUNCH CLUB GRANT             ,8180,GRANTS                        ,01/07/2013,3478771,MPA20130701155 27        ,486.75,WADSLEY CHURCH LUNCH CLUB               ,295167,Unclassified Non Trade,CHARITIES & VOLUNTARY ORGANISA
 LUNCH CLUB GRANT             ,8180,GRANTS                        ,01/07/2013,3478772,MPA20130701155 28        ,451.25,SHIREGREEN UNITED REFORMED CHURCH       ,295203,Unclassified Non Trade,PLACES OF WORSHIP             
 LUNCH CLUB GRANT             ,8180,GRANTS                        ,01/07/2013,3478773,MPA20130701155 29        ,583.00,ST TIMOTHY'S LUNCH CLUB                 ,295163,Unclassified Non Trade,CHARITIES & VOLUNTARY ORGANISA
 LUNCH CLUB GRANT             ,8180,GRANTS                        ,01/07/2013,3478775,MPA20130701155 30        ,749.00,MEERSBROOK PARK LUNCH CLUB              ,363027,Unclassified Non Trade,CHARITIES & VOLUNTARY ORGANISA
 LUNCH CLUB GRANT             ,8180,GRANTS                        ,01/07/2013,3478776,MPA20130701155 31        ,829.00,ST LEONARD'S LUNCH CLUB                 ,296991,Unclassified Non Trade,CHARITIES & VOLUNTARY ORGANISA
 LUNCH CLUB GRANT             ,8180,GRANTS                        ,01/07/2013,3478777,MPA20130701155 32        ,665.00,ST MARY'S LUNCH CLUB                    ,322012,Unclassified Non Trade,CHARITIES & VOLUNTARY ORGANISA
 LUNCH CLUB GRANT             ,8180,GRANTS                        ,01/07/2013,3478778,MPA20130701155 33        ,1155.00,TINSLEY COMMUNITY CENTRE LUNCH CLUB     ,297105,Unclassified Non Trade,CHARITIES & VOLUNTARY ORGANISA
 LUNCH CLUB GRANT             ,8180,GRANTS                        ,01/07/2013,3478780,MPA20130701155 35        ,1325.00,ST MARY'S HANDSWORTH LUNCH CLUB         ,300780,Unclassified Non Trade,CHARITIES & VOLUNTARY ORGANISA
 LUNCH CLUB GRANT             ,8180,GRANTS                        ,01/07/2013,3478782,MPA20130701155 37        ,337.50,WILLIAM TEMPLE LUNCH CLUB               ,299806,Unclassified Non Trade,CHARITIES & VOLUNTARY ORGANISA
 LUNCH CLUB GRANT             ,8180,GRANTS                        ,01/07/2013,3478783,MPA20130701155 38        ,768.00,FOXHILL & BIRLEY CARR LIVE AT HOME SCHEM,349900,Unclassified Non Trade,CHARITIES & VOLUNTARY ORGANISA
 LUNCH CLUB GRANT             ,8180,GRANTS                        ,01/07/2013,3478784,MPA20130701155 39        ,724.00,LOWER SHIREGREEN LUNCH CLUB             ,299896,Unclassified Non Trade,CHARITIES & VOLUNTARY ORGANISA
 LUNCH CLUB GRANT             ,8180,GRANTS                        ,01/07/2013,3478785,MPA20130701155 4         ,431.75,HALLAM METHODIST LUNCH CLUB             ,321917,Unclassified Non Trade,CHARITIES & VOLUNTARY ORGANISA
 LUNCH CLUB GRANT             ,8180,GRANTS                        ,01/07/2013,3478786,MPA20130701155 40        ,288.50,ST MARKS LUNCH & FRIENDSHIP CLUB        ,301346,Unclassified Non Trade,PLACES OF WORSHIP             
 LUNCH CLUB GRANT             ,8180,GRANTS                        ,01/07/2013,3478791,MPA20130701155 45        ,1110.50,FRECHEVILLE PARISH DAY CENTRE           ,348612,Unclassified Non Trade,LOCAL GOVERNMENT              
 LUNCH CLUB GRANT             ,8180,GRANTS                        ,01/07/2013,3478793,MPA20130701155 47        ,353.25,ANGEL LUNCH CLUB                        ,481463,Unclassified Non Trade,CHARITIES & VOLUNTARY ORGANISA
 LUNCH CLUB GRANT             ,8180,GRANTS                        ,01/07/2013,3478794,MPA20130701155 48        ,646.50,WESLEY HALL LUNCH CLUB                  ,511866,Unclassified Non Trade,CHARITIES & VOLUNTARY ORGANISA
 LUNCH CLUB GRANT             ,8180,GRANTS                        ,01/07/2013,3478795,MPA20130701155 49        ,973.75,MOSBOROUGH LUNCH & SOCIAL CLUB          ,510333,Leisure Services,"CLUBS & ASSOCIATIONS - SOCIAL,"
 LUNCH CLUB GRANT             ,8180,GRANTS                        ,01/07/2013,3478797,MPA20130701155 50        ,932.75,THE THURSDAY CLUB                       ,451641,Unclassified Non Trade,CHARITIES & VOLUNTARY ORGANISA
 LUNCH CLUB GRANT             ,8180,GRANTS                        ,01/07/2013,3478799,MPA20130701155 52        ,548.50,MANOR LODGE LUNCHEON CLUB               ,545135,Unclassified Non Trade,CHARITIES & VOLUNTARY ORGANISA
 LUNCH CLUB GRANT             ,8180,GRANTS                        ,01/07/2013,3478801,MPA20130701155 54        ,625.00,MADINA ELDERLY DAY CARE CENTRE (MEN'S LU,549532,Unclassified Non Trade,CHARITIES & VOLUNTARY ORGANISA
 LUNCH CLUB GRANT             ,8180,GRANTS                        ,01/07/2013,3478803,MPA20130701155 56        ,264.00,PARSON CROSS COMMUNITY DEVELOPMENT FORUM,385089,Unclassified Non Trade,CHARITIES & VOLUNTARY ORGANISA
 LUNCH CLUB GRANT             ,8180,GRANTS                        ,01/07/2013,3478805,MPA20130701155 7         ,457.50,ST SAVIOURS LUNCH CLUB                  ,384448,Unclassified Non Trade,CHARITIES & VOLUNTARY ORGANISA
 LUNCH CLUB GRANT             ,8180,GRANTS                        ,01/07/2013,3478806,MPA20130701155 8         ,547.25,WOODSEATS METHODIST LUNCH CLUB          ,325667,Unclassified Non Trade,CHARITIES & VOLUNTARY ORGANISA
 LUNCH CLUB GRANT             ,8180,GRANTS                        ,01/07/2013,3478807,MPA20130701155 9         ,901.00,GREYSTONES LUNCH CLUB                   ,295226,Unclassified Non Trade,CHARITIES & VOLUNTARY ORGANISA
ADULT SOCIAL CARE PURCHASING  ,9210,CONTINUING NURSING CARE       ,01/07/2013,3478678,J640586 210713           ,11056.14,ROSE COTTAGE CARE HOME                  ,361940,Social Community Care,NURSING HOMES                 
ADULT SOCIAL CARE PURCHASING  ,9200,CONTINUING RESIDENTIAL CARE   ,01/07/2013,3478679,J637274 210713           ,28329.28,GRANGE CRESCENT                         ,361898,Social Community Care,RESIDENTIAL CARE HOMES        
ADULT SOCIAL CARE PURCHASING  ,9200,CONTINUING RESIDENTIAL CARE   ,01/07/2013,3478680,J637277 210713           ,43699.77,BURNT TREE CROFT                        ,361793,Social Community Care,RESIDENTIAL CARE HOMES        
ADULT SOCIAL CARE PURCHASING  ,9200,CONTINUING RESIDENTIAL CARE   ,01/07/2013,3478681,J637280 210713           ,31158.38,DEERLANDS                               ,361836,Social Community Care,RESIDENTIAL CARE HOMES        
ADULT SOCIAL CARE PURCHASING  ,9200,CONTINUING RESIDENTIAL CARE   ,01/07/2013,3478682,J637282 210713           ,28982.40,HOUSTEADS                               ,361860,Social Community Care,RESIDENTIAL CARE HOMES        
ADULT SOCIAL CARE PURCHASING  ,9200,CONTINUING RESIDENTIAL CARE   ,01/07/2013,3478683,J637283 210713           ,34676.00,KNOWLE HILL                             ,361798,Social Community Care,RESIDENTIAL CARE HOMES        
PURCHASING LEARNING DISABILITI,9210,CONTINUING NURSING CARE       ,01/07/2013,3478684,J637306 210713           ,6083.00,WHITWELL PARK                           ,362055,Social Community Care,NURSING HOMES                 
PURCHASING LEARNING DISABILITI,9200,CONTINUING RESIDENTIAL CARE   ,01/07/2013,3478685,J637426 210713           ,5995.12,HAMILTON LODGE                          ,418581,Social Community Care,RESIDENTIAL CARE HOMES        
ADULT SOCIAL CARE PURCHASING  ,9200,CONTINUING RESIDENTIAL CARE   ,01/07/2013,3478686,J637428 210713           ,3096.00,BLENHEIM COURT                          ,368328,Social Community Care,NURSING HOMES                 
ADULT SOCIAL CARE PURCHASING  ,9210,CONTINUING NURSING CARE       ,01/07/2013,3478686,J637428 210713           ,21896.00,BLENHEIM COURT                          ,368328,Social Community Care,NURSING HOMES                 
ADULT SOCIAL CARE PURCHASING  ,9200,CONTINUING RESIDENTIAL CARE   ,01/07/2013,3478687,J637429 210713           ,11392.28,ROSEBERRY CARE CENTRES GB LTD           ,368334,Social Community Care,NURSING HOMES                 
ADULT SOCIAL CARE PURCHASING  ,9210,CONTINUING NURSING CARE       ,01/07/2013,3478687,J637429 210713           ,21778.28,ROSEBERRY CARE CENTRES GB LTD           ,368334,Social Community Care,NURSING HOMES                 
PURCHASING LEARNING DISABILITI,9200,CONTINUING RESIDENTIAL CARE   ,01/07/2013,3478688,J637433 210713           ,6665.84,EDGECUMBE HOUSE                         ,380015,Social Community Care,RESIDENTIAL CARE HOMES        
PURCHASING LEARNING DISABILITI,9200,CONTINUING RESIDENTIAL CARE   ,01/07/2013,3478689,J637445 210713           ,6445.68,RED HOUSE                               ,387005,Facilities Management,HOTELS                        
PURCHASING LEARNING DISABILITI,9200,CONTINUING RESIDENTIAL CARE   ,01/07/2013,3478690,J637456 210713           ,6113.60,MILBURY CARE                            ,417855,Social Community Care,RESIDENTIAL CARE HOMES        
PURCHASING LEARNING DISABILITI,9200,CONTINUING RESIDENTIAL CARE   ,01/07/2013,3478691,J637472 210713           ,4871.36,GORSE HILL                              ,418457,Social Community Care,RESIDENTIAL CARE HOMES        
PURCHASING LEARNING DISABILITI,9200,CONTINUING RESIDENTIAL CARE   ,01/07/2013,3478692,J637489 210713           ,6793.84,FENNEY LODGE                            ,408029,Social Community Care,RESIDENTIAL CARE HOMES        
PDSI PURCHASING               ,9200,CONTINUING RESIDENTIAL CARE   ,01/07/2013,3478692,J637489 210713           ,6865.12,FENNEY LODGE                            ,408029,Social Community Care,RESIDENTIAL CARE HOMES        
VSP DELIVER                   ,9140,PRIVATE CONTRACTORS           ,02/07/2013,3479467,ERS INVOICE86111         ,4500.00,ENDEAVOUR TRAINING                      ,347945,Human Resources,TRAINING SERVICES             
WEST SA - CIN S17             ,9270,PAYMENTS TO RELATIVES/FRIENDS ,02/07/2013,3479421,WEST/47                  ,894.78,REDACTED PERSONAL DATA,584260,Unclassified Non Trade,OUT OF SCOPE FOR SIC MONITORIN
EAST SA - CIN S17             ,8490,TRANSLATN/SIGN/INTERPRET FEES ,02/07/2013,3479424,43165,1987.50,LANGUAGELINE SOLUTIONS                  ,471915,Human Resources,TRANSLATORS & INTERPRETERS    
VSP DELIVER                   ,9140,PRIVATE CONTRACTORS           ,02/07/2013,3479465,ERS INVOICE86107         ,7762.88,SPRINT TRAINING LTD                     ,375572,Human Resources,TRAINING SERVICES             
VSP DELIVER                   ,9140,PRIVATE CONTRACTORS           ,02/07/2013,3479466,ERS INVOICE86110         ,7687.50,SYTG LTD                                ,306547,Human Resources,TRAINING CENTRES              
VSP DELIVER                   ,9120,OTHER AGENCIES                ,02/07/2013,3479453,ERS INVOICE86090         ,5651.50,DIMENSIONS TRAINING SOLUTIONS           ,433070,Education,HAIRDRESSING SCHOOLS          
VSP DELIVER                   ,9120,OTHER AGENCIES                ,02/07/2013,3479454,ERS INVOICE86091         ,5556.25,DONCASTER ROTH & DIST (MOTOR TRADES)GTA ,204434,Human Resources,TRAINING CENTRES              
VSP DELIVER                   ,9120,OTHER AGENCIES                ,02/07/2013,3479455,ERS INVOICE86092         ,3312.00,WHITE ROSE SCHOOLS LTD                  ,334662,Education,BEAUTY SCHOOLS                
VSP DELIVER                   ,9140,PRIVATE CONTRACTORS           ,02/07/2013,3479456,ERS INVOICE86093         ,2730.50,A4E LTD                                 ,326975,Consultancy,BUSINESS & MANAGEMENT CONSULTA
VSP DELIVER                   ,9140,PRIVATE CONTRACTORS           ,02/07/2013,3479457,ERS INVOICE86095         ,5843.75,SOUTH YORKSHIRE & HALLAMSHIRE CYP       ,431967,Unclassified Non Trade,YOUTH ORGANISATIONS & CENTRES 
VSP DELIVER                   ,9140,PRIVATE CONTRACTORS           ,02/07/2013,3479458,ERS INVOICE86096         ,2571.75,SHEFFIELD INDUSTRIAL MUSEUMS TRUST LTD  ,307272,Leisure Services,MUSEUMS                       
VSP DELIVER                   ,9140,PRIVATE CONTRACTORS           ,02/07/2013,3479459,ERS INVOICE86097         ,3873.50,HEELEY CITY FARM                        ,301277,Unclassified Non Trade,CHARITIES & VOLUNTARY ORGANISA
VSP DELIVER                   ,9140,PRIVATE CONTRACTORS           ,02/07/2013,3479460,ERS INVOICE86099         ,2667.00,HEELEY DEVELOPMENT TRUST                ,363241,Unclassified Non Trade,CHARITIES & VOLUNTARY ORGANISA
VSP DELIVER                   ,9140,PRIVATE CONTRACTORS           ,02/07/2013,3479461,ERS INVOICE86100         ,5687.50,THE SHEFFIELD COLLEGE                   ,297611,Unclassified Non Trade,SCHOOLS & COLLEGES - FURTHER E
VSP DELIVER                   ,9140,PRIVATE CONTRACTORS           ,02/07/2013,3479462,ERS INVOICE86103         ,2625.00,THE SHEFFIELD COLLEGE                   ,297611,Unclassified Non Trade,SCHOOLS & COLLEGES - FURTHER E
VSP DELIVER                   ,9140,PRIVATE CONTRACTORS           ,02/07/2013,3479463,ERS INVOICE86104         ,6359.38,SHEFFIELD WEDNESDAY ACADEMY             ,461589,Leisure Services,SPORTS CLUBS & ASSOCIATIONS   
VSP DELIVER                   ,9140,PRIVATE CONTRACTORS           ,02/07/2013,3479464,ERS INVOICE86106         ,4125.00,HEELEY DEVELOPMENT TRUST                ,363241,Unclassified Non Trade,CHARITIES & VOLUNTARY ORGANISA
TRAINING                      ,5750,TRAINING EXPENDITURE          ,02/07/2013,3479468,ERS INVOICE86112         ,1100.00,REDACTED PERSONAL DATA,581994,Unclassified Non Trade,OUT OF SCOPE FOR SIC MONITORIN
ACHIEVING MARMOT              ,9050,OTHER LOCAL AUTHORITIES       ,02/07/2013,3454160,1025671,15000.00,GREENWICH COUNCIL                       ,405685,Unclassified Non Trade,LOCAL GOVERNMENT              
PARKS COMMUNITY PARTNERSHIP   ,8180,GRANTS                        ,02/07/2013,3475235,4076,36337.50,GREEN ESTATE LTD                        ,388189,Environmental Services,WASTE DISPOSAL SERVICES       
ADAPTATIONS                   ,1157,DWELLINGS MAIN CONTRACT       ,02/07/2013,3478440,12110233,29811.28,KIER SHEFFIELD LLP                      ,352687,Construction,PROPERTY MAINTENANCE & REPAIRS
ADAPTATIONS                   ,1157,DWELLINGS MAIN CONTRACT       ,02/07/2013,3478442,12110234,17226.68,KIER SHEFFIELD LLP                      ,352687,Construction,PROPERTY MAINTENANCE & REPAIRS
ADAPTATIONS                   ,1157,DWELLINGS MAIN CONTRACT       ,02/07/2013,3478501,12110236,12530.89,KIER SHEFFIELD LLP                      ,352687,Construction,PROPERTY MAINTENANCE & REPAIRS
SEN TAXIS                     ,7060,EXTERNAL VEHICLE HIRE         ,02/07/2013,3478896,808,1424.08,SHEFFIELD CITY TAXIS LTD                ,301182,Transport,TAXIS & PRIVATE HIRE          
SOCIAL CARE TAXIS             ,7060,EXTERNAL VEHICLE HIRE         ,02/07/2013,3478897,809,3950.84,SHEFFIELD CITY TAXIS LTD                ,301182,Transport,TAXIS & PRIVATE HIRE          
BOOKS & OTHER MATERIALS       ,8080,LIBRARY MATERIALS             ,02/07/2013,3479189,1751366,254.09,BERTRAM LIBRARY SERVICES                ,418929,Education,EDUCATIONAL EQUIPMENT & SUPPLI
BOOKS & OTHER MATERIALS       ,8080,LIBRARY MATERIALS             ,02/07/2013,3479210,1751740,342.07,BERTRAM LIBRARY SERVICES                ,418929,Education,EDUCATIONAL EQUIPMENT & SUPPLI
BOOKS & OTHER MATERIALS       ,8080,LIBRARY MATERIALS             ,02/07/2013,3479211,1750559,593.08,BERTRAM LIBRARY SERVICES                ,418929,Education,EDUCATIONAL EQUIPMENT & SUPPLI
BOOKS & OTHER MATERIALS       ,8080,LIBRARY MATERIALS             ,02/07/2013,3479213,1751295,527.93,BERTRAM LIBRARY SERVICES                ,418929,Education,EDUCATIONAL EQUIPMENT & SUPPLI
ADULT SOCIAL CARE PURCHASING  ,9190,DIRECT PAYMENTS               ,02/07/2013,3479425,J640995                  ,2158.23,REDACTED PERSONAL DATA,545953,Social Community Care,CAREFIRST DIRECT PAYMENTS     
PURCHASING                    ,9190,DIRECT PAYMENTS               ,02/07/2013,3479427,J640995                  ,1275.26,SHEFFIELD MIND                          ,556296,Social Community Care,CAREFIRST DIRECT PAYMENTS     
PURCHASING LEARNING DISABILITI,9190,DIRECT PAYMENTS               ,02/07/2013,3479428,J640995                  ,5576.28,SPECTRUM SOCIAL CARE                    ,557844,Social Community Care,CAREFIRST DIRECT PAYMENTS     
PURCHASING                    ,9190,DIRECT PAYMENTS               ,02/07/2013,3479430,J640995                  ,2970.00,REDACTED PERSONAL DATA,568532,Social Community Care,CAREFIRST DIRECT PAYMENTS     
ADULT SOCIAL CARE PURCHASING  ,9190,DIRECT PAYMENTS               ,02/07/2013,3479431,J640995                  ,400.00,REDACTED PERSONAL DATA,574320,Social Community Care,CAREFIRST DIRECT PAYMENTS     
ADULT SOCIAL CARE PURCHASING  ,9190,BLOCK CONTRACT                ,02/07/2013,3479433,J608144 280413           ,6834.70,ALLIED HEALTHCARE GROUP LTD             ,325458,Human Resources,NURSING AGENCIES              
ADULT SOCIAL CARE PURCHASING  ,9190,CITYWIDE SPOT                 ,02/07/2013,3479433,J608144 280413           ,3797.00,ALLIED HEALTHCARE GROUP LTD             ,325458,Human Resources,NURSING AGENCIES              
ADULT SOCIAL CARE PURCHASING  ,9210,FUNDED NURSING CARE (INCOME)  ,02/07/2013,3479433,J608144 280413           ,30955.32,ALLIED HEALTHCARE GROUP LTD             ,325458,Human Resources,NURSING AGENCIES              
PURCHASING LEARNING DISABILITI,9210,FUNDED NURSING CARE (INCOME)  ,02/07/2013,3479433,J608144 280413           ,16187.88,ALLIED HEALTHCARE GROUP LTD             ,325458,Human Resources,NURSING AGENCIES              
PURCHASING                    ,9210,FUNDED NURSING CARE (INCOME)  ,02/07/2013,3479433,J608144 280413           ,10412.50,ALLIED HEALTHCARE GROUP LTD             ,325458,Human Resources,NURSING AGENCIES              
PURCHASING LEARNING DISABILITI,9190,CITYWIDE SPOT                 ,02/07/2013,3479434,1859349,4012.00,MENCAP HOMECARE                         ,361858,Unclassified Non Trade,CHARITIES & VOLUNTARY ORGANISA
PURCHASING LEARNING DISABILITI,9210,FUNDED NURSING CARE (INCOME)  ,02/07/2013,3479435,1859361,708.00,MENCAP HOMECARE                         ,361858,Unclassified Non Trade,CHARITIES & VOLUNTARY ORGANISA
PURCHASING LEARNING DISABILITI,9190,CITYWIDE SPOT                 ,02/07/2013,3479436,1859365,708.00,MENCAP HOMECARE                         ,361858,Unclassified Non Trade,CHARITIES & VOLUNTARY ORGANISA
ADULT SOCIAL CARE PURCHASING  ,9190,CITYWIDE SPOT                 ,02/07/2013,3479437,VARIOUS                  ,10833.36,DOMUS HEALTHCARE (ROTHERHAM) LIMITED    ,574392,Social Community Care,RESIDENTIAL CARE HOMES        
PURCHASING LEARNING DISABILITI,9190,CITYWIDE SPOT                 ,02/07/2013,3479438,2100079609,41987.28,COMMUNITY HEALTH SHEFFIELD              ,361895,Unclassified Non Trade,HOSPITALS                     
ADULT SOCIAL CARE PURCHASING  ,9190,CITYWIDE SPOT                 ,02/07/2013,3479438,2100079609,1674.40,COMMUNITY HEALTH SHEFFIELD              ,361895,Unclassified Non Trade,HOSPITALS                     
PURCHASING                    ,9230,CCSP OTHER                    ,02/07/2013,3479439,2799,909.73,NEVILLE HEALTH CARE LTD                 ,438387,Social Community Care,RESIDENTIAL CARE HOMES        
INDEPENDENT FOSTERING PLACEMEN,9270,INDEPENDENT FOSTERING         ,02/07/2013,3479410,131842,874.00,SWIIS FOSTER CARE LTD.                  ,349291,Social Community Care,ADOPTION & FOSTERING          
INDEPENDENT FOSTERING PLACEMEN,9270,INDEPENDENT FOSTERING         ,02/07/2013,3479411,131843,830.00,SWIIS FOSTER CARE LTD.                  ,349291,Social Community Care,ADOPTION & FOSTERING          
INDEPENDENT RES BLOCK PLACEMEN,9270,INDEPENDENT RESIDENTIAL PMENT ,02/07/2013,3479412,5947,3621.72,PROGRESSIVE CARE LTD                    ,343548,Social Community Care,CHILDREN'S HOMES              
INDEPENDENT RES BLOCK PLACEMEN,9270,INDEPENDENT RESIDENTIAL PMENT ,02/07/2013,3479413,5948,1950.16,PROGRESSIVE CARE LTD                    ,343548,Social Community Care,CHILDREN'S HOMES              
LEAVING CARE                  ,9270,CARELEAVERS ACCOMMODATION     ,02/07/2013,3479415,LAKATOSOVA35             ,445.90,EARL MARSHALL GUEST HOUSE               ,391589,Facilities Management,GUEST HOUSES                  
LEAVING CARE                  ,9270,CARELEAVERS ACCOMMODATION     ,02/07/2013,3479416,MUD56                    ,320.95,EARL MARSHALL GUEST HOUSE               ,391589,Facilities Management,GUEST HOUSES                  
LEAVING CARE                  ,9270,CARELEAVERS ACCOMMODATION     ,02/07/2013,3479417,R2-13                    ,569.58,THE PENNINE DOMESTIC VIOLENCE GROUP     ,559206,Unclassified Non Trade,CHARITIES & VOLUNTARY ORGANISA
LEAVING CARE                  ,9270,CARELEAVERS ACCOMMODATION     ,02/07/2013,3479418,SCC005352                ,525.00,ALARA BED & BREAKFAST                   ,305061,Facilities Management,GUEST HOUSES                  
PREVENTION & SUPPORT - CDT    ,9270,CARELEAVERS INDEPENDENT LIVING,02/07/2013,3479419,MB/JUNEFEES              ,335.92,BOLE HILL NURSERY                       ,311845,Social Community Care,NURSERIES & CRECHES           
ADULT SOCIAL CARE PURCHASING  ,4260,RESIDENTIAL COSTS RECOVERED   ,02/07/2013,3479387,J636348 230613           ,497.73,WOOD HILL GRANGE CARE HOME              ,552397,Social Community Care,RESIDENTIAL CARE HOMES        
ADULT SOCIAL CARE PURCHASING  ,9200,CONTINUING RESIDENTIAL CARE   ,02/07/2013,3479388,J637281 210713           ,22434.58,HAWKHILLS                               ,361795,Social Community Care,RESIDENTIAL CARE HOMES        
PDSI PURCHASING               ,9200,CONTINUING RESIDENTIAL CARE   ,02/07/2013,3479389,J637284 210713           ,4482.28,PADDOCK HILL                            ,361797,Social Community Care,RESIDENTIAL CARE HOMES        
ADULT SOCIAL CARE PURCHASING  ,9200,CONTINUING RESIDENTIAL CARE   ,02/07/2013,3479389,J637284 210713           ,13860.00,PADDOCK HILL                            ,361797,Social Community Care,RESIDENTIAL CARE HOMES        
ADULT SOCIAL CARE PURCHASING  ,9200,CONTINUING RESIDENTIAL CARE   ,02/07/2013,3479390,J637285 210713           ,34200.00,SPRINGWOOD                              ,361812,Social Community Care,RESIDENTIAL CARE HOMES        
ADULT SOCIAL CARE PURCHASING  ,9200,CONTINUING RESIDENTIAL CARE   ,02/07/2013,3479391,J637381 210713           ,45315.00,BALMORAL NURSING HOME                   ,361851,Social Community Care,NURSING HOMES                 
ADULT SOCIAL CARE PURCHASING  ,9210,CONTINUING NURSING CARE       ,02/07/2013,3479391,J637381 210713           ,14746.29,BALMORAL NURSING HOME                   ,361851,Social Community Care,NURSING HOMES                 
PURCHASING LEARNING DISABILITI,9200,CONTINUING RESIDENTIAL CARE   ,02/07/2013,3479392,J637458 210713           ,4836.84,CHESTNUT GRANGE                         ,418583,Social Community Care,RESIDENTIAL CARE HOMES        
PURCHASING LEARNING DISABILITI,9200,CONTINUING RESIDENTIAL CARE   ,02/07/2013,3479393,J637479 210713           ,6885.52,BROOK LODGE                             ,475031,Social Community Care,RESIDENTIAL CARE HOMES        
PURCHASING LEARNING DISABILITI,9200,CONTINUING RESIDENTIAL CARE   ,02/07/2013,3479394,J637501 210713           ,2883.04,THE CORNER HOUSE RESIDENTIAL HOME       ,509711,Social Community Care,RESIDENTIAL CARE HOMES        
ADULT SOCIAL CARE PURCHASING  ,4260,RESIDENTIAL COSTS RECOVERED   ,02/07/2013,3479395,J637518 210713           ,996.81,WOOD HILL GRANGE CARE HOME              ,552397,Social Community Care,RESIDENTIAL CARE HOMES        
ADULT SOCIAL CARE PURCHASING  ,9210,CONTINUING NURSING CARE       ,02/07/2013,3479395,J637518 210713           ,40645.71,WOOD HILL GRANGE CARE HOME              ,552397,Social Community Care,RESIDENTIAL CARE HOMES        
PURCHASING                    ,9200,CONTINUING RESIDENTIAL CARE   ,02/07/2013,3479396,J639991 210713           ,4949.94,FITZWILLIAM LODGE NH (PD)               ,361908,Social Community Care,NURSING HOMES                 
ADULT SOCIAL CARE PURCHASING  ,9200,CONTINUING RESIDENTIAL CARE   ,02/07/2013,3479397,J640996 210713           ,9581.43,WESTBOURNE HOUSE                        ,362111,Social Community Care,NURSING HOMES                 
ADULT SOCIAL CARE PURCHASING  ,9210,CONTINUING NURSING CARE       ,02/07/2013,3479398,J640997 210713           ,5246.33,SHEFFIELD CHESHIRE HOME                 ,361768,Social Community Care,NURSING HOMES                 
ADULT SOCIAL CARE PURCHASING  ,9200,SHORT TERM RESIDENTIAL CARE   ,02/07/2013,3479399,J639965 230613           ,502.71,LOWER BOWSHAW VIEW NH                   ,362101,Social Community Care,NURSING HOMES                 
ADULT SOCIAL CARE PURCHASING  ,9200,SHORT TERM RESIDENTIAL CARE   ,02/07/2013,3479400,J639966 230613           ,1749.29,LAUREATE COURT NURSING HOME             ,362119,Social Community Care,NURSING HOMES                 
ADULT SOCIAL CARE PURCHASING  ,9200,SHORT TERM RESIDENTIAL CARE   ,02/07/2013,3479401,J639967 230613           ,1117.14,ROSEBERRY CARE CENTRES GB LTD           ,362099,Social Community Care,RESIDENTIAL CARE HOMES        
ADULT SOCIAL CARE PURCHASING  ,9210,SHORT TERM NURSING CARE       ,02/07/2013,3479401,J639967 230613           ,4141.60,ROSEBERRY CARE CENTRES GB LTD           ,362099,Social Community Care,RESIDENTIAL CARE HOMES        
ADULT SOCIAL CARE PURCHASING  ,9200,SHORT TERM RESIDENTIAL CARE   ,02/07/2013,3479402,J639968 230613           ,684.00,HERRIES LODGE CARE HOME                 ,566537,Social Community Care,RESIDENTIAL CARE HOMES        
ADULT SOCIAL CARE PURCHASING  ,9200,SHORT TERM RESIDENTIAL CARE   ,02/07/2013,3479403,J640904 230613           ,1059.00,PADDOCK HILL                            ,361797,Social Community Care,RESIDENTIAL CARE HOMES        
ADULT SOCIAL CARE PURCHASING  ,9210,SHORT TERM NURSING CARE       ,02/07/2013,3479404,J640905 230613           ,1624.00,ROSE COTTAGE CARE HOME                  ,361940,Social Community Care,NURSING HOMES                 
ADULT SOCIAL CARE PURCHASING  ,9200,SHORT TERM RESIDENTIAL CARE   ,02/07/2013,3479405,J640907 230613           ,706.00,WHITE ROSE COURT RES HOME               ,361964,Social Community Care,RESIDENTIAL CARE HOMES        
ADULT SOCIAL CARE PURCHASING  ,9200,SHORT TERM RESIDENTIAL CARE   ,02/07/2013,3479406,J640908 230613           ,2824.00,WESTBOURNE HOUSE                        ,362111,Social Community Care,NURSING HOMES                 
ADULT SOCIAL CARE PURCHASING  ,9200,SHORT TERM RESIDENTIAL CARE   ,02/07/2013,3479407,J640909 230613           ,774.00,NORTH HILL RESIDENTIAL HOME             ,362254,Social Community Care,RESIDENTIAL CARE HOMES        
ADULT SOCIAL CARE PURCHASING  ,9200,SHORT TERM RESIDENTIAL CARE   ,02/07/2013,3479408,J640910 230613           ,1429.76,SHEFFIELD CHESHIRE HOME                 ,361768,Social Community Care,NURSING HOMES                 
ADULT SOCIAL CARE PURCHASING  ,9200,SHORT TERM RESIDENTIAL CARE   ,02/07/2013,3479409,J640911 230613           ,456.00,NORTON LEES HALL/LODGE                  ,433750,Unclassified Non Trade,SCHOOLS - LOCAL AUTHORITY     
CITY WIDE CHILD CARE CONTRACT ,8440,FEE EXPENSES                  ,03/07/2013,3467858,2100151407,208000.00,SHEFFIELD CHILDRENS NHS FOUNDATION TRUST,449452,Unclassified Non Trade,HOSPITALS                     
CATERING PREMISES & EQUIPMENT ,6020,REPAIRS AND MTCE - PROGRAMMED ,03/07/2013,3468309,49784,1141.25,BARNSLEY CATERING SERVICES LTD          ,203262,Catering,CATERING EQUIPMENT            
SHORT BREAKS FUNDING FOR DISAB,8440,FEE EXPENSES                  ,03/07/2013,3480293,ERS INVOICE86354         ,400.00,REDACTED PERSONAL DATA,532638,Unclassified Non Trade,OUT OF SCOPE FOR SIC MONITORIN
SHORT BREAKS FUNDING FOR DISAB,8440,FEE EXPENSES                  ,03/07/2013,3480294,ERS INVOICE86355         ,400.00,REDACTED PERSONAL DATA,572805,Unclassified Non Trade,OUT OF SCOPE FOR SIC MONITORIN
SHORT BREAKS FUNDING FOR DISAB,8440,FEE EXPENSES                  ,03/07/2013,3480295,ERS INVOICE86356         ,400.00,REDACTED PERSONAL DATA,536486,Unclassified Non Trade,OUT OF SCOPE FOR SIC MONITORIN
SHORT BREAKS FUNDING FOR DISAB,8440,FEE EXPENSES                  ,03/07/2013,3480296,ERS INVOICE86357         ,400.00,REDACTED PERSONAL DATA,534464,Unclassified Non Trade,OUT OF SCOPE FOR SIC MONITORIN
SHORT BREAKS FUNDING FOR DISAB,8440,FEE EXPENSES                  ,03/07/2013,3480297,ERS INVOICE86358         ,400.00,REDACTED PERSONAL DATA,560490,Unclassified Non Trade,OUT OF SCOPE FOR SIC MONITORIN
SHORT BREAKS FUNDING FOR DISAB,8440,FEE EXPENSES                  ,03/07/2013,3480298,ERS INVOICE86359         ,400.00,REDACTED PERSONAL DATA,539212,Unclassified Non Trade,OUT OF SCOPE FOR SIC MONITORIN
SHORT BREAKS FUNDING FOR DISAB,8440,FEE EXPENSES                  ,03/07/2013,3480299,ERS INVOICE86360         ,400.00,REDACTED PERSONAL DATA,532763,Unclassified Non Trade,OUT OF SCOPE FOR SIC MONITORIN
SHORT BREAKS FUNDING FOR DISAB,8440,FEE EXPENSES                  ,03/07/2013,3480300,ERS INVOICE86361         ,400.00,REDACTED PERSONAL DATA,511863,Unclassified Non Trade,OUT OF SCOPE FOR SIC MONITORIN
SHORT BREAKS FUNDING FOR DISAB,8440,FEE EXPENSES                  ,03/07/2013,3480301,ERS INVOICE86362         ,400.00,REDACTED PERSONAL DATA,535044,Unclassified Non Trade,OUT OF SCOPE FOR SIC MONITORIN
SHORT BREAKS FUNDING FOR DISAB,8440,FEE EXPENSES                  ,03/07/2013,3480302,ERS INVOICE86363         ,400.00,REDACTED PERSONAL DATA,338910,Social Community Care,ADOPTION & FOSTERING          
OUTDOOR EDUCATION             ,8440,FEE EXPENSES                  ,03/07/2013,3479980,ERS INVOICE86147         ,325.00,PAUL WESTWOOD                           ,488586,Leisure Services,SPORTS COACHING & INSTRUCTION 
OUTDOOR EDUCATION             ,8440,FEE EXPENSES                  ,03/07/2013,3479992,ERS INVOICE86159         ,665.00,ALEX LANGDON                            ,568756,Human Resources,TRAINING SERVICES             
SHORT BREAKS FUNDING FOR DISAB,8440,FEE EXPENSES                  ,03/07/2013,3480260,ERS INVOICE86321         ,400.00,REDACTED PERSONAL DATA,541118,Unclassified Non Trade,OUT OF SCOPE FOR SIC MONITORIN
SHORT BREAKS FUNDING FOR DISAB,8440,FEE EXPENSES                  ,03/07/2013,3480261,ERS INVOICE86322         ,400.00,REDACTED PERSONAL DATA,535535,Unclassified Non Trade,OUT OF SCOPE FOR SIC MONITORIN
SHORT BREAKS FUNDING FOR DISAB,8440,FEE EXPENSES                  ,03/07/2013,3480262,ERS INVOICE86323         ,400.00,REDACTED PERSONAL DATA,546081,Unclassified Non Trade,OUT OF SCOPE FOR SIC MONITORIN
SHORT BREAKS FUNDING FOR DISAB,8440,FEE EXPENSES                  ,03/07/2013,3480270,ERS INVOICE86331         ,400.00,REDACTED PERSONAL DATA,575669,Unclassified Non Trade,OUT OF SCOPE FOR SIC MONITORIN
SHORT BREAKS FUNDING FOR DISAB,8440,FEE EXPENSES                  ,03/07/2013,3480286,ERS INVOICE86347         ,400.00,REDACTED PERSONAL DATA,570812,Unclassified Non Trade,OUT OF SCOPE FOR SIC MONITORIN
SHORT BREAKS FUNDING FOR DISAB,8440,FEE EXPENSES                  ,03/07/2013,3480291,ERS INVOICE86352         ,350.00,REDACTED PERSONAL DATA,504346,Social Community Care,ADOPTION & FOSTERING          
SHORT BREAKS FUNDING FOR DISAB,8440,FEE EXPENSES                  ,03/07/2013,3480292,ERS INVOICE86353         ,400.00,REDACTED PERSONAL DATA,546897,Unclassified Non Trade,OUT OF SCOPE FOR SIC MONITORIN
GATEWAY PROJECT               ,6210,RENTS                         ,03/07/2013,3479930,ERS INVOICE86115         ,459.00,MR MASKEEN BAZ                          ,513463,Unclassified Trade,COMMERCIAL PROPERTY AGENTS    
MPU PAYMENTS TO TENANTS       ,6060,DISCRETIONARY PAYMENTS        ,03/07/2013,3479932,ERS INVOICE86117         ,300.00,REDACTED PERSONAL DATA,584571,Unclassified Non Trade,OUT OF SCOPE FOR SIC MONITORIN
BRADFORD RF FUNDS HAL         ,1194,OTHER FEES                    ,03/07/2013,3479948,ERS INVOICE86133         ,457.00,WAKE SMITH & TOFIELDS SOLICITORS        ,209393,Legal Services,SOLICITORS                    
POST 16 TRAVEL PASSES         ,9430,SEN DISCRETIONARY             ,03/07/2013,3479956,ERS INVOICE86141         ,400.00,SHELL'S CARS                            ,543658,Transport,TAXIS & PRIVATE HIRE          
SHEFFIELD COMMUNITY NETWORK   ,9120,OTHER AGENCIES                ,03/07/2013,3479957,ERS INVOICE86142         ,1346.94,RECOVERY ENTERPRISES                    ,577131,Unclassified Non Trade,CHARITIES & VOLUNTARY ORGANISA
24) EEQL                      ,9030,HEALTH                        ,03/07/2013,3479976,ERS INVOICE86143         ,4067.00,SCT-EAST END QUALITY OF LIFE INITIATIVE ,408588,Unclassified Non Trade,CHARITIES & VOLUNTARY ORGANISA
33) PHYSICAL ACT & FOOD-UTHORP,9030,HEALTH                        ,03/07/2013,3479977,ERS INVOICE86144         ,7999.00,UPPERTHORPE HEALTHY LIVING CENTRE       ,327429,Unclassified Non Trade,PUBLIC HEALTH SUPPLIERS       
SCC BALANCE SHEET             ,2050,CONTRACTOR BONDS (HIGH CONS)  ,03/07/2013,3479978,ERS INVOICE86145         ,5000.00,REDACTED PERSONAL DATA,584637,Unclassified Non Trade,OUT OF SCOPE FOR SIC MONITORIN
OUTDOOR EDUCATION             ,8440,FEE EXPENSES                  ,03/07/2013,3479979,ERS INVOICE86146         ,500.00,OLIVER J BARRETT                        ,467131,Human Resources,TRAINING SERVICES             
CORONIAL SERVICES             ,8440,PATHOLOGIST INVOICE           ,03/07/2013,3479994,ERS INVOICE86161         ,1037.80,DR KIRSTEN HOPE                         ,564454,Medical ,DOCTORS                       
CORONIAL SERVICES             ,8440,PATHOLOGIST INVOICE           ,03/07/2013,3479995,ERS INVOICE86162         ,1548.80,REDACTED PERSONAL DATA,579914,Unclassified Non Trade,OUT OF SCOPE FOR SIC MONITORIN
CORONIAL SERVICES             ,8440,FEE EXPENSES                  ,03/07/2013,3479997,ERS INVOICE86164         ,800.00,REDACTED PERSONAL DATA,577132,Social Community Care,ADOPTION & FOSTERING          
CORONIAL SERVICES             ,8440,FEE EXPENSES                  ,03/07/2013,3479998,ERS INVOICE86165         ,2050.00,REDACTED PERSONAL DATA,577132,Social Community Care,ADOPTION & FOSTERING          
COMMERCIAL ESTATE             ,4390,OTHER RENT INCOME             ,03/07/2013,3480106,ERS INVOICE86166         ,2125.00,OUGHTIBRIDGE PRIMARY SCHOOL             ,506704,Unclassified Non Trade,SCHOOLS - LOCAL AUTHORITY     
IN HOUSE FOSTER PLACEMENT     ,9270,IN-HOUSE FOSTERING            ,03/07/2013,3480108,ERS INVOICE86168         ,500.00,REDACTED PERSONAL DATA,377924,Social Community Care,ADOPTION & FOSTERING          
IN HOUSE FOSTER PLACEMENT     ,9270,IN-HOUSE FOSTERING            ,03/07/2013,3480109,ERS INVOICE86169         ,500.00,REDACTED PERSONAL DATA,564456,Unclassified Non Trade,OUT OF SCOPE FOR SIC MONITORIN
ADOPTION SERVICE              ,9120,OTHER AGENCIES                ,03/07/2013,3480110,ERS INVOICE86170         ,557.74,REDACTED PERSONAL DATA,584572,Unclassified Non Trade,OUT OF SCOPE FOR SIC MONITORIN
16 - 19 BURSARY FUNDS         ,8440,FEE EXPENSES                  ,03/07/2013,3480121,ERS INVOICE86182         ,420.00,REDACTED PERSONAL DATA,584687,Unclassified Non Trade,OUT OF SCOPE FOR SIC MONITORIN
BUSINESS INTELLIGENCE         ,8440,FEE EXPENSES                  ,03/07/2013,3480234,ERS INVOICE86295         ,1710.50,SUSAN M PRICE                           ,516691,Unclassified Trade,PRIVATE INVESTIGATOR          
SHORT BREAKS FUNDING FOR DISAB,8440,FEE EXPENSES                  ,03/07/2013,3480235,ERS INVOICE86296         ,400.00,REDACTED PERSONAL DATA,537221,Unclassified Non Trade,OUT OF SCOPE FOR SIC MONITORIN
SHORT BREAKS FUNDING FOR DISAB,8440,FEE EXPENSES                  ,03/07/2013,3480236,ERS INVOICE86297         ,400.00,REDACTED PERSONAL DATA,584689,Unclassified Non Trade,OUT OF SCOPE FOR SIC MONITORIN
SHORT BREAKS FUNDING FOR DISAB,8440,FEE EXPENSES                  ,03/07/2013,3480237,ERS INVOICE86298         ,400.00,REDACTED PERSONAL DATA,573939,Unclassified Non Trade,OUT OF SCOPE FOR SIC MONITORIN
SHORT BREAKS FUNDING FOR DISAB,8440,FEE EXPENSES                  ,03/07/2013,3480239,ERS INVOICE86300         ,400.00,REDACTED PERSONAL DATA,584695,Unclassified Non Trade,OUT OF SCOPE FOR SIC MONITORIN
SHORT BREAKS FUNDING FOR DISAB,8440,FEE EXPENSES                  ,03/07/2013,3480240,ERS INVOICE86301         ,400.00,REDACTED PERSONAL DATA,584700,Unclassified Non Trade,OUT OF SCOPE FOR SIC MONITORIN
SHORT BREAKS FUNDING FOR DISAB,8440,FEE EXPENSES                  ,03/07/2013,3480241,ERS INVOICE86302         ,400.00,REDACTED PERSONAL DATA,539378,Unclassified Non Trade,OUT OF SCOPE FOR SIC MONITORIN
SHORT BREAKS FUNDING FOR DISAB,8440,FEE EXPENSES                  ,03/07/2013,3480242,ERS INVOICE86303         ,400.00,REDACTED PERSONAL DATA,544196,Unclassified Non Trade,OUT OF SCOPE FOR SIC MONITORIN
SHORT BREAKS FUNDING FOR DISAB,8440,FEE EXPENSES                  ,03/07/2013,3480248,ERS INVOICE86309         ,400.00,REDACTED PERSONAL DATA,542418,Unclassified Non Trade,OUT OF SCOPE FOR SIC MONITORIN
SHORT BREAKS FUNDING FOR DISAB,8440,FEE EXPENSES                  ,03/07/2013,3480256,ERS INVOICE86317         ,400.00,REDACTED PERSONAL DATA,535688,Unclassified Non Trade,OUT OF SCOPE FOR SIC MONITORIN
SHORT BREAKS FUNDING FOR DISAB,8440,FEE EXPENSES                  ,03/07/2013,3480303,ERS INVOICE86364         ,400.00,REDACTED PERSONAL DATA,535882,Unclassified Non Trade,OUT OF SCOPE FOR SIC MONITORIN
SHORT BREAKS FUNDING FOR DISAB,8440,FEE EXPENSES                  ,03/07/2013,3480304,ERS INVOICE86365         ,400.00,REDACTED PERSONAL DATA,536308,Unclassified Non Trade,OUT OF SCOPE FOR SIC MONITORIN
CITY WIDE CONTRACTS           ,8440,FEE EXPENSES                  ,03/07/2013,3433760,R81IN1/00003754          ,301141.50,ACTION FOR CHILDREN                     ,326212,Unclassified Non Trade,CHARITIES & VOLUNTARY ORGANISA
NURSERY ED FUND               ,5750,TRAINING EXPENDITURE          ,03/07/2013,3435037,92906419,1300.00,CAPITA BUSINESS SERVICES LTD            ,203719,Human Resources,BUSINESS INFORMATION SERVICES 
CROOKES VALLEY PARKS          ,1161,NC&A MAIN CONTRACT            ,03/07/2013,3437259,1114,3472.00,PAUL DAY COUNTRYSIDE SERVICES           ,317618,Environmental Services,TREE WORK & FORESTRY SERVICES 
TOWN HALL                     ,6030,REPAIRS AND MTCE - RESPONSIVE ,03/07/2013,3452179,274991,1014.00,BRADLEY LOMAS ELECTROLOK LTD            ,510933,Unclassified Trade,MANUFACTURERS                 
CITY WIDE CONTRACTS           ,8440,FEE EXPENSES                  ,03/07/2013,3454651,2100151115,105870.00,SHEFFIELD CHILDRENS NHS FOUNDATION TRUST,449452,Unclassified Non Trade,HOSPITALS                     
CITY WIDE CONTRACTS           ,8440,FEE EXPENSES                  ,03/07/2013,3454652,2100151116,51998.00,SHEFFIELD CHILDRENS NHS FOUNDATION TRUST,449452,Unclassified Non Trade,HOSPITALS                     
PLANNING & PERFORMANCE        ,5750,TRAINING EXPENDITURE          ,03/07/2013,3459076,90852762,750.00,EMERGENCY PLANNING COLLEGE              ,296071,Unclassified Non Trade,CENTRAL GOVERNMENT            
PLANNING & PERFORMANCE        ,5750,TRAINING EXPENDITURE          ,03/07/2013,3459077,90852761,750.00,EMERGENCY PLANNING COLLEGE              ,296071,Unclassified Non Trade,CENTRAL GOVERNMENT            
WORK CHOICE                   ,9120,OTHER AGENCIES                ,03/07/2013,3459217,AH1822370                ,2305.27,ROYAL MENCAP SOCIETY                    ,361774,Unclassified Non Trade,CHARITIES & VOLUNTARY ORGANISA
WORK CHOICE                   ,9120,OTHER AGENCIES                ,03/07/2013,3460421,130956,1368.63,SHAW TRUST LTD                          ,545685,Unclassified Non Trade,EMPLOYMENT SERVICE            
PLANNING & PERFORMANCE        ,5750,TRAINING EXPENDITURE          ,03/07/2013,3460527,90853100,750.00,EMERGENCY PLANNING COLLEGE              ,296071,Unclassified Non Trade,CENTRAL GOVERNMENT            
ACCOMMODATION & DEVEL TEAM    ,9180,OTHER CLIENT EXPENDITURE      ,03/07/2013,3463929,SIJ00006079              ,443.56,SOUTH YORKSHIRE HOUSING                 ,564831,Social Community Care,CAREFIRST DIRECT PAYMENTS     
ACCOMMODATION & DEVEL TEAM    ,9180,OTHER CLIENT EXPENDITURE      ,03/07/2013,3463930,SIJ00006157              ,697.12,SOUTH YORKSHIRE HOUSING                 ,564831,Social Community Care,CAREFIRST DIRECT PAYMENTS     
ACCOMMODATION & DEVEL TEAM    ,9180,OTHER CLIENT EXPENDITURE      ,03/07/2013,3463931,SIJ00006080              ,697.12,SOUTH YORKSHIRE HOUSING                 ,564831,Social Community Care,CAREFIRST DIRECT PAYMENTS     
ACCOMMODATION & DEVEL TEAM    ,9180,OTHER CLIENT EXPENDITURE      ,03/07/2013,3463932,SIJ00006082              ,525.12,SOUTH YORKSHIRE HOUSING                 ,564831,Social Community Care,CAREFIRST DIRECT PAYMENTS     
TREE TEAM                     ,6370,GROUNDS MTCE AND ARBORICULTURE,03/07/2013,3465882,43,470.00,J B HIBBERD LIMITED                     ,510434,Environmental Services,TREE WORK & FORESTRY SERVICES 
LOWFIELD PRO FIT              ,1165,NC&A OTHER                    ,03/07/2013,3466749,5043,604.00,NOTTS SPORT (UK) LTD                    ,207183,Construction,TENNIS COURTS & SPORTS SURFACE
TREE TEAM                     ,6370,GROUNDS MTCE AND ARBORICULTURE,03/07/2013,3466833,2279,2650.00,ANDERSON TREE CARE LTD                  ,316084,Environmental Services,TREE WORK & FORESTRY SERVICES 
WORK CHOICE                   ,9120,OTHER AGENCIES                ,03/07/2013,3470187,AH1848839                ,2050.61,ROYAL MENCAP SOCIETY                    ,361774,Unclassified Non Trade,CHARITIES & VOLUNTARY ORGANISA
RIGHT TO CONTROL              ,8350,MISCELLANEOUS EXPENSES        ,03/07/2013,3471078,445,1665.00,NOMAD OPENING DOORS                     ,351162,Unclassified Non Trade,CHARITIES & VOLUNTARY ORGANISA
SHEAF SQUARE/HOWARD ST        ,6020,REPAIRS AND MTCE - PROGRAMMED ,03/07/2013,3474095,55161,266.67,OCMIS IRRIGATION (UK) LTD.              ,395558,Unclassified Trade,IRRIGATION SYSTEMS            
INDEP MH ADVOCACY             ,9030,HEALTH                        ,03/07/2013,3474120,2013/14-3                ,33333.32,SHEFFIELD MENTAL HEALTH CAB LMT         ,581306,Unclassified Non Trade,PUBLIC HEALTH SUPPLIERS       
PEACE GARDENS                 ,8440,FEE EXPENSES                  ,03/07/2013,3474608,457831,1500.00,BANNER PLANT  LTD                       ,203248,Vehicles Not Buses,PLANT & MACHINERY HIRE & LEASI
LOCAL PRIORITIES              ,8560,TPB NORTH                     ,03/07/2013,3474688,11351,6363.64,SUREGUARD ENERGY SERVICES LTD           ,452667,Building Construction Materials,WINDOW FILM MNFRS & DEALERS   
PROJECT MANAGEMENT - SCHEME   ,8350,MISCELLANEOUS EXPENSES        ,03/07/2013,3474814,4765,4185.00,MICHAEL D JOYCE ASSOCIATES LLP          ,480535,Consultancy,ENGINEERS - CONSULTING        
OLDER PERSONS LIVING          ,8010,EQUIPMENT PURCHASE AND REPAIR ,03/07/2013,3475123,23905,787.00,BACK CARE SOLUTIONS LTD                 ,420010,Furniture,OFFICE FURNITURE & EQUIPMENT  
SUPPORTED HOUSING             ,6020,VOID PAINTING INITIATIVE      ,03/07/2013,3475275,L09015                   ,584.00,BELL GROUP (LEEDS)                      ,441427,Construction,PAINTERS & DECORATORS         
HR ADVISORY                   ,8440,FEE EXPENSES                  ,03/07/2013,3475592,6410,525.00,COLLINGWOOD HEALTH LTD                  ,456629,Medical ,OCCUPATIONAL HEALTH           
BARKERS POOL                  ,6030,REPAIRS AND MTCE - RESPONSIVE ,03/07/2013,3475647,2032,1221.00,TECH SPRAY FIBREGLASS LIMITED           ,551506,Building Construction Materials,SPRAYING - PAINT & COATINGS   
OCCUPATIONAL HEALTH & SAFETY  ,8010,EQUIPMENT PURCHASE AND REPAIR ,03/07/2013,3475652,65027/65185              ,2369.50,P & A MEDICAL LTD                       ,382759,Medical ,MEDICAL EQUIPMENT MAINTENANCE 
SUPPORTED HOUSING             ,6020,VOID PAINTING INITIATIVE      ,03/07/2013,3475680,L09011                   ,576.00,BELL GROUP (LEEDS)                      ,441427,Construction,PAINTERS & DECORATORS         
ALLOTMENTS                    ,6370,GROUNDS MTCE AND ARBORICULTURE,03/07/2013,3475977,8049,900.00,AGN FENCING LIMITED                     ,458060,Construction,FENCING CONTRACTORS           
POLICY & PERFORMANCE TEAM     ,8620,ICT LEASE/RENTALS             ,03/07/2013,3476063,AS0213MAY                ,950.00,PERF INFO MANAGEMENT SYSTEMS LTD        ,470480,Consultancy,COMPUTER SYSTEMS & SOFTWARE (D
SHARE PROJECT                 ,7140,PUBLIC TRANSPORT COSTS        ,03/07/2013,3476350,01/4213542               ,332.90,CO-OPERATIVE TRAVEL MANAGEMENT          ,202987,Facilities Management,TRAVEL AGENTS & HOLIDAY COMPAN
OLDER PERSONS LIVING          ,8010,EQUIPMENT PURCHASE AND REPAIR ,03/07/2013,3476665,11773866,255.19,CURRYS ELECTRICAL                       ,425865,Domestic Goods,ELECTRICAL GOODS - SALES      
SUSTAINABLE DEV- ENV STRATEGY ,7140,PUBLIC TRANSPORT COSTS        ,03/07/2013,3476710,01/4193282               ,321.00,CO-OPERATIVE TRAVEL MANAGEMENT          ,202987,Facilities Management,TRAVEL AGENTS & HOLIDAY COMPAN
AREA CENTAL                   ,8010,ESTATES EQUIP PURCHASE & REPAI,03/07/2013,3476784,SI/02097636              ,894.00,NOMIX ENVIRO                            ,207128,Unclassified Trade,CHEMICALS & ALLIED PRODUCTS   
AREA EAST                     ,8010,ESTATES EQUIP PURCHASE & REPAI,03/07/2013,3476838,SI/02094855              ,1027.50,NOMIX ENVIRO                            ,207128,Unclassified Trade,CHEMICALS & ALLIED PRODUCTS   
SHEFFIELD TRADING STANDARDS   ,8550,OTHER SERVICES                ,03/07/2013,3477075,403017,750.12,CREDITSAFE UK LIMITED                   ,420927,Financial Services,CREDIT REFERENCE AGENCIES     
DON VALLEY SYITS LSTF (MAIN)  ,8460,CONSULTANTS FEES              ,03/07/2013,3477090,347636,7343.00,OVE ARUP & PARTNERS LTD                 ,321129,Consultancy,ENGINEERS - CONSULTING        
CHILDRENS' FESTIVAL           ,8440,FEE EXPENSES                  ,03/07/2013,3477105,120080,2300.00,BABBLING VAGABONDS LTD.                 ,583983,Leisure Services,Professional Speakers
SHEFFIELD TRADING STANDARDS   ,8440,FEE EXPENSES                  ,03/07/2013,3477166,91307243218/92307777844  ,1077.00,WEST YORKSHIRE ANALYTICAL SERVICES      ,329765,Consultancy,FOOD CONSULTANTS & TECHNOLOGIS
PARKS COMMUNITY PARTNERSHIP   ,8010,EQUIPMENT PURCHASE AND REPAIR ,03/07/2013,3477219,Z705139                  ,5500.00,RIJO 42 INGREDIENTS LTD                 ,580773,Catering,COFFEE MACHINES               
OTHER REPAIRS & FEES          ,6030,BURGLAR ALARM REPAIRS         ,03/07/2013,3477223,ISG/SERV/004/13          ,1609.47,TELSTAR SECURITY                        ,299814,Facilities Management,SECURITY EQUIPMENT            
OTHER REPAIRS & FEES          ,6030,BURGLAR ALARM REPAIRS         ,03/07/2013,3477225,ISG/SERV/003/13          ,15299.88,TELSTAR SECURITY                        ,299814,Facilities Management,SECURITY EQUIPMENT            
SHEFFIELD TRADING STANDARDS   ,8550,OTHER SERVICES                ,03/07/2013,3477297,91307778066,525.00,WEST YORKSHIRE TRADING STANDARDS SERVICE,317626,Human Resources,INSTITUTES - PROFESSIONAL     
PSH EMPTY PROPERTIES          ,1165,NC&A OTHER                    ,03/07/2013,3477314,6,365.00,MEERSBROOK CONSTRUCTION COMPANY LTD     ,206809,Construction,CONSTRUCTION CONTRACTORS - GEN
PEACE GARDENS                 ,8440,FEE EXPENSES                  ,03/07/2013,3477318,1632,750.00,EVENT SOLUTIONS LTD                     ,403612,Leisure Services,"MARQUEES, TENTS & PORTABLE FLO"
RESPONSIVE HM&E               ,6020,LEGIONELLA MONITORING         ,03/07/2013,3477320,10726071,1440.00,RENTOKIL INITIAL UK LTD                 ,437082,Cleaning and Janitorial,CLEANING SERVICES - COMMERCIAL
PLAYGROUND MAINTENANCE & INSPE,8010,EQUIPMENT PURCHASE AND REPAIR ,03/07/2013,3477325,2131600,902.00,TALURIT UK LTD                          ,526574,Vehicles Not Buses,LIFTING EQUIPMENT             
CORONIAL SERVICES             ,8100,RECHARGEABLE PURCHASES        ,03/07/2013,3477328,6021426,9411.84,BARNSLEY HOSPITAL NHS FT                ,308864,Unclassified Non Trade,HOSPITALS                     
CORONIAL SERVICES             ,8100,RECHARGEABLE PURCHASES        ,03/07/2013,3477331,6021661,6769.92,BARNSLEY HOSPITAL NHS FT                ,308864,Unclassified Non Trade,HOSPITALS                     
CHILDRENS' FESTIVAL           ,8440,FEE EXPENSES                  ,03/07/2013,3477333,SIN002186                ,2000.00,MUSEUMS SHEFFIELD                       ,519265,Leisure Services,MUSEUMS                       
REGENERATION TEAM             ,8570,POSTAGE & DELIVERY            ,03/07/2013,3477355,1028,455.00,JAMES WHITFORD                          ,316926,Mail Services,DELIVERY SERVICES             
HOUSING CALL CENTRE           ,8490,TRANSLATN/SIGN/INTERPRET FEES ,03/07/2013,3477356,00025135T                ,2134.29,LANGUAGELINE SOLUTIONS                  ,206348,Human Resources,TRANSLATORS & INTERPRETERS    
HOUSING CALL CENTRE           ,8490,TRANSLATN/SIGN/INTERPRET FEES ,03/07/2013,3477357,00025303T                ,1484.50,LANGUAGELINE SOLUTIONS                  ,206348,Human Resources,TRANSLATORS & INTERPRETERS    
COMMUNITY ENGAGE & GOVERNANCE ,5790,EMPLOYEE EXPENSES             ,03/07/2013,3478258,IN00267988               ,625.00,MOTT MACDONALD LTD                      ,206975,Consultancy,ENGINEERS - CONSULTING        
DISAB CHILD ACCESS CHILDCARE  ,9120,OTHER AGENCIES                ,03/07/2013,3478265,INV000481                ,595.35,GRACE OWEN NURSERY SCHOOL               ,501969,Unclassified Non Trade,NURSERY SCHOOLS               
NORTH WEST AREA               ,8560,TPB NORTH WEST                ,03/07/2013,3478269,SINV00247214             ,1443.80,R A ROBERTS (OFFICE EQUIPMENT) LTD      ,207777,Furniture,OFFICE FURNITURE & EQUIPMENT  
SUPPORTED HOUSING             ,8050,FURNITURE PURCHASES           ,03/07/2013,3478273,407445,5725.00,KOZEE SLEEP                             ,531691,Furniture,"BEDS, BEDDING & BLANKETS      "
PARKS OPS SOUTH & SOUTH EAST  ,8550,OTHER SERVICES                ,03/07/2013,3478312,16,350.00,WHITTAKERS GROUND CARE                  ,401131,Construction,LANDSCAPE CONTRACTORS & GARDEN
PROVIDER MAN/INC FINANCE CHARG,8440,FEE EXPENSES                  ,03/07/2013,3478383,57,6145.50,SAFE@LAST                               ,536864,Unclassified Non Trade,CHARITIES & VOLUNTARY ORGANISA
LOCAL PRIORITIES              ,8560,TPB NORTH WEST                ,03/07/2013,3478427,90342287,5275.00,AMEY LG LTD                             ,578587,Construction,ROAD CONSTRUCTION CONTRACTORS 
FUTURE PROOF NEETS 14 - 25    ,9120,OTHER AGENCIES                ,03/07/2013,3478437,444,662.40,A MIND APART THEATRE COMPANY LTD        ,508180,Education,DRAMA SCHOOLS                 
FUTURE PROOF NEETS 14 - 25    ,9120,OTHER AGENCIES                ,03/07/2013,3478438,SOARCO/1011              ,1185.60,SOAR                                    ,413073,Unclassified Non Trade,DEVELOPMENT AGENCIES          
CORONIAL SERVICES             ,8550,OTHER SERVICES                ,03/07/2013,3478443,4000352520,304.34,SHEFFIELD TEACHING HOSPITALS NHS TRUST  ,308114,Unclassified Non Trade,HOSPITALS                     
CITY WIDE CONTRACTS           ,8440,FEE EXPENSES                  ,03/07/2013,3478461,R81IN1/00004412          ,300622.50,ACTION FOR CHILDREN                     ,326212,Unclassified Non Trade,CHARITIES & VOLUNTARY ORGANISA
CITY WIDE CHILD CARE CONTRACT ,8440,FEE EXPENSES                  ,03/07/2013,3478462,R81IN1/00004411          ,77316.00,ACTION FOR CHILDREN                     ,326212,Unclassified Non Trade,CHARITIES & VOLUNTARY ORGANISA
SHARE PROJECT                 ,4080,FEES & CHARGES                ,03/07/2013,3478547,41450,325.00,SUPPORT ARTS GARDENING EDUCATION        ,514865,Unclassified Non Trade,CHARITIES & VOLUNTARY ORGANISA
SCHOOL SWIMMING SERVICE       ,7060,EXTERNAL VEHICLE HIRE         ,03/07/2013,3478556,12280D                   ,9442.00,LINBURG TOURING LTD                     ,478437,Transport,COACH HIRE                    
YOUTH JUSTICE SERVICE         ,9120,OTHER AGENCIES                ,03/07/2013,3478557,31,35162.50,REMEDI                                  ,329612,Unclassified Non Trade,CHARITIES & VOLUNTARY ORGANISA
ALDINE HOUSE                  ,6030,REPAIRS AND MTCE - RESPONSIVE ,03/07/2013,3478563,75157170,310.00,STANLEY SECURITY SOLUTIONS LTD          ,203395,Facilities Management,SECURITY EQUIPMENT            
STRATEGY & POLICY TEAM        ,8270,SUBSCRIPTIONS                 ,03/07/2013,3478564,PSNET03999               ,650.00,HQN LIMITED                             ,514363,Consultancy,BUSINESS & MANAGEMENT CONSULTA
YOUTH JUSTICE SERVICE         ,8490,TRANSLATN/SIGN/INTERPRET FEES ,03/07/2013,3478565,GC02092811               ,744.79,GLOBAL CONNECTIONS                      ,451209,Human Resources,TRANSLATORS & INTERPRETERS    
CHILDCARE VOUCHER SCHEME      ,5790,EMPLOYEE EXPENSES             ,03/07/2013,3478571,430937,907.25,FIDELITI LIMITED                        ,552506,Social Community Care,CHILDCARE SERVICES            
ALDINE HOUSE                  ,5610,AGENCY STAFF                  ,03/07/2013,3478580,824137,1068.50,TEACHING PERSONNEL                      ,410695,Human Resources,EMPLOYMENT & RECRUITMENT AGENC
CCTV                          ,6030,REPAIRS AND MTCE - RESPONSIVE ,03/07/2013,3478814,10011,250.00,ELITE SECURITY SYSTEMS                  ,445002,Cleaning and Janitorial,CLEANING SERVICES - COMMERCIAL
ACCOMMODATION & DEVEL TEAM    ,8490,OTHER PROFESSIONAL FEES       ,03/07/2013,3479002,2100079806,3410.07,SHEFFIELD CARE TRUST (SP)               ,366826,Unclassified Non Trade,CHARITIES & VOLUNTARY ORGANISA
PROGRAMME DELIVERY TEAM       ,8490,OTHER PROFESSIONAL FEES       ,03/07/2013,3479003,2100079807,417.01,SHEFFIELD CARE TRUST (SP)               ,366826,Unclassified Non Trade,CHARITIES & VOLUNTARY ORGANISA
PROGRAMME DELIVERY TEAM       ,8490,OTHER PROFESSIONAL FEES       ,03/07/2013,3479004,2100079808,1525.80,SHEFFIELD CARE TRUST (SP)               ,366826,Unclassified Non Trade,CHARITIES & VOLUNTARY ORGANISA
GROUNDS MAINTENANCE           ,7020,VEHICLE FUEL COSTS            ,03/07/2013,3479185,9776288,769.60,CARLTON FUELS                           ,466741,Vehicles Not Buses,FUEL DEALERS                  
GRAVES PARK - ANIMAL FARM INC ,8060,MATERIALS AND SUPPLIES GENERAL,03/07/2013,3479186,244358,560.10,ARGO FEEDS LTD                          ,203028,Unclassified Trade,PET FOODS & ANIMAL FEEDS      
SH GENERAL                    ,8450,AUDIT FEES                    ,03/07/2013,3479219,6797296,12200.00,GRANT THORNTON UK LLP                   ,510452,Financial Services,ACCOUNTANTS                   
HOUSING CALL CENTRE           ,8490,TRANSLATN/SIGN/INTERPRET FEES ,03/07/2013,3479221,3159251,1354.00,LANGUAGELINE SOLUTIONS                  ,206348,Human Resources,TRANSLATORS & INTERPRETERS    
PFI 4                         ,6030,REPAIRS AND MTCE - RESPONSIVE ,03/07/2013,3479651,177,2262.82,PARADIGM (SHEFFIELD BSF) LIMITED        ,472691,Facilities Management,FACILITIES MANAGEMENT         
PFI 4                         ,6270,SERVICE / PFI UNITARY CHARGE  ,03/07/2013,3479651,177,764116.07,PARADIGM (SHEFFIELD BSF) LIMITED        ,472691,Facilities Management,FACILITIES MANAGEMENT         
PFI 4                         ,8440,FEE EXPENSES                  ,03/07/2013,3479651,177,10555.92,PARADIGM (SHEFFIELD BSF) LIMITED        ,472691,Facilities Management,FACILITIES MANAGEMENT         
POST IMPLEMENTATION           ,1194,OTHER FEES                    ,03/07/2013,3479794,191/SCC                  ,4308.00, GREENSTONE HEAT PUMPS AND UNDERFLOOR LT,580666,Building Construction Materials,HEATING SERVICES - INDUSTRIAL 
PARKS OPS EAST & NORTH EAST   ,7020,VEHICLE FUEL COSTS            ,03/07/2013,3479827,9777838,1583.88,CARLTON FUELS LIMITED                   ,490002,Utilities,OIL FUEL DISTRIBUTORS         
STRUCTURES                    ,5610,AGENCY STAFF                  ,03/07/2013,3480035,92910426,1150.00,CAPITA SYMONDS LTD                      ,576657,Unclassified Trade,LETTING AGENTS                
BNDFC - VESTRY HALL           ,6160,GAS                           ,03/07/2013,3479760,A3913640/S2004185        ,327.16,BRITISH GAS BUSINESS                    ,370790,Utilities,GAS COMPANIES                 
WEST MAST                     ,8380,PHOTOCOPYING                  ,03/07/2013,3479763,1108232238,288.87,KONICA MINOLTA BUSINESS SOLUTIONS EAST  ,206267,ICT,OFFICE EQUIPMENT MNFRS & DISTR
STANIFORTH ROAD WORKSHOPS     ,7010,ROUTINE VEHICLE REPAIR & MTCE ,03/07/2013,3479813,43154373,692.75,POLAR FORD (BARNSLEY)                   ,380027,Vehicles Not Buses,CAR DEALERS                   
STANIFORTH ROAD WORKSHOPS     ,7010,ROUTINE VEHICLE REPAIR & MTCE ,03/07/2013,3479824,93591,301.01,CHARLES H HILL                          ,493172,Horticultural,LAWNMOWERS & GARDEN MACHINERY 
STANIFORTH ROAD WORKSHOPS     ,8070,STOCKS AND STORES             ,03/07/2013,3479832,14426165,293.37,LOOKERS FORD                            ,474939,Vehicles Not Buses,CAR DEALERS                   
STANIFORTH ROAD WORKSHOPS     ,7010,ROUTINE VEHICLE REPAIR & MTCE ,03/07/2013,3479834,570147,740.74,GOLF & TURF MACHINERY T/A PLATTS HARRIS ,465593,Vehicles Not Buses,AGRICULTURAL MACHINERY - SALES
STANIFORTH ROAD WORKSHOPS     ,7010,ROUTINE VEHICLE REPAIR & MTCE ,03/07/2013,3479838,129231,481.33,GOLF & TURF MACHINERY T/A PLATTS HARRIS ,465593,Vehicles Not Buses,AGRICULTURAL MACHINERY - SALES
STANIFORTH ROAD WORKSHOPS     ,7010,ROUTINE VEHICLE REPAIR & MTCE ,03/07/2013,3479841,129751,2051.59,GOLF & TURF MACHINERY T/A PLATTS HARRIS ,465593,Vehicles Not Buses,AGRICULTURAL MACHINERY - SALES
STANIFORTH ROAD WORKSHOPS     ,8070,STOCKS AND STORES             ,03/07/2013,3479842,14426350,336.47,LOOKERS FORD                            ,474939,Vehicles Not Buses,CAR DEALERS                   
STANIFORTH ROAD WORKSHOPS     ,7010,ROUTINE VEHICLE REPAIR & MTCE ,03/07/2013,3479843,9199,374.00,ROBERTS MOTOR BODIES LIMITED            ,442639,Vehicles Not Buses,CAR BODY REPAIRS              
MFDS                          ,8370,MFD CHARGES                   ,03/07/2013,3479848,1108372564,1170.85,KONICA MINOLTA BUSINESS SOLUTIONS EAST  ,206267,ICT,OFFICE EQUIPMENT MNFRS & DISTR
STANIFORTH ROAD WORKSHOPS     ,7010,ROUTINE VEHICLE REPAIR & MTCE ,03/07/2013,3479851,9197,513.00,ROBERTS MOTOR BODIES LIMITED            ,442639,Vehicles Not Buses,CAR BODY REPAIRS              
STANIFORTH ROAD WORKSHOPS     ,7010,ROUTINE VEHICLE REPAIR & MTCE ,03/07/2013,3479891,9192,897.00,ROBERTS MOTOR BODIES LIMITED            ,442639,Vehicles Not Buses,CAR BODY REPAIRS              
TRANSPORT FLEET MANAGEMENT    ,8070,STOCKS AND STORES             ,03/07/2013,3479892,9778634,5508.10,CARLTON FUELS                           ,466741,Vehicles Not Buses,FUEL DEALERS                  
BIS TELECOMMS                 ,8600,MOBILE TELEPHONES - INVOICE   ,03/07/2013,3479904,120631779,350.00,ORANGE PCS LTD                          ,409889,ICT,MOBILE PHONES                 
STANIFORTH ROAD WORKSHOPS     ,8070,STOCKS AND STORES             ,03/07/2013,3479907,S1152S087                ,308.00,GME SPRINGS T/A GME MOTOR               ,440984,Building Construction Materials,SPRING MNFRS & DISTRIBUTORS   
STANIFORTH ROAD WORKSHOPS     ,8070,STOCKS AND STORES             ,03/07/2013,3479909,14425761,639.59,LOOKERS FORD                            ,474939,Vehicles Not Buses,CAR DEALERS                   
TRANSPORT FLEET MANAGEMENT    ,8070,STOCKS AND STORES             ,03/07/2013,3479916,9593118,5408.50,CARLTON FUELS                           ,466741,Vehicles Not Buses,FUEL DEALERS                  
STANIFORTH ROAD WORKSHOPS     ,7010,ROUTINE VEHICLE REPAIR & MTCE ,03/07/2013,3479920,9750870,1565.25,CARLTON FUELS                           ,466741,Vehicles Not Buses,FUEL DEALERS                  
STANIFORTH ROAD WORKSHOPS     ,7010,ROUTINE VEHICLE REPAIR & MTCE ,03/07/2013,3479922,175697,1550.84,F R SHARROCK LTD                        ,440994,Unclassified Trade,AGRICULTURAL ENGINEERS        
STANIFORTH ROAD WORKSHOPS     ,7010,ROUTINE VEHICLE REPAIR & MTCE ,03/07/2013,3479924,175696,915.55,F R SHARROCK LTD                        ,440994,Unclassified Trade,AGRICULTURAL ENGINEERS        
STANIFORTH ROAD WORKSHOPS     ,7010,ROUTINE VEHICLE REPAIR & MTCE ,03/07/2013,3479925,175041,1247.72,F R SHARROCK LTD                        ,440994,Unclassified Trade,AGRICULTURAL ENGINEERS        
ADULT SOCIAL CARE PURCHASING  ,9190,DIRECT PAYMENTS               ,03/07/2013,3479614,J641810                  ,2551.59,REDACTED PERSONAL DATA,443874,Social Community Care,CAREFIRST DIRECT PAYMENTS     
ADULT SOCIAL CARE PURCHASING  ,9190,DIRECT PAYMENTS               ,03/07/2013,3479615,J641810                  ,799.49,REDACTED PERSONAL DATA,535312,Social Community Care,CAREFIRST DIRECT PAYMENTS     
PURCHASING                    ,9190,DIRECT PAYMENTS               ,03/07/2013,3479616,J641810                  ,13198.90,SHEFFIELD MIND                          ,556296,Social Community Care,CAREFIRST DIRECT PAYMENTS     
ADULT SOCIAL CARE PURCHASING  ,9190,DIRECT PAYMENTS               ,03/07/2013,3479617,J641810                  ,712.75,PENDERELS TRUST                         ,556454,Social Community Care,CAREFIRST DIRECT PAYMENTS     
PURCHASING LEARNING DISABILITI,4260,DIRECT PAYMENTS               ,03/07/2013,3479619,J641810                  ,337.92,AUTISM PLUS                             ,557461,Social Community Care,CAREFIRST DIRECT PAYMENTS     
ADULT SOCIAL CARE PURCHASING  ,9190,DIRECT PAYMENTS               ,03/07/2013,3479620,J641810                  ,2256.04,SACMHA                                  ,558848,Social Community Care,CAREFIRST DIRECT PAYMENTS     
PURCHASING                    ,9190,DIRECT PAYMENTS               ,03/07/2013,3479621,J641810                  ,2587.06,REDACTED PERSONAL DATA,567132,Social Community Care,CAREFIRST DIRECT PAYMENTS     
ADULT SOCIAL CARE PURCHASING  ,9190,DIRECT PAYMENTS               ,03/07/2013,3479622,J641810                  ,529.08,REDACTED PERSONAL DATA,574253,Unclassified Non Trade,OUT OF SCOPE FOR SIC MONITORIN
PURCHASING LEARNING DISABILITI,9190,DIRECT PAYMENTS               ,03/07/2013,3479624,J641810                  ,2812.53,REDACTED PERSONAL DATA,584562,Social Community Care,CAREFIRST DIRECT PAYMENTS     
PURCHASING LEARNING DISABILITI,9250,INDEPENDENT DAY CARE          ,03/07/2013,3479625,A5106DC                  ,2013.92,AUTISM PLUS LTD                         ,330606,Unclassified Non Trade,CHARITIES & VOLUNTARY ORGANISA
PURCHASING                    ,9230,CCSP OTHER                    ,03/07/2013,3479627,6287,381.13,SYHA LTD                                ,385143,Unclassified Non Trade,"HOUSING ASSOCIATIONS, SOCIETIE"
ADULT SOCIAL CARE PURCHASING  ,9190,CITYWIDE SPOT                 ,03/07/2013,3479628,7325,426.27,INTERCARE SERVICES DIRECT               ,530605,Social Community Care,HOME CARE SERVICES            
ADULT SOCIAL CARE PURCHASING  ,9190,CITYWIDE SPOT                 ,03/07/2013,3479629,7328,650.58,INTERCARE SERVICES DIRECT               ,530605,Social Community Care,HOME CARE SERVICES            
ADULT SOCIAL CARE PURCHASING  ,9190,CITYWIDE SPOT                 ,03/07/2013,3479630,7330,916.38,INTERCARE SERVICES DIRECT               ,530605,Social Community Care,HOME CARE SERVICES            
ADULT SOCIAL CARE PURCHASING  ,9190,CITYWIDE SPOT                 ,03/07/2013,3479631,7331,262.18,INTERCARE SERVICES DIRECT               ,530605,Social Community Care,HOME CARE SERVICES            
ADULT SOCIAL CARE PURCHASING  ,9190,CITYWIDE SPOT                 ,03/07/2013,3479632,7332,610.73,INTERCARE SERVICES DIRECT               ,530605,Social Community Care,HOME CARE SERVICES            
ADULT SOCIAL CARE PURCHASING  ,9190,CITYWIDE SPOT                 ,03/07/2013,3479633,7334,894.76,INTERCARE SERVICES DIRECT               ,530605,Social Community Care,HOME CARE SERVICES            
ADULT SOCIAL CARE PURCHASING  ,9190,CITYWIDE SPOT                 ,03/07/2013,3479634,7335,1992.14,INTERCARE SERVICES DIRECT               ,530605,Social Community Care,HOME CARE SERVICES            
PURCHASING LEARNING DISABILITI,9190,CITYWIDE SPOT                 ,03/07/2013,3479635,79608JW                  ,803.15,COMMUNITY HEALTH SHEFFIELD              ,361895,Unclassified Non Trade,HOSPITALS                     
PURCHASING LEARNING DISABILITI,9190,CITYWIDE SPOT                 ,03/07/2013,3479636,79608SE                  ,920.92,COMMUNITY HEALTH SHEFFIELD              ,361895,Unclassified Non Trade,HOSPITALS                     
PURCHASING LEARNING DISABILITI,9190,CITYWIDE SPOT                 ,03/07/2013,3479637,79609JW                  ,1405.52,COMMUNITY HEALTH SHEFFIELD              ,361895,Unclassified Non Trade,HOSPITALS                     
PURCHASING LEARNING DISABILITI,9190,CITYWIDE SPOT                 ,03/07/2013,3479638,79609SE                  ,920.92,COMMUNITY HEALTH SHEFFIELD              ,361895,Unclassified Non Trade,HOSPITALS                     
ADULT SOCIAL CARE PURCHASING  ,9190,CITYWIDE SPOT                 ,03/07/2013,3479640,8354ST..                 ,335.02,B C SHEFFIELD LTD TA BLUEBIRD CARE      ,568674,Social Community Care,RESIDENTIAL CARE HOMES        
PURCHASING                    ,9190,CITYWIDE SPOT                 ,03/07/2013,3479641,A5106                    ,10372.38,AUTISM PLUS LTD                         ,330606,Unclassified Non Trade,CHARITIES & VOLUNTARY ORGANISA
PURCHASING LEARNING DISABILITI,9190,CITYWIDE SPOT                 ,03/07/2013,3479641,A5106                    ,25760.03,AUTISM PLUS LTD                         ,330606,Unclassified Non Trade,CHARITIES & VOLUNTARY ORGANISA
PURCHASING LEARNING DISABILITI,9210,FUNDED NURSING CARE (INCOME)  ,03/07/2013,3479641,A5106                    ,43030.46,AUTISM PLUS LTD                         ,330606,Unclassified Non Trade,CHARITIES & VOLUNTARY ORGANISA
PURCHASING LEARNING DISABILITI,9190,CITYWIDE SPOT                 ,03/07/2013,3479642,AB/2/220683              ,2732.61,H F TRUST LIMITED                       ,362078,Unclassified Non Trade,CHARITIES & VOLUNTARY ORGANISA
PURCHASING LEARNING DISABILITI,9190,CITYWIDE SPOT                 ,03/07/2013,3479643,AB/3/221840.             ,2800.04,H F TRUST LIMITED                       ,362078,Unclassified Non Trade,CHARITIES & VOLUNTARY ORGANISA
PURCHASING                    ,9190,CITYWIDE SPOT                 ,03/07/2013,3479645,2100079901,20691.00,COMMUNITY HEALTH SHEFFIELD              ,361895,Unclassified Non Trade,HOSPITALS                     
PURCHASING                    ,9190,CITYWIDE SPOT                 ,03/07/2013,3479649,4061,905.02,PROGRESSIVE CARE (DERBYSHIRE) LTD       ,569285,Social Community Care,RESIDENTIAL CARE HOMES        
CONTACT CONTRACTS             ,9280,CONTACT                       ,03/07/2013,3479498,467 CS                   ,581.75,SHEFFIELD CHILDREN'S CENTRE             ,311908,Social Community Care,NURSERIES & CRECHES           
CONTACT CONTRACTS             ,9280,CONTACT                       ,03/07/2013,3479508,5993 KM                  ,320.30,PROGRESSIVE CARE LTD                    ,343548,Social Community Care,CHILDREN'S HOMES              
WEST SA - CIN S17             ,9280,CONTACT                       ,03/07/2013,3479511,5993 LB                  ,287.36,PROGRESSIVE CARE LTD                    ,343548,Social Community Care,CHILDREN'S HOMES              
CONTACT CONTRACTS             ,9280,CONTACT                       ,03/07/2013,3479526,467 JB                   ,705.40,SHEFFIELD CHILDREN'S CENTRE             ,311908,Social Community Care,NURSERIES & CRECHES           
CONTACT CONTRACTS             ,9280,CONTACT                       ,03/07/2013,3479527,467 JG                   ,575.45,SHEFFIELD CHILDREN'S CENTRE             ,311908,Social Community Care,NURSERIES & CRECHES           
CONTACT CONTRACTS             ,9280,CONTACT                       ,03/07/2013,3479528,467 JW                   ,668.10,SHEFFIELD CHILDREN'S CENTRE             ,311908,Social Community Care,NURSERIES & CRECHES           
WEST SA - CIN S17             ,9280,CONTACT                       ,03/07/2013,3479529,467 JWH                  ,484.20,SHEFFIELD CHILDREN'S CENTRE             ,311908,Social Community Care,NURSERIES & CRECHES           
CONTACT CONTRACTS             ,9280,CONTACT                       ,03/07/2013,3479530,467 LM                   ,935.18,SHEFFIELD CHILDREN'S CENTRE             ,311908,Social Community Care,NURSERIES & CRECHES           
CONTACT CONTRACTS             ,9280,CONTACT                       ,03/07/2013,3479531,467 NC                   ,784.35,SHEFFIELD CHILDREN'S CENTRE             ,311908,Social Community Care,NURSERIES & CRECHES           
CONTACT CONTRACTS             ,9280,CONTACT                       ,03/07/2013,3479532,467 RP                   ,1069.65,SHEFFIELD CHILDREN'S CENTRE             ,311908,Social Community Care,NURSERIES & CRECHES           
CONTACT CONTRACTS             ,9280,CONTACT                       ,03/07/2013,3479533,467 RSC                  ,520.20,SHEFFIELD CHILDREN'S CENTRE             ,311908,Social Community Care,NURSERIES & CRECHES           
CONTACT CONTRACTS             ,9280,CONTACT                       ,03/07/2013,3479534,467 RSH                  ,968.75,SHEFFIELD CHILDREN'S CENTRE             ,311908,Social Community Care,NURSERIES & CRECHES           
CONTACT CONTRACTS             ,9280,CONTACT                       ,03/07/2013,3479535,467 TH                   ,956.00,SHEFFIELD CHILDREN'S CENTRE             ,311908,Social Community Care,NURSERIES & CRECHES           
CONTACT CONTRACTS             ,9280,CONTACT                       ,03/07/2013,3479536,467 XS                   ,900.90,SHEFFIELD CHILDREN'S CENTRE             ,311908,Social Community Care,NURSERIES & CRECHES           
CONTACT CONTRACTS             ,9280,CONTACT                       ,03/07/2013,3479538,468 CS                   ,339.60,SHEFFIELD CHILDREN'S CENTRE             ,311908,Social Community Care,NURSERIES & CRECHES           
CONTACT CONTRACTS             ,9280,CONTACT                       ,03/07/2013,3479542,468 JW                   ,332.25,SHEFFIELD CHILDREN'S CENTRE             ,311908,Social Community Care,NURSERIES & CRECHES           
CONTACT CONTRACTS             ,9280,CONTACT                       ,03/07/2013,3479544,468 LM                   ,330.83,SHEFFIELD CHILDREN'S CENTRE             ,311908,Social Community Care,NURSERIES & CRECHES           
CONTACT CONTRACTS             ,9280,CONTACT                       ,03/07/2013,3479545,468 NC                   ,264.75,SHEFFIELD CHILDREN'S CENTRE             ,311908,Social Community Care,NURSERIES & CRECHES           
CONTACT CONTRACTS             ,9280,CONTACT                       ,03/07/2013,3479546,468 RP                   ,358.95,SHEFFIELD CHILDREN'S CENTRE             ,311908,Social Community Care,NURSERIES & CRECHES           
CONTACT CONTRACTS             ,9280,CONTACT                       ,03/07/2013,3479549,468 TH                   ,319.80,SHEFFIELD CHILDREN'S CENTRE             ,311908,Social Community Care,NURSERIES & CRECHES           
CONTACT CONTRACTS             ,9280,CONTACT                       ,03/07/2013,3479550,468 XS                   ,293.70,SHEFFIELD CHILDREN'S CENTRE             ,311908,Social Community Care,NURSERIES & CRECHES           
CONTACT CONTRACTS             ,9280,CONTACT                       ,03/07/2013,3479557,5992 CB                  ,267.00,PROGRESSIVE CARE LTD                    ,343548,Social Community Care,CHILDREN'S HOMES              
CONTACT CONTRACTS             ,9280,CONTACT                       ,03/07/2013,3479562,5992 EC                  ,376.88,PROGRESSIVE CARE LTD                    ,343548,Social Community Care,CHILDREN'S HOMES              
CONTACT CONTRACTS             ,9280,CONTACT                       ,03/07/2013,3479580,5992 KM                  ,325.70,PROGRESSIVE CARE LTD                    ,343548,Social Community Care,CHILDREN'S HOMES              
WEST SA - CIN S17             ,9280,CONTACT                       ,03/07/2013,3479582,5992 LB                  ,316.83,PROGRESSIVE CARE LTD                    ,343548,Social Community Care,CHILDREN'S HOMES              
NORTH SA - CIN S17            ,8490,TRANSLATN/SIGN/INTERPRET FEES ,03/07/2013,3479592,43316,3177.60,LANGUAGELINE SOLUTIONS                  ,471915,Human Resources,TRANSLATORS & INTERPRETERS    
WEST SA - CIN S17             ,9280,CONTACT                       ,03/07/2013,3479603,467 AN                   ,257.80,SHEFFIELD CHILDREN'S CENTRE             ,311908,Social Community Care,NURSERIES & CRECHES           
CONTACT CONTRACTS             ,9280,CONTACT                       ,03/07/2013,3479609,5993 EC                  ,349.40,PROGRESSIVE CARE LTD                    ,343548,Social Community Care,CHILDREN'S HOMES              
ADULT SOCIAL CARE PURCHASING  ,9200,CONTINUING RESIDENTIAL CARE   ,03/07/2013,3479482,J637508 210713           ,60370.00,IDEAL CARE HOMES                        ,524235,Social Community Care,RESIDENTIAL CARE HOMES        
ADULT SOCIAL CARE PURCHASING  ,9200,CONTINUING RESIDENTIAL CARE   ,03/07/2013,3479483,J639988 210713           ,5141.57,JASMIN COURT NURSING HOME               ,361764,Social Community Care,NURSING HOMES                 
ADULT SOCIAL CARE PURCHASING  ,9200,CONTINUING RESIDENTIAL CARE   ,03/07/2013,3479484,J641812 210713           ,12809.29,DEERLANDS                               ,361836,Social Community Care,RESIDENTIAL CARE HOMES        
ADULT SOCIAL CARE PURCHASING  ,9200,CONTINUING RESIDENTIAL CARE   ,03/07/2013,3479486,J641814 210713           ,7800.00,DARWIN HOUSE RESIDENTIAL CARE           ,361759,Social Community Care,RESIDENTIAL CARE HOMES        
ADULT SOCIAL CARE PURCHASING  ,9200,CONTINUING RESIDENTIAL CARE   ,03/07/2013,3479487,J641815 210713           ,7125.00,DARNALL VIEW RESIDENTIAL HOME           ,362170,Social Community Care,RESIDENTIAL CARE HOMES        
ADULT SOCIAL CARE PURCHASING  ,9210,CONTINUING NURSING CARE       ,03/07/2013,3479488,J641817 210713           ,34213.84,WILLOWBECK CARE CENTRE                  ,362132,Social Community Care,NURSING HOMES                 
ADULT SOCIAL CARE PURCHASING  ,9210,CONTINUING NURSING CARE       ,03/07/2013,3479489,J641818 210713           ,3574.86,CRAEGMOOR  - RICHMOND HEIGHTS           ,361933,Social Community Care,NURSING HOMES                 
ADULT SOCIAL CARE PURCHASING  ,9200,CONTINUING RESIDENTIAL CARE   ,03/07/2013,3479490,J641820 210713           ,5473.57,BROADACRES CARE HOME                    ,522768,Social Community Care,RESIDENTIAL CARE HOMES        
ADULT SOCIAL CARE PURCHASING  ,9210,CONTINUING NURSING CARE       ,03/07/2013,3479491,J641825 210713           ,8063.14,HEELEY BANK CARE HOME                   ,362923,Social Community Care,RESIDENTIAL CARE HOMES        
PURCHASING LEARNING DISABILITI,9200,SHORT TERM RESIDENTIAL CARE   ,03/07/2013,3479492,J637153 230613           ,2850.00,SHIREBROOK FIELDS                       ,362105,Social Community Care,NURSING HOMES                 
ADULT SOCIAL CARE PURCHASING  ,9200,SHORT TERM RESIDENTIAL CARE   ,03/07/2013,3479493,J639964 230613           ,1105.72,JASMIN COURT NURSING HOME               ,361764,Social Community Care,NURSING HOMES                 
DRUG & ALCOHOL MH -PURCHASING ,9200,SHORT TERM RESIDENTIAL CARE   ,03/07/2013,3479494,J641804 230613           ,5625.00,TURNING POINT SERVICES LTD              ,482885,Unclassified Non Trade,CHARITIES & VOLUNTARY ORGANISA
PURCHASING                    ,9200,SHORT TERM RESIDENTIAL CARE   ,03/07/2013,3479495,J641805 230613           ,3328.02,COMMUNITY HEALTH SHEFFIELD              ,361895,Unclassified Non Trade,HOSPITALS                     
ADULT SOCIAL CARE PURCHASING  ,9200,SHORT TERM RESIDENTIAL CARE   ,03/07/2013,3479496,J641807 230613           ,2066.71,HEELEY BANK CARE HOME                   ,362923,Social Community Care,RESIDENTIAL CARE HOMES        
PURCHASING LEARNING DISABILITI,9200,SHORT TERM RESIDENTIAL CARE   ,03/07/2013,3479497,J641809 230613           ,19800.00,ROSEBERRY CARE CENTRES UK LTD           ,412186,Social Community Care,RESIDENTIAL CARE HOMES        
SHORT BREAKS FUNDING FOR DISAB,8440,FEE EXPENSES                  ,04/07/2013,3480789,ERS INVOICE86389         ,400.00,REDACTED PERSONAL DATA,575672,Unclassified Non Trade,OUT OF SCOPE FOR SIC MONITORIN
SHORT BREAKS FUNDING FOR DISAB,8440,FEE EXPENSES                  ,04/07/2013,3480790,ERS INVOICE86390         ,400.00,REDACTED PERSONAL DATA,572821,Unclassified Non Trade,OUT OF SCOPE FOR SIC MONITORIN
SHORT BREAKS FUNDING FOR DISAB,8440,FEE EXPENSES                  ,04/07/2013,3480791,ERS INVOICE86391         ,400.00,REDACTED PERSONAL DATA,539476,Unclassified Non Trade,OUT OF SCOPE FOR SIC MONITORIN
SHORT BREAKS FUNDING FOR DISAB,8440,FEE EXPENSES                  ,04/07/2013,3480792,ERS INVOICE86392         ,400.00,REDACTED PERSONAL DATA,577464,Unclassified Non Trade,OUT OF SCOPE FOR SIC MONITORIN
SHORT BREAKS FUNDING FOR DISAB,8440,FEE EXPENSES                  ,04/07/2013,3480793,ERS INVOICE86393         ,400.00,REDACTED PERSONAL DATA,535673,Unclassified Non Trade,OUT OF SCOPE FOR SIC MONITORIN
SHORT BREAKS FUNDING FOR DISAB,8440,FEE EXPENSES                  ,04/07/2013,3480794,ERS INVOICE86394         ,400.00,REDACTED PERSONAL DATA,577452,Unclassified Non Trade,OUT OF SCOPE FOR SIC MONITORIN
SHORT BREAKS FUNDING FOR DISAB,8440,FEE EXPENSES                  ,04/07/2013,3480795,ERS INVOICE86395         ,400.00,REDACTED PERSONAL DATA,558782,Unclassified Non Trade,OUT OF SCOPE FOR SIC MONITORIN
SHORT BREAKS FUNDING FOR DISAB,8440,FEE EXPENSES                  ,04/07/2013,3480796,ERS INVOICE86396         ,400.00,REDACTED PERSONAL DATA,536274,Unclassified Non Trade,OUT OF SCOPE FOR SIC MONITORIN
SHORT BREAKS FUNDING FOR DISAB,8440,FEE EXPENSES                  ,04/07/2013,3480798,ERS INVOICE86398         ,400.00,REDACTED PERSONAL DATA,546086,Unclassified Non Trade,OUT OF SCOPE FOR SIC MONITORIN
SHORT BREAKS FUNDING FOR DISAB,8440,FEE EXPENSES                  ,04/07/2013,3480799,ERS INVOICE86399         ,400.00,REDACTED PERSONAL DATA,531058,Unclassified Non Trade,OUT OF SCOPE FOR SIC MONITORIN
SHORT BREAKS FUNDING FOR DISAB,8440,FEE EXPENSES                  ,04/07/2013,3480800,ERS INVOICE86400         ,400.00,REDACTED PERSONAL DATA,535271,Unclassified Non Trade,OUT OF SCOPE FOR SIC MONITORIN
SHORT BREAKS FUNDING FOR DISAB,8440,FEE EXPENSES                  ,04/07/2013,3480801,ERS INVOICE86401         ,400.00,REDACTED PERSONAL DATA,569634,Unclassified Non Trade,OUT OF SCOPE FOR SIC MONITORIN
SHORT BREAKS FUNDING FOR DISAB,8440,FEE EXPENSES                  ,04/07/2013,3480802,ERS INVOICE86402         ,400.00,REDACTED PERSONAL DATA,575705,Unclassified Non Trade,OUT OF SCOPE FOR SIC MONITORIN
SHORT BREAKS FUNDING FOR DISAB,8440,FEE EXPENSES                  ,04/07/2013,3480803,ERS INVOICE86403         ,400.00,REDACTED PERSONAL DATA,543609,Unclassified Non Trade,OUT OF SCOPE FOR SIC MONITORIN
SHORT BREAKS FUNDING FOR DISAB,8440,FEE EXPENSES                  ,04/07/2013,3480804,ERS INVOICE86404         ,400.00,REDACTED PERSONAL DATA,534051,Unclassified Non Trade,OUT OF SCOPE FOR SIC MONITORIN
SHORT BREAKS FUNDING FOR DISAB,8440,FEE EXPENSES                  ,04/07/2013,3480805,ERS INVOICE86405         ,400.00,REDACTED PERSONAL DATA,537283,Unclassified Non Trade,OUT OF SCOPE FOR SIC MONITORIN
SHORT BREAKS FUNDING FOR DISAB,8440,FEE EXPENSES                  ,04/07/2013,3480806,ERS INVOICE86406         ,400.00,REDACTED PERSONAL DATA,535930,Unclassified Non Trade,OUT OF SCOPE FOR SIC MONITORIN
SHORT BREAKS FUNDING FOR DISAB,8440,FEE EXPENSES                  ,04/07/2013,3480807,ERS INVOICE86407         ,400.00,REDACTED PERSONAL DATA,571547,Unclassified Non Trade,OUT OF SCOPE FOR SIC MONITORIN
SHORT BREAKS FUNDING FOR DISAB,8440,FEE EXPENSES                  ,04/07/2013,3480808,ERS INVOICE86408         ,400.00,REDACTED PERSONAL DATA,532660,Unclassified Non Trade,OUT OF SCOPE FOR SIC MONITORIN
SHORT BREAKS FUNDING FOR DISAB,8440,FEE EXPENSES                  ,04/07/2013,3480809,ERS INVOICE86409         ,400.00,REDACTED PERSONAL DATA,535302,Unclassified Non Trade,OUT OF SCOPE FOR SIC MONITORIN
SHORT BREAKS FUNDING FOR DISAB,8440,FEE EXPENSES                  ,04/07/2013,3480810,ERS INVOICE86410         ,400.00,REDACTED PERSONAL DATA,535445,Unclassified Non Trade,OUT OF SCOPE FOR SIC MONITORIN
SHORT BREAKS FUNDING FOR DISAB,8440,FEE EXPENSES                  ,04/07/2013,3480811,ERS INVOICE86411         ,400.00,REDACTED PERSONAL DATA,544202,Unclassified Non Trade,OUT OF SCOPE FOR SIC MONITORIN
SHORT BREAKS FUNDING FOR DISAB,8440,FEE EXPENSES                  ,04/07/2013,3480955,ERS INVOICE86431         ,400.00,REDACTED PERSONAL DATA,575185,Unclassified Non Trade,OUT OF SCOPE FOR SIC MONITORIN
SHORT BREAKS FUNDING FOR DISAB,8440,FEE EXPENSES                  ,04/07/2013,3480956,ERS INVOICE86432         ,400.00,REDACTED PERSONAL DATA,575696,Unclassified Non Trade,OUT OF SCOPE FOR SIC MONITORIN
SHORT BREAKS FUNDING FOR DISAB,8440,FEE EXPENSES                  ,04/07/2013,3480957,ERS INVOICE86433         ,400.00,REDACTED PERSONAL DATA,557349,Unclassified Non Trade,OUT OF SCOPE FOR SIC MONITORIN
SHORT BREAKS FUNDING FOR DISAB,8440,FEE EXPENSES                  ,04/07/2013,3480958,ERS INVOICE86434         ,400.00,REDACTED PERSONAL DATA,563031,Unclassified Non Trade,OUT OF SCOPE FOR SIC MONITORIN
SHORT BREAKS FUNDING FOR DISAB,8440,FEE EXPENSES                  ,04/07/2013,3480978,ERS INVOICE86454         ,400.00,REDACTED PERSONAL DATA,537962,Unclassified Non Trade,OUT OF SCOPE FOR SIC MONITORIN
SHORT BREAKS FUNDING FOR DISAB,8440,FEE EXPENSES                  ,04/07/2013,3480979,ERS INVOICE86455         ,400.00,REDACTED PERSONAL DATA,538006,Unclassified Non Trade,OUT OF SCOPE FOR SIC MONITORIN
SHORT BREAKS FUNDING FOR DISAB,8440,FEE EXPENSES                  ,04/07/2013,3480980,ERS INVOICE86456         ,400.00,REDACTED PERSONAL DATA,538887,Unclassified Non Trade,OUT OF SCOPE FOR SIC MONITORIN
SHORT BREAKS FUNDING FOR DISAB,8440,FEE EXPENSES                  ,04/07/2013,3480981,ERS INVOICE86457         ,400.00,REDACTED PERSONAL DATA,532403,Unclassified Non Trade,OUT OF SCOPE FOR SIC MONITORIN
SHORT BREAKS FUNDING FOR DISAB,8440,FEE EXPENSES                  ,04/07/2013,3480982,ERS INVOICE86458         ,400.00,REDACTED PERSONAL DATA,553108,Unclassified Non Trade,OUT OF SCOPE FOR SIC MONITORIN
SHORT BREAKS FUNDING FOR DISAB,8440,FEE EXPENSES                  ,04/07/2013,3480983,ERS INVOICE86459         ,400.00,REDACTED PERSONAL DATA,445176,Social Community Care,ADOPTION & FOSTERING          
SHORT BREAKS FUNDING FOR DISAB,8440,FEE EXPENSES                  ,04/07/2013,3480984,ERS INVOICE86460         ,400.00,REDACTED PERSONAL DATA,535308,Unclassified Non Trade,OUT OF SCOPE FOR SIC MONITORIN
SHORT BREAKS FUNDING FOR DISAB,8440,FEE EXPENSES                  ,04/07/2013,3480985,ERS INVOICE86461         ,400.00,REDACTED PERSONAL DATA,563635,Unclassified Non Trade,OUT OF SCOPE FOR SIC MONITORIN
SHORT BREAKS FUNDING FOR DISAB,8440,FEE EXPENSES                  ,04/07/2013,3480986,ERS INVOICE86462         ,400.00,REDACTED PERSONAL DATA,538558,Unclassified Non Trade,OUT OF SCOPE FOR SIC MONITORIN
SHORT BREAKS FUNDING FOR DISAB,8440,FEE EXPENSES                  ,04/07/2013,3480987,ERS INVOICE86463         ,400.00,REDACTED PERSONAL DATA,556225,Unclassified Non Trade,OUT OF SCOPE FOR SIC MONITORIN
SHORT BREAKS FUNDING FOR DISAB,8440,FEE EXPENSES                  ,04/07/2013,3480988,ERS INVOICE86464         ,400.00,REDACTED PERSONAL DATA,556829,Unclassified Non Trade,OUT OF SCOPE FOR SIC MONITORIN
SHORT BREAKS FUNDING FOR DISAB,8440,FEE EXPENSES                  ,04/07/2013,3480989,ERS INVOICE86465         ,400.00,REDACTED PERSONAL DATA,544476,Unclassified Non Trade,OUT OF SCOPE FOR SIC MONITORIN
SHORT BREAKS FUNDING FOR DISAB,8440,FEE EXPENSES                  ,04/07/2013,3480990,ERS INVOICE86466         ,400.00,REDACTED PERSONAL DATA,546317,Unclassified Non Trade,OUT OF SCOPE FOR SIC MONITORIN
SHORT BREAKS FUNDING FOR DISAB,8440,FEE EXPENSES                  ,04/07/2013,3480991,ERS INVOICE86467         ,400.00,REDACTED PERSONAL DATA,575916,Unclassified Non Trade,OUT OF SCOPE FOR SIC MONITORIN
SHORT BREAKS FUNDING FOR DISAB,8440,FEE EXPENSES                  ,04/07/2013,3480992,ERS INVOICE86468         ,400.00,REDACTED PERSONAL DATA,536270,Unclassified Non Trade,OUT OF SCOPE FOR SIC MONITORIN
SHORT BREAKS FUNDING FOR DISAB,8440,FEE EXPENSES                  ,04/07/2013,3480993,ERS INVOICE86469         ,400.00,REDACTED PERSONAL DATA,544702,Unclassified Non Trade,OUT OF SCOPE FOR SIC MONITORIN
SHORT BREAKS FUNDING FOR DISAB,8440,FEE EXPENSES                  ,04/07/2013,3480994,ERS INVOICE86470         ,400.00,REDACTED PERSONAL DATA,535918,Unclassified Non Trade,OUT OF SCOPE FOR SIC MONITORIN
SHORT BREAKS FUNDING FOR DISAB,8440,FEE EXPENSES                  ,04/07/2013,3480995,ERS INVOICE86471         ,400.00,REDACTED PERSONAL DATA,535447,Unclassified Non Trade,OUT OF SCOPE FOR SIC MONITORIN
SHORT BREAKS FUNDING FOR DISAB,8440,FEE EXPENSES                  ,04/07/2013,3480996,ERS INVOICE86472         ,400.00,REDACTED PERSONAL DATA,542614,Social Community Care,ADOPTION & FOSTERING          
SHORT BREAKS FUNDING FOR DISAB,8440,FEE EXPENSES                  ,04/07/2013,3481017,ERS INVOICE86493         ,400.00,REDACTED PERSONAL DATA,557984,Unclassified Non Trade,OUT OF SCOPE FOR SIC MONITORIN
SHORT BREAKS FUNDING FOR DISAB,8440,FEE EXPENSES                  ,04/07/2013,3481018,ERS INVOICE86494         ,400.00,REDACTED PERSONAL DATA,538587,Unclassified Non Trade,OUT OF SCOPE FOR SIC MONITORIN
SHORT BREAKS FUNDING FOR DISAB,8440,FEE EXPENSES                  ,04/07/2013,3481019,ERS INVOICE86495         ,400.00,REDACTED PERSONAL DATA,537996,Unclassified Non Trade,OUT OF SCOPE FOR SIC MONITORIN
CATERING PREMISES & EQUIPMENT ,8030,EQUIPMENT MAINTENANCE CONTRACT,04/07/2013,3467630,49759,635.00,BARNSLEY CATERING SERVICES LTD          ,203262,Catering,CATERING EQUIPMENT            
RED TAPE CENTRAL              ,8490,EXAM FEES                     ,04/07/2013,3476314,802856319,491.50,CITY & GUILDS                           ,424267,Education,EXAMINATION BOARDS            
TAMHS                         ,9120,OTHER AGENCIES                ,04/07/2013,3477092,16104,32422.50,FAMILY ACTION                           ,469656,Medical ,COUNSELLING & ADVICE SERVICES 
CATERING PREMISES & EQUIPMENT ,8010,EQUIPMENT PURCHASE AND REPAIR ,04/07/2013,3477184,49884,404.51,BARNSLEY CATERING SERVICES LTD          ,203262,Catering,CATERING EQUIPMENT            
RED TAPE CENTRAL              ,5610,AGENCY STAFF                  ,04/07/2013,3477291,PNS122720                ,1116.68,PROTOCOL NATIONAL LTD                   ,570558,Education,EDUCATIONAL SERVICES          
GENETIC WORKS                 ,9030,HEALTH                        ,04/07/2013,3477335,1800094661,3900.00,UNIVERSITY OF SHEFFIELD                 ,396227,Unclassified Non Trade,UNIVERSITIES & MEDICAL SCHOOLS
BANDED FUNDING                ,9050,OTHER LOCAL AUTHORITIES       ,04/07/2013,3479968,1E+17,2565.75,DERBYSHIRE COUNTY COUNCIL               ,299578,Unclassified Non Trade,LOCAL GOVERNMENT              
BANDED FUNDING                ,9050,OTHER LOCAL AUTHORITIES       ,04/07/2013,3479969,1E+17,3926.45,DERBYSHIRE COUNTY COUNCIL               ,299578,Unclassified Non Trade,LOCAL GOVERNMENT              
BANDED FUNDING                ,9050,OTHER LOCAL AUTHORITIES       ,04/07/2013,3479970,1E+17,1710.50,DERBYSHIRE COUNTY COUNCIL               ,299578,Unclassified Non Trade,LOCAL GOVERNMENT              
MDC - ALISON CRESCENT         ,1157,DWELLINGS MAIN CONTRACT       ,04/07/2013,3480771,ERS INVOICE86367         ,128514.02,MANOR DEVELOPMENT COMPANY LIMITED       ,489589,Unclassified Non Trade,COMMUNITY NETWORKS            
MADE IN SHEFFIELD             ,8440,FEE EXPENSES                  ,04/07/2013,3480774,ERS INVOICE86374         ,3240.00,ADAM BAILLIE                            ,464860,Consultancy,ENGINEERS - CONSULTING        
SHEFFIELD COMMUNITY NETWORK   ,9120,OTHER AGENCIES                ,04/07/2013,3480775,ERS INVOICE86375         ,2731.00,THIRD SECTOR SOLUTIONS                  ,531334,Unclassified Non Trade,CHARITIES & VOLUNTARY ORGANISA
SHORT BREAKS FUNDING FOR DISAB,8440,FEE EXPENSES                  ,04/07/2013,3480777,ERS INVOICE86377         ,400.00,REDACTED PERSONAL DATA,536321,Unclassified Non Trade,OUT OF SCOPE FOR SIC MONITORIN
SHORT BREAKS FUNDING FOR DISAB,8440,FEE EXPENSES                  ,04/07/2013,3480778,ERS INVOICE86378         ,400.00,REDACTED PERSONAL DATA,537135,Unclassified Non Trade,OUT OF SCOPE FOR SIC MONITORIN
SHORT BREAKS FUNDING FOR DISAB,8440,FEE EXPENSES                  ,04/07/2013,3480779,ERS INVOICE86379         ,400.00,REDACTED PERSONAL DATA,575855,Unclassified Non Trade,OUT OF SCOPE FOR SIC MONITORIN
SHORT BREAKS FUNDING FOR DISAB,8440,FEE EXPENSES                  ,04/07/2013,3480780,ERS INVOICE86380         ,400.00,REDACTED PERSONAL DATA,534053,Unclassified Non Trade,OUT OF SCOPE FOR SIC MONITORIN
SHORT BREAKS FUNDING FOR DISAB,8440,FEE EXPENSES                  ,04/07/2013,3480782,ERS INVOICE86382         ,400.00,REDACTED PERSONAL DATA,576335,Unclassified Non Trade,OUT OF SCOPE FOR SIC MONITORIN
SHORT BREAKS FUNDING FOR DISAB,8440,FEE EXPENSES                  ,04/07/2013,3480783,ERS INVOICE86383         ,400.00,REDACTED PERSONAL DATA,575703,Unclassified Non Trade,OUT OF SCOPE FOR SIC MONITORIN
SHORT BREAKS FUNDING FOR DISAB,8440,FEE EXPENSES                  ,04/07/2013,3480784,ERS INVOICE86384         ,400.00,REDACTED PERSONAL DATA,572759,Unclassified Non Trade,OUT OF SCOPE FOR SIC MONITORIN
SHORT BREAKS FUNDING FOR DISAB,8440,FEE EXPENSES                  ,04/07/2013,3480785,ERS INVOICE86385         ,400.00,REDACTED PERSONAL DATA,533957,Unclassified Non Trade,OUT OF SCOPE FOR SIC MONITORIN
SHORT BREAKS FUNDING FOR DISAB,8440,FEE EXPENSES                  ,04/07/2013,3480786,ERS INVOICE86386         ,400.00,REDACTED PERSONAL DATA,536303,Unclassified Non Trade,OUT OF SCOPE FOR SIC MONITORIN
SHORT BREAKS FUNDING FOR DISAB,8440,FEE EXPENSES                  ,04/07/2013,3480787,ERS INVOICE86387         ,400.00,REDACTED PERSONAL DATA,535521,Unclassified Non Trade,OUT OF SCOPE FOR SIC MONITORIN
SHORT BREAKS FUNDING FOR DISAB,8440,FEE EXPENSES                  ,04/07/2013,3480788,ERS INVOICE86388         ,400.00,REDACTED PERSONAL DATA,538549,Unclassified Non Trade,OUT OF SCOPE FOR SIC MONITORIN
STRATEGIC DEVELOPMENT MANAGER ,8440,FEE EXPENSES                  ,04/07/2013,3480835,ERS INVOICE86412         ,48000.00,REDACTED PERSONAL DATA,558276,Unclassified Non Trade,OUT OF SCOPE FOR SIC MONITORIN
FOSTERING DEVELOPMENT         ,8010,EQUIPMENT PURCHASE AND REPAIR ,04/07/2013,3480937,ERS INVOICE86413         ,397.67,REDACTED PERSONAL DATA,573934,Social Community Care,ADOPTION & FOSTERING          
ADOPTION SERVICE              ,9120,OTHER AGENCIES                ,04/07/2013,3480938,ERS INVOICE86414         ,400.00,REDACTED PERSONAL DATA,541079,Social Community Care,ADOPTION & FOSTERING          
SPECIAL GUARDIANSHIP          ,9270,RESIDENCE ORDERS              ,04/07/2013,3480939,ERS INVOICE86415         ,488.25,HAMILTON HOUSE NURSERY                  ,339524,Social Community Care,NURSERIES & CRECHES           
FOSTERING DEVELOPMENT         ,8010,EQUIPMENT PURCHASE AND REPAIR ,04/07/2013,3480940,ERS INVOICE86416         ,255.00,REDACTED PERSONAL DATA,493410,Social Community Care,ADOPTION & FOSTERING          
CLAIMS                        ,8740,EMPLOYERS LIABILITY           ,04/07/2013,3480941,ERS INVOICE86417         ,7500.00,IMPERIUM LAW SOLICITORS                 ,582033,Legal Services,SOLICITORS                    
CLAIMS                        ,8740,MOTOR VEHICLE                 ,04/07/2013,3480942,ERS INVOICE86418         ,4611.64,AVIVA                                   ,584756,Unclassified Trade,COMPENSATION CLAIMS           
SHORT BREAKS FUNDING FOR DISAB,8440,FEE EXPENSES                  ,04/07/2013,3480943,ERS INVOICE86419         ,400.00,REDACTED PERSONAL DATA,534856,Unclassified Non Trade,OUT OF SCOPE FOR SIC MONITORIN
SHORT BREAKS FUNDING FOR DISAB,8440,FEE EXPENSES                  ,04/07/2013,3480944,ERS INVOICE86420         ,400.00,REDACTED PERSONAL DATA,538533,Unclassified Non Trade,OUT OF SCOPE FOR SIC MONITORIN
SHORT BREAKS FUNDING FOR DISAB,8440,FEE EXPENSES                  ,04/07/2013,3480945,ERS INVOICE86421         ,400.00,REDACTED PERSONAL DATA,576766,Unclassified Non Trade,OUT OF SCOPE FOR SIC MONITORIN
SHORT BREAKS FUNDING FOR DISAB,8440,FEE EXPENSES                  ,04/07/2013,3480946,ERS INVOICE86422         ,400.00,REDACTED PERSONAL DATA,333838,Social Community Care,ADOPTION & FOSTERING          
SHORT BREAKS FUNDING FOR DISAB,8440,FEE EXPENSES                  ,04/07/2013,3480947,ERS INVOICE86423         ,400.00,REDACTED PERSONAL DATA,539202,Unclassified Non Trade,OUT OF SCOPE FOR SIC MONITORIN
SHORT BREAKS FUNDING FOR DISAB,8440,FEE EXPENSES                  ,04/07/2013,3480948,ERS INVOICE86424         ,400.00,REDACTED PERSONAL DATA,539370,Unclassified Non Trade,OUT OF SCOPE FOR SIC MONITORIN
SHORT BREAKS FUNDING FOR DISAB,8440,FEE EXPENSES                  ,04/07/2013,3480949,ERS INVOICE86425         ,400.00,REDACTED PERSONAL DATA,539456,Unclassified Non Trade,OUT OF SCOPE FOR SIC MONITORIN
SHORT BREAKS FUNDING FOR DISAB,8440,FEE EXPENSES                  ,04/07/2013,3480950,ERS INVOICE86426         ,400.00,REDACTED PERSONAL DATA,559209,Unclassified Non Trade,OUT OF SCOPE FOR SIC MONITORIN
SHORT BREAKS FUNDING FOR DISAB,8440,FEE EXPENSES                  ,04/07/2013,3480951,ERS INVOICE86427         ,400.00,REDACTED PERSONAL DATA,512755,Unclassified Non Trade,OUT OF SCOPE FOR SIC MONITORIN
SHORT BREAKS FUNDING FOR DISAB,8440,FEE EXPENSES                  ,04/07/2013,3480952,ERS INVOICE86428         ,400.00,REDACTED PERSONAL DATA,542095,Unclassified Non Trade,OUT OF SCOPE FOR SIC MONITORIN
SHORT BREAKS FUNDING FOR DISAB,8440,FEE EXPENSES                  ,04/07/2013,3480953,ERS INVOICE86429         ,400.00,REDACTED PERSONAL DATA,559229,Unclassified Non Trade,OUT OF SCOPE FOR SIC MONITORIN
TACKLING POVERTY              ,8180,GRANTS                        ,04/07/2013,3480954,ERS INVOICE86430         ,1371.00,HEELEY ADVICE CENTRE                    ,336752,Unclassified Non Trade,CHARITIES & VOLUNTARY ORGANISA
TACKLING POVERTY              ,8180,GRANTS                        ,04/07/2013,3480959,ERS INVOICE86435         ,1372.00,HEELEY ADVICE CENTRE                    ,336752,Unclassified Non Trade,CHARITIES & VOLUNTARY ORGANISA
SHORT BREAKS FUNDING FOR DISAB,8440,FEE EXPENSES                  ,04/07/2013,3480960,ERS INVOICE86436         ,400.00,REDACTED PERSONAL DATA,538866,Unclassified Non Trade,OUT OF SCOPE FOR SIC MONITORIN
SHORT BREAKS FUNDING FOR DISAB,8440,FEE EXPENSES                  ,04/07/2013,3480961,ERS INVOICE86437         ,400.00,REDACTED PERSONAL DATA,554587,Unclassified Non Trade,OUT OF SCOPE FOR SIC MONITORIN
SHORT BREAKS FUNDING FOR DISAB,8440,FEE EXPENSES                  ,04/07/2013,3480962,ERS INVOICE86438         ,400.00,REDACTED PERSONAL DATA,572318,Unclassified Non Trade,OUT OF SCOPE FOR SIC MONITORIN
SHORT BREAKS FUNDING FOR DISAB,8440,FEE EXPENSES                  ,04/07/2013,3480963,ERS INVOICE86439         ,400.00,REDACTED PERSONAL DATA,539470,Unclassified Non Trade,OUT OF SCOPE FOR SIC MONITORIN
HULL - HUMBER SUB REGION HAL  ,1194,OTHER FEES                    ,04/07/2013,3480964,ERS INVOICE86440         ,2000.00,REDACTED PERSONAL DATA,578962,Unclassified Non Trade,OUT OF SCOPE FOR SIC MONITORIN
SHORT BREAKS FUNDING FOR DISAB,8440,FEE EXPENSES                  ,04/07/2013,3480965,ERS INVOICE86441         ,400.00,REDACTED PERSONAL DATA,536242,Unclassified Non Trade,OUT OF SCOPE FOR SIC MONITORIN
SHORT BREAKS FUNDING FOR DISAB,8440,FEE EXPENSES                  ,04/07/2013,3480966,ERS INVOICE86442         ,400.00,REDACTED PERSONAL DATA,535263,Unclassified Non Trade,OUT OF SCOPE FOR SIC MONITORIN
SHORT BREAKS FUNDING FOR DISAB,8440,FEE EXPENSES                  ,04/07/2013,3480967,ERS INVOICE86443         ,400.00,REDACTED PERSONAL DATA,540575,Unclassified Non Trade,OUT OF SCOPE FOR SIC MONITORIN
SHORT BREAKS FUNDING FOR DISAB,8440,FEE EXPENSES                  ,04/07/2013,3480968,ERS INVOICE86444         ,400.00,REDACTED PERSONAL DATA,576739,Unclassified Non Trade,OUT OF SCOPE FOR SIC MONITORIN
SHORT BREAKS FUNDING FOR DISAB,8440,FEE EXPENSES                  ,04/07/2013,3480969,ERS INVOICE86445         ,400.00,REDACTED PERSONAL DATA,555296,Unclassified Non Trade,OUT OF SCOPE FOR SIC MONITORIN
SHORT BREAKS FUNDING FOR DISAB,8440,FEE EXPENSES                  ,04/07/2013,3480970,ERS INVOICE86446         ,400.00,REDACTED PERSONAL DATA,538870,Unclassified Non Trade,OUT OF SCOPE FOR SIC MONITORIN
SHORT BREAKS FUNDING FOR DISAB,8440,FEE EXPENSES                  ,04/07/2013,3480971,ERS INVOICE86447         ,400.00,REDACTED PERSONAL DATA,539368,Unclassified Non Trade,OUT OF SCOPE FOR SIC MONITORIN
SHORT BREAKS FUNDING FOR DISAB,8440,FEE EXPENSES                  ,04/07/2013,3480972,ERS INVOICE86448         ,400.00,REDACTED PERSONAL DATA,556228,Unclassified Non Trade,OUT OF SCOPE FOR SIC MONITORIN
SHORT BREAKS FUNDING FOR DISAB,8440,FEE EXPENSES                  ,04/07/2013,3480973,ERS INVOICE86449         ,400.00,REDACTED PERSONAL DATA,562444,Unclassified Non Trade,OUT OF SCOPE FOR SIC MONITORIN
SHORT BREAKS FUNDING FOR DISAB,8440,FEE EXPENSES                  ,04/07/2013,3480974,ERS INVOICE86450         ,359.00,REDACTED PERSONAL DATA,576904,Unclassified Non Trade,OUT OF SCOPE FOR SIC MONITORIN
SHORT BREAKS FUNDING FOR DISAB,8440,FEE EXPENSES                  ,04/07/2013,3480975,ERS INVOICE86451         ,400.00,REDACTED PERSONAL DATA,533562,Unclassified Non Trade,OUT OF SCOPE FOR SIC MONITORIN
SHORT BREAKS FUNDING FOR DISAB,8440,FEE EXPENSES                  ,04/07/2013,3480976,ERS INVOICE86452         ,400.00,REDACTED PERSONAL DATA,535032,Unclassified Non Trade,OUT OF SCOPE FOR SIC MONITORIN
SHORT BREAKS FUNDING FOR DISAB,8440,FEE EXPENSES                  ,04/07/2013,3480977,ERS INVOICE86453         ,400.00,REDACTED PERSONAL DATA,539647,Unclassified Non Trade,OUT OF SCOPE FOR SIC MONITORIN
DEVELOPMENT CONTROL           ,4180,PLANNING APPLICATION FEES     ,04/07/2013,3480997,ERS INVOICE86473         ,385.00,REDACTED PERSONAL DATA,582968,Unclassified Non Trade,OUT OF SCOPE FOR SIC MONITORIN
SHORT BREAKS FUNDING FOR DISAB,8440,FEE EXPENSES                  ,04/07/2013,3480998,ERS INVOICE86474         ,400.00,REDACTED PERSONAL DATA,536314,Unclassified Non Trade,OUT OF SCOPE FOR SIC MONITORIN
SHORT BREAKS FUNDING FOR DISAB,8440,FEE EXPENSES                  ,04/07/2013,3480999,ERS INVOICE86475         ,400.00,REDACTED PERSONAL DATA,546075,Unclassified Non Trade,OUT OF SCOPE FOR SIC MONITORIN
SHORT BREAKS FUNDING FOR DISAB,8440,FEE EXPENSES                  ,04/07/2013,3481000,ERS INVOICE86476         ,400.00,REDACTED PERSONAL DATA,576723,Unclassified Non Trade,OUT OF SCOPE FOR SIC MONITORIN
SHORT BREAKS FUNDING FOR DISAB,8440,FEE EXPENSES                  ,04/07/2013,3481002,ERS INVOICE86478         ,400.00,REDACTED PERSONAL DATA,535783,Unclassified Non Trade,OUT OF SCOPE FOR SIC MONITORIN
SHORT BREAKS FUNDING FOR DISAB,8440,FEE EXPENSES                  ,04/07/2013,3481003,ERS INVOICE86479         ,400.00,REDACTED PERSONAL DATA,570729,Unclassified Non Trade,OUT OF SCOPE FOR SIC MONITORIN
SHORT BREAKS FUNDING FOR DISAB,8440,FEE EXPENSES                  ,04/07/2013,3481004,ERS INVOICE86480         ,400.00,REDACTED PERSONAL DATA,560513,Unclassified Non Trade,OUT OF SCOPE FOR SIC MONITORIN
SHORT BREAKS FUNDING FOR DISAB,8440,FEE EXPENSES                  ,04/07/2013,3481005,ERS INVOICE86481         ,400.00,REDACTED PERSONAL DATA,538397,Unclassified Non Trade,OUT OF SCOPE FOR SIC MONITORIN
SHORT BREAKS FUNDING FOR DISAB,8440,FEE EXPENSES                  ,04/07/2013,3481006,ERS INVOICE86482         ,400.00,REDACTED PERSONAL DATA,555238,Unclassified Non Trade,OUT OF SCOPE FOR SIC MONITORIN
SHORT BREAKS FUNDING FOR DISAB,8440,FEE EXPENSES                  ,04/07/2013,3481007,ERS INVOICE86483         ,400.00,REDACTED PERSONAL DATA,540577,Unclassified Non Trade,OUT OF SCOPE FOR SIC MONITORIN
SHORT BREAKS FUNDING FOR DISAB,8440,FEE EXPENSES                  ,04/07/2013,3481008,ERS INVOICE86484         ,400.00,REDACTED PERSONAL DATA,532732,Unclassified Non Trade,OUT OF SCOPE FOR SIC MONITORIN
SHORT BREAKS FUNDING FOR DISAB,8440,FEE EXPENSES                  ,04/07/2013,3481009,ERS INVOICE86485         ,400.00,REDACTED PERSONAL DATA,535443,Unclassified Non Trade,OUT OF SCOPE FOR SIC MONITORIN
SHORT BREAKS FUNDING FOR DISAB,8440,FEE EXPENSES                  ,04/07/2013,3481010,ERS INVOICE86486         ,400.00,REDACTED PERSONAL DATA,558029,Unclassified Non Trade,OUT OF SCOPE FOR SIC MONITORIN
SHORT BREAKS FUNDING FOR DISAB,8440,FEE EXPENSES                  ,04/07/2013,3481011,ERS INVOICE86487         ,400.00,REDACTED PERSONAL DATA,535537,Unclassified Non Trade,OUT OF SCOPE FOR SIC MONITORIN
SHORT BREAKS FUNDING FOR DISAB,8440,FEE EXPENSES                  ,04/07/2013,3481012,ERS INVOICE86488         ,400.00,REDACTED PERSONAL DATA,539190,Unclassified Non Trade,OUT OF SCOPE FOR SIC MONITORIN
SHORT BREAKS FUNDING FOR DISAB,8440,FEE EXPENSES                  ,04/07/2013,3481013,ERS INVOICE86489         ,400.00,REDACTED PERSONAL DATA,555367,Unclassified Non Trade,OUT OF SCOPE FOR SIC MONITORIN
SHORT BREAKS FUNDING FOR DISAB,8440,FEE EXPENSES                  ,04/07/2013,3481014,ERS INVOICE86490         ,400.00,REDACTED PERSONAL DATA,570345,Unclassified Non Trade,OUT OF SCOPE FOR SIC MONITORIN
SHORT BREAKS FUNDING FOR DISAB,8440,FEE EXPENSES                  ,04/07/2013,3481015,ERS INVOICE86491         ,400.00,REDACTED PERSONAL DATA,536735,Unclassified Non Trade,OUT OF SCOPE FOR SIC MONITORIN
SHORT BREAKS FUNDING FOR DISAB,8440,FEE EXPENSES                  ,04/07/2013,3481016,ERS INVOICE86492         ,400.00,REDACTED PERSONAL DATA,535045,Unclassified Non Trade,OUT OF SCOPE FOR SIC MONITORIN
EP LOANS BRADFORD             ,1194,OTHER FEES                    ,04/07/2013,3481020,ERS INVOICE86496         ,299.00,WAKE SMITH & TOFIELDS SOLICITORS        ,209393,Legal Services,SOLICITORS                    
SHORT BREAKS FUNDING FOR DISAB,8440,FEE EXPENSES                  ,04/07/2013,3481021,ERS INVOICE86497         ,400.00,REDACTED PERSONAL DATA,562617,Unclassified Non Trade,OUT OF SCOPE FOR SIC MONITORIN
SHORT BREAKS FUNDING FOR DISAB,8440,FEE EXPENSES                  ,04/07/2013,3481022,ERS INVOICE86498         ,400.00,REDACTED PERSONAL DATA,563869,Unclassified Non Trade,OUT OF SCOPE FOR SIC MONITORIN
SHORT BREAKS FUNDING FOR DISAB,8440,FEE EXPENSES                  ,04/07/2013,3481023,ERS INVOICE86499         ,400.00,REDACTED PERSONAL DATA,570390,Unclassified Non Trade,OUT OF SCOPE FOR SIC MONITORIN
SHORT BREAKS FUNDING FOR DISAB,8440,FEE EXPENSES                  ,04/07/2013,3481024,ERS INVOICE86500         ,400.00,REDACTED PERSONAL DATA,531704,Unclassified Non Trade,OUT OF SCOPE FOR SIC MONITORIN
SHORT BREAKS FUNDING FOR DISAB,8440,FEE EXPENSES                  ,04/07/2013,3481025,ERS INVOICE86501         ,400.00,REDACTED PERSONAL DATA,534255,Unclassified Non Trade,OUT OF SCOPE FOR SIC MONITORIN
SHORT BREAKS FUNDING FOR DISAB,8440,FEE EXPENSES                  ,04/07/2013,3481026,ERS INVOICE86502         ,400.00,REDACTED PERSONAL DATA,534054,Unclassified Non Trade,OUT OF SCOPE FOR SIC MONITORIN
SHORT BREAKS FUNDING FOR DISAB,8440,FEE EXPENSES                  ,04/07/2013,3481027,ERS INVOICE86503         ,400.00,REDACTED PERSONAL DATA,571715,Unclassified Non Trade,OUT OF SCOPE FOR SIC MONITORIN
SHORT BREAKS FUNDING FOR DISAB,8440,FEE EXPENSES                  ,04/07/2013,3481028,ERS INVOICE86504         ,400.00,REDACTED PERSONAL DATA,538861,Unclassified Non Trade,OUT OF SCOPE FOR SIC MONITORIN
SHORT BREAKS FUNDING FOR DISAB,8440,FEE EXPENSES                  ,04/07/2013,3481029,ERS INVOICE86505         ,400.00,REDACTED PERSONAL DATA,540141,Unclassified Non Trade,OUT OF SCOPE FOR SIC MONITORIN
SHORT BREAKS FUNDING FOR DISAB,8440,FEE EXPENSES                  ,04/07/2013,3481030,ERS INVOICE86506         ,400.00,REDACTED PERSONAL DATA,562645,Unclassified Non Trade,OUT OF SCOPE FOR SIC MONITORIN
SHORT BREAKS FUNDING FOR DISAB,8440,FEE EXPENSES                  ,04/07/2013,3481031,ERS INVOICE86507         ,400.00,REDACTED PERSONAL DATA,532832,Unclassified Non Trade,OUT OF SCOPE FOR SIC MONITORIN
WOODLANDS                     ,8260,WOODLAND DEVELOPMENT EXPENSES ,04/07/2013,3462364,1815,11402.88,STOURTON ESTATES LIMITED                ,544976,Unclassified Trade,FARMING - LIVESTOCK & OTHER AN
WOODLANDS                     ,8260,WOODLAND DEVELOPMENT EXPENSES ,04/07/2013,3464313,1305/02307               ,1083.36,TURNER HIRE & SALES                     ,209182,Building Construction Materials,TOOL & EQUIPMENT HIRE         
CMHT SOUTH                    ,8390,STATIONERY                    ,04/07/2013,3464419,14218,868.75,SHAPE POSTURE SEATING                   ,401789,Furniture,OFFICE FURNITURE & EQUIPMENT  
MCA SUPPORT TEAM              ,8440,FEE EXPENSES                  ,04/07/2013,3465913,2013/14-01               ,6740.00,SHEFFIELD MENTAL HEALTH C.A.B.          ,316902,Social Community Care,MENTAL HEALTH CENTRES         
PROVIDER CONTRACT AUG12-JUL13 ,9120,OTHER AGENCIES                ,04/07/2013,3466157,4745,330.00,STEP                                    ,386032,Unclassified Non Trade,CHARITIES & VOLUNTARY ORGANISA
CATERING PREMISES & EQUIPMENT ,8030,EQUIPMENT MAINTENANCE CONTRACT,04/07/2013,3467628,49757,760.08,BARNSLEY CATERING SERVICES LTD          ,203262,Catering,CATERING EQUIPMENT            
CATERING PREMISES & EQUIPMENT ,8030,EQUIPMENT MAINTENANCE CONTRACT,04/07/2013,3467629,49758,620.00,BARNSLEY CATERING SERVICES LTD          ,203262,Catering,CATERING EQUIPMENT            
ADULT PROTECTION              ,8400,PUBLICATIONS AND PERIODICALS  ,04/07/2013,3478329,51103,715.00,REGIONAL PUBLICATIONS LIMITED           ,315215,Education,PUBLISHERS                    
TOWN HALL                     ,6020,REPAIRS AND MTCE - PROGRAMMED ,04/07/2013,3478341,6254,1098.04,SHEAFPOWER LTD.                         ,389138,Utilities,ELECTRICITY GENERATING & DISTR
MCA SUPPORT TEAM              ,8440,FEE EXPENSES                  ,04/07/2013,3478450,2013/14-4                ,6740.00,SHEFFIELD MENTAL HEALTH C.A.B.          ,316902,Social Community Care,MENTAL HEALTH CENTRES         
STRATEGY AND SKILLS           ,8550,OTHER SERVICES                ,04/07/2013,3478551,338,3100.00,SHEFFIELD ENTERPRISE AGENCY LTD         ,481146,Unclassified Non Trade,BUSINESS ENTERPRISE AGENCIES  
NORTON NURSERY                ,8060,MATERIALS AND SUPPLIES GENERAL,04/07/2013,3478836,38512,378.60,LES HALMAN NURSERIES LTD                ,580259,Horticultural,NURSERIES - WHOLESALE         
PROVIDER CONTRACT AUG12-JUL13 ,9120,OTHER AGENCIES                ,04/07/2013,3479161,SOARCO/878               ,2940.00,SOAR                                    ,413073,Unclassified Non Trade,DEVELOPMENT AGENCIES          
PROVIDER CONTRACT AUG12-JUL13 ,9120,OTHER AGENCIES                ,04/07/2013,3479168,SOARCO/978               ,1243.20,SOAR                                    ,413073,Unclassified Non Trade,DEVELOPMENT AGENCIES          
SCHOOL SPORTS                 ,8440,FEE EXPENSES                  ,04/07/2013,3479204,EFAW00379LEA             ,380.00,DIRECT ACTION TRAINING                  ,478419,Health and Safety,HEALTH & SAFETY TRAINING      
SHEAF TRAINING                ,8490,EXAM FEES                     ,04/07/2013,3479218,802899568,768.00,CITY & GUILDS                           ,424267,Education,EXAMINATION BOARDS            
LSE SUB-CONTRACTORS           ,9120,OTHER AGENCIES                ,04/07/2013,3479787,6658,4047.00,HEELEY CITY FARM                        ,301277,Unclassified Non Trade,CHARITIES & VOLUNTARY ORGANISA
LSE SUB-CONTRACTORS           ,9120,OTHER AGENCIES                ,04/07/2013,3479788,6659,1437.00,HEELEY CITY FARM                        ,301277,Unclassified Non Trade,CHARITIES & VOLUNTARY ORGANISA
RED TAPE CENTRAL              ,6030,REPAIRS AND MTCE - RESPONSIVE ,04/07/2013,3479789,4044088,520.28,CHUBB ELECTRONIC SECURITY               ,402749,Facilities Management,SECURITY SERVICES             
PROVIDER CONTRACT AUG12-JUL13 ,9120,OTHER AGENCIES                ,04/07/2013,3479793,124,2164.50,SHEFFIELD ASSOCIATION FOR THE VOLUNTARY ,350936,Unclassified Non Trade,CHARITIES & VOLUNTARY ORGANISA
CORPORATE CS MGT              ,8410,GENERAL OFFICE EXPENSES       ,04/07/2013,3479807,171679,700.20,AQUAID (SOUTH YORKSHIRE)                ,203007,Catering,WATER COOLERS                 
PUBLIC HEALTH - DPH           ,9030,HEALTH                        ,04/07/2013,3479811,SCC2013/003              ,9166.75,SHEFFIELD OCCUPATIONAL HEALTH ADVISORY S,581987,Unclassified Non Trade,PUBLIC HEALTH SUPPLIERS       
SHORT BREAKS FUNDING FOR DISAB,9120,OTHER AGENCIES                ,04/07/2013,3479958,SNIPS007/13              ,313.37,STEPHEN HARRISON ACADEMY                ,479429,Leisure Services,"SNOOKER, BILLIARDS & POOL HALL"
SHORT BREAKS FUNDING FOR DISAB,9120,OTHER AGENCIES                ,04/07/2013,3479959,SNIPS0012/13             ,313.37,STEPHEN HARRISON ACADEMY                ,479429,Leisure Services,"SNOOKER, BILLIARDS & POOL HALL"
BANDED FUNDING                ,9050,OTHER LOCAL AUTHORITIES       ,04/07/2013,3479965,1E+17,3071.20,DERBYSHIRE COUNTY COUNCIL               ,299578,Unclassified Non Trade,LOCAL GOVERNMENT              
BANDED FUNDING                ,9050,OTHER LOCAL AUTHORITIES       ,04/07/2013,3479967,1E+17,3421.00,DERBYSHIRE COUNTY COUNCIL               ,299578,Unclassified Non Trade,LOCAL GOVERNMENT              
CITY WIDE CARE ALARMS         ,8210,LICENCES EXPENSES             ,04/07/2013,3480008,1444131,3819.80,EXPERIAN LTD                            ,417758,Financial Services,CREDIT REFERENCE AGENCIES     
TRANSPORT FLEET PASSENGER SERV,7060,EXTERNAL VEHICLE HIRE         ,04/07/2013,3480028,781823,1324.58,DAWSONRENTALS BUS AND COACH LTD         ,556855,Vehicles Not Buses,VAN & TRUCK HIRE              
STRUCTURES                    ,5610,AGENCY STAFF                  ,04/07/2013,3480034,92858413,13737.36,CAPITA SYMONDS LTD                      ,576657,Unclassified Trade,LETTING AGENTS                
BANDED FUNDING                ,9050,OTHER LOCAL AUTHORITIES       ,04/07/2013,3480071,1E+17,5314.71,DERBYSHIRE COUNTY COUNCIL               ,299578,Unclassified Non Trade,LOCAL GOVERNMENT              
BANDED FUNDING                ,9050,OTHER LOCAL AUTHORITIES       ,04/07/2013,3480072,1E+17,1710.50,DERBYSHIRE COUNTY COUNCIL               ,299578,Unclassified Non Trade,LOCAL GOVERNMENT              
BANDED FUNDING                ,9050,OTHER LOCAL AUTHORITIES       ,04/07/2013,3480073,1E+17,1539.45,DERBYSHIRE COUNTY COUNCIL               ,299578,Unclassified Non Trade,LOCAL GOVERNMENT              
BANDED FUNDING                ,9050,OTHER LOCAL AUTHORITIES       ,04/07/2013,3480074,1E+17,1710.50,DERBYSHIRE COUNTY COUNCIL               ,299578,Unclassified Non Trade,LOCAL GOVERNMENT              
BANDED FUNDING                ,9050,OTHER LOCAL AUTHORITIES       ,04/07/2013,3480075,1E+17,2565.75,DERBYSHIRE COUNTY COUNCIL               ,299578,Unclassified Non Trade,LOCAL GOVERNMENT              
BANDED FUNDING                ,9050,OTHER LOCAL AUTHORITIES       ,04/07/2013,3480076,1E+17,1539.45,DERBYSHIRE COUNTY COUNCIL               ,299578,Unclassified Non Trade,LOCAL GOVERNMENT              
BANDED FUNDING                ,9050,OTHER LOCAL AUTHORITIES       ,04/07/2013,3480077,1E+17,3585.81,DERBYSHIRE COUNTY COUNCIL               ,299578,Unclassified Non Trade,LOCAL GOVERNMENT              
BANDED FUNDING                ,9050,OTHER LOCAL AUTHORITIES       ,04/07/2013,3480078,1E+17,2079.44,DERBYSHIRE COUNTY COUNCIL               ,299578,Unclassified Non Trade,LOCAL GOVERNMENT              
BANDED FUNDING                ,9050,OTHER LOCAL AUTHORITIES       ,04/07/2013,3480079,1E+17,4276.25,DERBYSHIRE COUNTY COUNCIL               ,299578,Unclassified Non Trade,LOCAL GOVERNMENT              
HILLSBOROUGH BARRACKS UNIT 7  ,6210,RENTS                         ,04/07/2013,3480503,D308253                  ,11977.50, SAVILLS UK                             ,580974,Unclassified Trade,OFFICE RENTAL                 
HILLSBOROUGH BARRACKS UNIT 7  ,6270,SERVICE / PFI UNITARY CHARGE  ,04/07/2013,3480503,D308253                  ,1695.45, SAVILLS UK                             ,580974,Unclassified Trade,OFFICE RENTAL                 
HILLSBOROUGH BARRACKS UNIT 1  ,6210,RENTS                         ,04/07/2013,3480504,7176826,29802.00,WM MORRISON SUPERMARKETS PLC            ,209577,Catering,SUPERMARKETS                  
HILLSBOROUGH BARRACKS UNIT 1  ,6270,SERVICE / PFI UNITARY CHARGE  ,04/07/2013,3480504,7176826,500.00,WM MORRISON SUPERMARKETS PLC            ,209577,Catering,SUPERMARKETS                  
REDVERS HOUSE                 ,6210,RENTS                         ,04/07/2013,3480655,660606,28331.75,DTZ DEBENHAM TIE LEUNG                  ,392019,Unclassified Trade,COMMERCIAL PROPERTY AGENTS    
REDVERS HOUSE                 ,6210,RENTS                         ,04/07/2013,3480656,660605,1803.81,DTZ DEBENHAM TIE LEUNG                  ,392019,Unclassified Trade,COMMERCIAL PROPERTY AGENTS    
REDVERS HOUSE                 ,6210,RENTS                         ,04/07/2013,3480657,660604,18771.30,DTZ DEBENHAM TIE LEUNG                  ,392019,Unclassified Trade,COMMERCIAL PROPERTY AGENTS    
REDVERS HOUSE                 ,6210,RENTS                         ,04/07/2013,3480658,660603,127493.25,DTZ DEBENHAM TIE LEUNG                  ,392019,Unclassified Trade,COMMERCIAL PROPERTY AGENTS    
CAPITA CONTROL A/C            ,9620,FINANCIAL PROCESSES           ,04/07/2013,3480661,93056367,261799.00,CAPITA BUSINESS SERVICES LTD            ,505663,Human Resources,BUSINESS INFORMATION SERVICES 
MARKETING SHEFFIELD           ,8620,COMPUTER MAINTENANCE          ,04/07/2013,3480837,40219,862.50,DIGITAL EXCHANGE (YORKSHIRE) LTD        ,204379,ICT,COMPUTER CONSUMABLES & STATION
TRANSPORT FLEET PASSENGER SERV,8110,"CLOTHING, UNIFORM AND LAUNDRY ",04/07/2013,3480840,919574301,633.36,ARCO LTD                                ,203022,Clothing,SAFETY EQUIPMENT & CLOTHING   
TRANSPORT FLEET MANAGEMENT    ,6030,REPAIRS AND MTCE - RESPONSIVE ,04/07/2013,3480864,121980,285.69,COMBINED GAS SYSTEMS LIMITED            ,583991,Health and Safety,GAS SAFETY TESTING & INSPECTIO
UTILITIES                     ,6160,GAS                           ,04/07/2013,3480701,A3765838/S1869876        ,756.89,BRITISH GAS BUSINESS                    ,370790,Utilities,GAS COMPANIES                 
LOVE STREET RESOURCE CENTRE   ,6150,ELECTRICITY                   ,04/07/2013,3480728,27141288,1175.49,NPOWER NORTHERN LTD                     ,207191,Utilities,ELECTRICITY COMPANIES         
STADIA TECHNOLOGY PARK        ,6160,GAS                           ,04/07/2013,3480730,6001550077,448.34,NPOWER                                  ,467390,Utilities,ELECTRICITY COMPANIES         
STADIA TECHNOLOGY PARK        ,6150,ELECTRICITY                   ,04/07/2013,3480734,A3558451/1368142         ,369.06,BRITISH GAS BUSINESS                    ,370790,Utilities,GAS COMPANIES                 
STADIA TECHNOLOGY PARK        ,6150,ELECTRICITY                   ,04/07/2013,3480735,A3891542/1719742         ,372.31,BRITISH GAS BUSINESS                    ,370790,Utilities,GAS COMPANIES                 
STANIFORTH ROAD WORKSHOPS     ,7010,ROUTINE VEHICLE REPAIR & MTCE ,04/07/2013,3480936,14425837,1089.79,LOOKERS FORD                            ,474939,Vehicles Not Buses,CAR DEALERS                   
PURCHASING LEARNING DISABILITI,9190,DIRECT PAYMENTS               ,04/07/2013,3480618,J644183                  ,695.00,REDACTED PERSONAL DATA,582659,Social Community Care,CAREFIRST DIRECT PAYMENTS     
PURCHASING LEARNING DISABILITI,9250,INDEPENDENT DAY CARE          ,04/07/2013,3480619,INV.A05021               ,6745.76,AUTISM PLUS LTD                         ,330606,Unclassified Non Trade,CHARITIES & VOLUNTARY ORGANISA
PURCHASING LEARNING DISABILITI,9250,INDEPENDENT DAY CARE          ,04/07/2013,3480620,INV.A05022               ,6745.76,AUTISM PLUS LTD                         ,330606,Unclassified Non Trade,CHARITIES & VOLUNTARY ORGANISA
PURCHASING LEARNING DISABILITI,9250,INDEPENDENT DAY CARE          ,04/07/2013,3480621,INV.A05035               ,2013.92,AUTISM PLUS LTD                         ,330606,Unclassified Non Trade,CHARITIES & VOLUNTARY ORGANISA
PURCHASING LEARNING DISABILITI,9250,INDEPENDENT DAY CARE          ,04/07/2013,3480622,INV.A05036               ,2013.92,AUTISM PLUS LTD                         ,330606,Unclassified Non Trade,CHARITIES & VOLUNTARY ORGANISA
PURCHASING LEARNING DISABILITI,9250,INDEPENDENT DAY CARE          ,04/07/2013,3480623,INV.A05039               ,2013.92,AUTISM PLUS LTD                         ,330606,Unclassified Non Trade,CHARITIES & VOLUNTARY ORGANISA
PURCHASING LEARNING DISABILITI,9250,INDEPENDENT DAY CARE          ,04/07/2013,3480624,INV.A05040               ,1749.72,AUTISM PLUS LTD                         ,330606,Unclassified Non Trade,CHARITIES & VOLUNTARY ORGANISA
PURCHASING LEARNING DISABILITI,9190,CITYWIDE SPOT                 ,04/07/2013,3480625,SI05/0008434             ,1291.92,NEW ERA HOUSING AUTHORITY               ,505956,Unclassified Non Trade,"HOUSING ASSOCIATIONS, SOCIETIE"
PURCHASING LEARNING DISABILITI,9190,CITYWIDE SPOT                 ,04/07/2013,3480626,SI05/0008472             ,6403.32,NEW ERA HOUSING AUTHORITY               ,505956,Unclassified Non Trade,"HOUSING ASSOCIATIONS, SOCIETIE"
PURCHASING LEARNING DISABILITI,9190,CITYWIDE SPOT                 ,04/07/2013,3480627,SIMI051626               ,2225.56,CARETECH COMMUNITY SERVICES             ,524237,Social Community Care,HOME CARE SERVICES            
PURCHASING LEARNING DISABILITI,9190,CITYWIDE SPOT                 ,04/07/2013,3480628,SIMI051627               ,1259.64,CARETECH COMMUNITY SERVICES             ,524237,Social Community Care,HOME CARE SERVICES            
PURCHASING LEARNING DISABILITI,9190,CITYWIDE SPOT                 ,04/07/2013,3480629,SIMI051628               ,2311.32,CARETECH COMMUNITY SERVICES             ,524237,Social Community Care,HOME CARE SERVICES            
PURCHASING LEARNING DISABILITI,9190,CITYWIDE SPOT                 ,04/07/2013,3480630,SIMI051629               ,2447.00,CARETECH COMMUNITY SERVICES             ,524237,Social Community Care,HOME CARE SERVICES            
PURCHASING LEARNING DISABILITI,9190,CITYWIDE SPOT                 ,04/07/2013,3480631,SIMI051630               ,2334.08,CARETECH COMMUNITY SERVICES             ,524237,Social Community Care,HOME CARE SERVICES            
PURCHASING LEARNING DISABILITI,9190,CITYWIDE SPOT                 ,04/07/2013,3480632,SIMI051631               ,1848.20,CARETECH COMMUNITY SERVICES             ,524237,Social Community Care,HOME CARE SERVICES            
PURCHASING LEARNING DISABILITI,9210,FUNDED NURSING CARE (INCOME)  ,04/07/2013,3480632,SIMI051631               ,875.60,CARETECH COMMUNITY SERVICES             ,524237,Social Community Care,HOME CARE SERVICES            
PURCHASING LEARNING DISABILITI,9190,CITYWIDE SPOT                 ,04/07/2013,3480633,SIMI051632               ,1679.28,CARETECH COMMUNITY SERVICES             ,524237,Social Community Care,HOME CARE SERVICES            
PURCHASING LEARNING DISABILITI,9190,CITYWIDE SPOT                 ,04/07/2013,3480634,SIMI051633               ,1948.76,CARETECH COMMUNITY SERVICES             ,524237,Social Community Care,HOME CARE SERVICES            
PURCHASING LEARNING DISABILITI,9190,CITYWIDE SPOT                 ,04/07/2013,3480635,1423,277.84,KEYRING LIVING SUPPORT NETWORKS         ,558736,Social Community Care,CAREFIRST DIRECT PAYMENTS     
PURCHASING LEARNING DISABILITI,9190,CITYWIDE SPOT                 ,04/07/2013,3480636,1424+1425                ,563.86,KEYRING LIVING SUPPORT NETWORKS         ,558736,Social Community Care,CAREFIRST DIRECT PAYMENTS     
PURCHASING LEARNING DISABILITI,9190,CITYWIDE SPOT                 ,04/07/2013,3480637,1426+1427                ,913.44,KEYRING LIVING SUPPORT NETWORKS         ,558736,Social Community Care,CAREFIRST DIRECT PAYMENTS     
PURCHASING LEARNING DISABILITI,9190,CITYWIDE SPOT                 ,04/07/2013,3480638,1428,277.84,KEYRING LIVING SUPPORT NETWORKS         ,558736,Social Community Care,CAREFIRST DIRECT PAYMENTS     
PURCHASING LEARNING DISABILITI,9190,CITYWIDE SPOT                 ,04/07/2013,3480639,1429,277.84,KEYRING LIVING SUPPORT NETWORKS         ,558736,Social Community Care,CAREFIRST DIRECT PAYMENTS     
ADULT SOCIAL CARE PURCHASING  ,9190,CITYWIDE SPOT                 ,04/07/2013,3480640,23378-23400              ,2221.04,TLC HOMECARE LTD                        ,573940,Social Community Care,RESIDENTIAL CARE HOMES        
ADULT SOCIAL CARE PURCHASING  ,9190,CITYWIDE SPOT                 ,04/07/2013,3480641,3885,853.71,ONE TO ONE SUPPORT SERVICES LTD         ,518159,Social Community Care,HOME CARE SERVICES            
PURCHASING LEARNING DISABILITI,9190,CITYWIDE SPOT                 ,04/07/2013,3480642,8463EM                   ,5248.88,NEW ERA HOUSING AUTHORITY               ,505956,Unclassified Non Trade,"HOUSING ASSOCIATIONS, SOCIETIE"
PURCHASING LEARNING DISABILITI,9190,CITYWIDE SPOT                 ,04/07/2013,3480643,8463JH                   ,5052.88,NEW ERA HOUSING AUTHORITY               ,505956,Unclassified Non Trade,"HOUSING ASSOCIATIONS, SOCIETIE"
PURCHASING LEARNING DISABILITI,9190,CITYWIDE SPOT                 ,04/07/2013,3480644,8463JW                   ,4099.60,NEW ERA HOUSING AUTHORITY               ,505956,Unclassified Non Trade,"HOUSING ASSOCIATIONS, SOCIETIE"
PURCHASING LEARNING DISABILITI,9190,CITYWIDE SPOT                 ,04/07/2013,3480645,8464GR                   ,8504.04,NEW ERA HOUSING AUTHORITY               ,505956,Unclassified Non Trade,"HOUSING ASSOCIATIONS, SOCIETIE"
PURCHASING LEARNING DISABILITI,9190,CITYWIDE SPOT                 ,04/07/2013,3480646,8464MW                   ,5446.20,NEW ERA HOUSING AUTHORITY               ,505956,Unclassified Non Trade,"HOUSING ASSOCIATIONS, SOCIETIE"
PURCHASING LEARNING DISABILITI,9190,CITYWIDE SPOT                 ,04/07/2013,3480647,8465AS                   ,4194.48,NEW ERA HOUSING AUTHORITY               ,505956,Unclassified Non Trade,"HOUSING ASSOCIATIONS, SOCIETIE"
PURCHASING LEARNING DISABILITI,9190,CITYWIDE SPOT                 ,04/07/2013,3480648,8465IH                   ,4194.48,NEW ERA HOUSING AUTHORITY               ,505956,Unclassified Non Trade,"HOUSING ASSOCIATIONS, SOCIETIE"
PURCHASING LEARNING DISABILITI,9190,CITYWIDE SPOT                 ,04/07/2013,3480649,8473LD                   ,2879.92,NEW ERA HOUSING AUTHORITY               ,505956,Unclassified Non Trade,"HOUSING ASSOCIATIONS, SOCIETIE"
PURCHASING LEARNING DISABILITI,9190,CITYWIDE SPOT                 ,04/07/2013,3480650,INV.A05037               ,1131.56,AUTISM PLUS LTD                         ,330606,Unclassified Non Trade,CHARITIES & VOLUNTARY ORGANISA
PURCHASING LEARNING DISABILITI,9210,FUNDED NURSING CARE (INCOME)  ,04/07/2013,3480650,INV.A05037               ,996.76,AUTISM PLUS LTD                         ,330606,Unclassified Non Trade,CHARITIES & VOLUNTARY ORGANISA
PURCHASING LEARNING DISABILITI,9190,CITYWIDE SPOT                 ,04/07/2013,3480651,INV.A05057.              ,7260.00,AUTISM PLUS LTD                         ,330606,Unclassified Non Trade,CHARITIES & VOLUNTARY ORGANISA
INDEPENDENT FOSTERING PLACEMEN,9270,INDEPENDENT FOSTERING         ,04/07/2013,3480541,17350,3084.20,PARALLEL PARENTS LTD                    ,521940,Social Community Care,ADOPTION & FOSTERING          
CONTACT CONTRACTS             ,9280,CONTACT                       ,04/07/2013,3480563,12056 HM                 ,327.63,SSA SOCIAL CARE & COMMUNITY SERVICES LTD,301604,Human Resources,EMPLOYMENT & RECRUITMENT AGENC
CONTACT CONTRACTS             ,9280,CONTACT                       ,04/07/2013,3480566,12056 JC                 ,443.50,SSA SOCIAL CARE & COMMUNITY SERVICES LTD,301604,Human Resources,EMPLOYMENT & RECRUITMENT AGENC
CONTACT CONTRACTS             ,9280,CONTACT                       ,04/07/2013,3480580,12056 KY                 ,264.71,SSA SOCIAL CARE & COMMUNITY SERVICES LTD,301604,Human Resources,EMPLOYMENT & RECRUITMENT AGENC
CONTACT CONTRACTS             ,9280,CONTACT                       ,04/07/2013,3480588,12056 ME                 ,308.07,SSA SOCIAL CARE & COMMUNITY SERVICES LTD,301604,Human Resources,EMPLOYMENT & RECRUITMENT AGENC
CONTACT CONTRACTS             ,9280,CONTACT                       ,04/07/2013,3480591,12056 MJ                 ,270.70,SSA SOCIAL CARE & COMMUNITY SERVICES LTD,301604,Human Resources,EMPLOYMENT & RECRUITMENT AGENC
CONTACT CONTRACTS             ,9280,CONTACT                       ,04/07/2013,3480596,12056 RD                 ,285.53,SSA SOCIAL CARE & COMMUNITY SERVICES LTD,301604,Human Resources,EMPLOYMENT & RECRUITMENT AGENC
CONTACT CONTRACTS             ,9280,CONTACT                       ,04/07/2013,3480598,12056 AY                 ,264.71,SSA SOCIAL CARE & COMMUNITY SERVICES LTD,301604,Human Resources,EMPLOYMENT & RECRUITMENT AGENC
CONTACT CONTRACTS             ,9280,CONTACT                       ,04/07/2013,3480599,12056 RIW                ,275.63,SSA SOCIAL CARE & COMMUNITY SERVICES LTD,301604,Human Resources,EMPLOYMENT & RECRUITMENT AGENC
CONTACT CONTRACTS             ,9280,CONTACT                       ,04/07/2013,3480601,12056 ROW                ,276.25,SSA SOCIAL CARE & COMMUNITY SERVICES LTD,301604,Human Resources,EMPLOYMENT & RECRUITMENT AGENC
CONTACT CONTRACTS             ,9280,CONTACT                       ,04/07/2013,3480614,12056 VT                 ,256.46,SSA SOCIAL CARE & COMMUNITY SERVICES LTD,301604,Human Resources,EMPLOYMENT & RECRUITMENT AGENC
ADULT SOCIAL CARE PURCHASING  ,9200,CONTINUING RESIDENTIAL CARE   ,04/07/2013,3480511,J618734 230613           ,3415.48,ORCHARD END                             ,361893,Social Community Care,RESIDENTIAL CARE HOMES        
ADULT SOCIAL CARE PURCHASING  ,9200,CONTINUING RESIDENTIAL CARE   ,04/07/2013,3480512,J637317 210713           ,3415.48,ORCHARD END                             ,361893,Social Community Care,RESIDENTIAL CARE HOMES        
ADULT SOCIAL CARE PURCHASING  ,9200,CONTINUING RESIDENTIAL CARE   ,04/07/2013,3480513,J637338 210713           ,18024.00,WOODBANK HOUSE CARE LTD                 ,361780,Social Community Care,REST & RETIREMENT HOMES       
ADULT SOCIAL CARE PURCHASING  ,9210,CONTINUING NURSING CARE       ,04/07/2013,3480514,J639989 210713           ,9556.86,COUNTRY CARE HOMES LTD                  ,361754,Social Community Care,RESIDENTIAL CARE HOMES        
ADULT SOCIAL CARE PURCHASING  ,9200,CONTINUING RESIDENTIAL CARE   ,04/07/2013,3480515,J639992 210713           ,8375.72,ABBEY GRANGE RESIDENTIAL HOME           ,361753,Social Community Care,RESIDENTIAL CARE HOMES        
ADULT SOCIAL CARE PURCHASING  ,9200,CONTINUING RESIDENTIAL CARE   ,04/07/2013,3480516,J641811 210713           ,11421.00,COTLEIGH                                ,361811,Social Community Care,RESIDENTIAL CARE HOMES        
ADULT SOCIAL CARE PURCHASING  ,9210,CONTINUING NURSING CARE       ,04/07/2013,3480517,J641816 210713           ,4791.14,ALPINE HEALTHCARE                       ,362125,Social Community Care,NURSING HOMES                 
ADULT SOCIAL CARE PURCHASING  ,9200,CONTINUING RESIDENTIAL CARE   ,04/07/2013,3480518,J641819 210713           ,7060.00,BALMORAL NURSING HOME                   ,361851,Social Community Care,NURSING HOMES                 
ADULT SOCIAL CARE PURCHASING  ,9210,CONTINUING NURSING CARE       ,04/07/2013,3480518,J641819 210713           ,2290.14,BALMORAL NURSING HOME                   ,361851,Social Community Care,NURSING HOMES                 
ADULT SOCIAL CARE PURCHASING  ,9200,CONTINUING RESIDENTIAL CARE   ,04/07/2013,3480519,J641821 210713           ,6339.29,ALEXANDER COURT CARE HOME               ,361889,Social Community Care,RESIDENTIAL CARE HOMES        
ADULT SOCIAL CARE PURCHASING  ,9210,CONTINUING NURSING CARE       ,04/07/2013,3480519,J641821 210713           ,6125.14,ALEXANDER COURT CARE HOME               ,361889,Social Community Care,RESIDENTIAL CARE HOMES        
ADULT SOCIAL CARE PURCHASING  ,9210,CONTINUING NURSING CARE       ,04/07/2013,3480520,J641822 210713           ,8530.57,ASCOT LODGE CARE HOME                   ,362118,Social Community Care,NURSING HOMES                 
ADULT SOCIAL CARE PURCHASING  ,9200,CONTINUING RESIDENTIAL CARE   ,04/07/2013,3480521,J641823 210713           ,4809.86,BEECHY KNOLL                            ,362144,Social Community Care,RESIDENTIAL CARE HOMES        
ADULT SOCIAL CARE PURCHASING  ,9210,CONTINUING NURSING CARE       ,04/07/2013,3480522,J641826 210713           ,6647.00,BLENHEIM COURT                          ,368328,Social Community Care,NURSING HOMES                 
ADULT SOCIAL CARE PURCHASING  ,9210,CONTINUING NURSING CARE       ,04/07/2013,3480523,J641827 210713           ,13482.00,ROSEBERRY CARE CENTRES GB LTD           ,368334,Social Community Care,NURSING HOMES                 
ADULT SOCIAL CARE PURCHASING  ,9210,CONTINUING NURSING CARE       ,04/07/2013,3480524,J644184 210713           ,3015.36,KERSAL MOUNT NURSING HOME               ,361765,Social Community Care,NURSING HOMES                 
ADULT SOCIAL CARE PURCHASING  ,9200,CONTINUING RESIDENTIAL CARE   ,04/07/2013,3480525,J644185 210713           ,3724.29,COUNTRY COURT CARE HOMES LTD            ,361907,Social Community Care,RESIDENTIAL CARE HOMES        
ADULT SOCIAL CARE PURCHASING  ,9210,CONTINUING NURSING CARE       ,04/07/2013,3480526,J644186 210713           ,4692.00,NORTHFIELD NURSING HOME                 ,361770,Social Community Care,NURSING HOMES                 
ADULT SOCIAL CARE PURCHASING  ,9200,SHORT TERM RESIDENTIAL CARE   ,04/07/2013,3480527,J637147 230613           ,16158.53,CASTELAYN                               ,361796,Social Community Care,RESIDENTIAL CARE HOMES        
ADULT SOCIAL CARE PURCHASING  ,9200,SHORT TERM RESIDENTIAL CARE   ,04/07/2013,3480529,J637164 230613           ,1420.00,ROSEBERRY CARE CENTRES GB LTD           ,368334,Social Community Care,NURSING HOMES                 
ADULT SOCIAL CARE PURCHASING  ,9210,SHORT TERM NURSING CARE       ,04/07/2013,3480530,J641808 230613           ,391.00,BLENHEIM COURT                          ,368328,Social Community Care,NURSING HOMES                 
ADULT SOCIAL CARE PURCHASING  ,9200,SHORT TERM RESIDENTIAL CARE   ,04/07/2013,3480532,J644145 230613           ,497.57,BURNT TREE CROFT                        ,361793,Social Community Care,RESIDENTIAL CARE HOMES        
ADULT SOCIAL CARE PURCHASING  ,9200,SHORT TERM RESIDENTIAL CARE   ,04/07/2013,3480533,J644146 230613           ,2797.42,DEERLANDS                               ,361836,Social Community Care,RESIDENTIAL CARE HOMES        
ADULT SOCIAL CARE PURCHASING  ,9200,SHORT TERM RESIDENTIAL CARE   ,04/07/2013,3480535,J644149 230613           ,4683.58,BALMORAL NURSING HOME                   ,361851,Social Community Care,NURSING HOMES                 
ADULT SOCIAL CARE PURCHASING  ,9210,SHORT TERM NURSING CARE       ,04/07/2013,3480536,J644150 230613           ,2045.00,ASCOT LODGE CARE HOME                   ,362118,Social Community Care,NURSING HOMES                 
ADULT SOCIAL CARE PURCHASING  ,9210,SHORT TERM NURSING CARE       ,04/07/2013,3480537,J644151 230613           ,450.00,HENLEIGH HALL                           ,362109,Social Community Care,NURSING HOMES                 
ADULT SOCIAL CARE PURCHASING  ,9200,SHORT TERM RESIDENTIAL CARE   ,04/07/2013,3480538,J644152 230613           ,2892.30,ABBEY GRANGE RESIDENTIAL HOME           ,361753,Social Community Care,RESIDENTIAL CARE HOMES        
ADULT SOCIAL CARE PURCHASING  ,9200,SHORT TERM RESIDENTIAL CARE   ,04/07/2013,3480539,J644153 230613           ,2166.00,ROSEBERRY CARE CENTRES GB LTD           ,361904,Social Community Care,NURSING HOMES                 
ADULT SOCIAL CARE PURCHASING  ,9210,SHORT TERM NURSING CARE       ,04/07/2013,3480540,J644154 230613           ,1580.00,ST JAMES COURT CARE HOME                ,575031,Social Community Care,RESIDENTIAL CARE HOMES        
SHORT BREAKS FUNDING FOR DISAB,8440,FEE EXPENSES                  ,05/07/2013,3481287,ERS INVOICE86532         ,400.00,REDACTED PERSONAL DATA,528428,Unclassified Non Trade,OUT OF SCOPE FOR SIC MONITORIN
FOSTERING DEVELOPMENT         ,8010,EQUIPMENT PURCHASE AND REPAIR ,05/07/2013,3481288,ERS INVOICE86533         ,397.76,REDACTED PERSONAL DATA,573934,Social Community Care,ADOPTION & FOSTERING          
SHORT BREAKS FUNDING FOR DISAB,8440,FEE EXPENSES                  ,05/07/2013,3481289,ERS INVOICE86534         ,400.00,REDACTED PERSONAL DATA,575034,Unclassified Non Trade,OUT OF SCOPE FOR SIC MONITORIN
SHORT BREAKS FUNDING FOR DISAB,8440,FEE EXPENSES                  ,05/07/2013,3481290,ERS INVOICE86535         ,300.00,REDACTED PERSONAL DATA,572818,Unclassified Non Trade,OUT OF SCOPE FOR SIC MONITORIN
SHORT BREAKS FUNDING FOR DISAB,8440,FEE EXPENSES                  ,05/07/2013,3481291,ERS INVOICE86536         ,400.00,REDACTED PERSONAL DATA,557208,Unclassified Non Trade,OUT OF SCOPE FOR SIC MONITORIN
SHORT BREAKS FUNDING FOR DISAB,8440,FEE EXPENSES                  ,05/07/2013,3481292,ERS INVOICE86537         ,400.00,REDACTED PERSONAL DATA,572803,Unclassified Non Trade,OUT OF SCOPE FOR SIC MONITORIN
SHORT BREAKS FUNDING FOR DISAB,8440,FEE EXPENSES                  ,05/07/2013,3481293,ERS INVOICE86538         ,400.00,REDACTED PERSONAL DATA,513521,Unclassified Non Trade,OUT OF SCOPE FOR SIC MONITORIN
SHORT BREAKS FUNDING FOR DISAB,8440,FEE EXPENSES                  ,05/07/2013,3481294,ERS INVOICE86539         ,400.00,REDACTED PERSONAL DATA,570371,Unclassified Non Trade,OUT OF SCOPE FOR SIC MONITORIN
SHORT BREAKS FUNDING FOR DISAB,8440,FEE EXPENSES                  ,05/07/2013,3481295,ERS INVOICE86540         ,400.00,REDACTED PERSONAL DATA,554494,Unclassified Non Trade,OUT OF SCOPE FOR SIC MONITORIN
SHORT BREAKS FUNDING FOR DISAB,8440,FEE EXPENSES                  ,05/07/2013,3481296,ERS INVOICE86541         ,400.00,REDACTED PERSONAL DATA,539846,Unclassified Non Trade,OUT OF SCOPE FOR SIC MONITORIN
SHORT BREAKS FUNDING FOR DISAB,8440,FEE EXPENSES                  ,05/07/2013,3481297,ERS INVOICE86542         ,400.00,REDACTED PERSONAL DATA,572457,Unclassified Non Trade,OUT OF SCOPE FOR SIC MONITORIN
SHORT BREAKS FUNDING FOR DISAB,8440,FEE EXPENSES                  ,05/07/2013,3481298,ERS INVOICE86543         ,400.00,REDACTED PERSONAL DATA,554910,Unclassified Non Trade,OUT OF SCOPE FOR SIC MONITORIN
SHORT BREAKS FUNDING FOR DISAB,8440,FEE EXPENSES                  ,05/07/2013,3481299,ERS INVOICE86544         ,400.00,REDACTED PERSONAL DATA,538864,Unclassified Non Trade,OUT OF SCOPE FOR SIC MONITORIN
SHORT BREAKS FUNDING FOR DISAB,8440,FEE EXPENSES                  ,05/07/2013,3481300,ERS INVOICE86545         ,400.00,REDACTED PERSONAL DATA,575701,Unclassified Non Trade,OUT OF SCOPE FOR SIC MONITORIN
SECTOR GWTH ENHANCEMENT PROG  ,9050,OTHER LOCAL AUTHORITIES       ,05/07/2013,3481264,ERS INVOICE86509         ,28367.17,ROTHERHAM M B C                         ,296984,Unclassified Non Trade,LOCAL GOVERNMENT              
SHEFFIELD COMMUNITY NETWORK   ,9120,OTHER AGENCIES                ,05/07/2013,3481265,ERS INVOICE86510         ,7487.10,COMMEDIA SHEFFIELD                      ,503024,Facilities Management,ADVERTISING - MEDIA           
VSP DELIVER                   ,9140,PRIVATE CONTRACTORS           ,05/07/2013,3481266,ERS INVOICE86511         ,17031.25,Y A S Y                                 ,306981,Unclassified Non Trade,YOUTH ORGANISATIONS & CENTRES 
CLAIMS                        ,8740,PUBLIC LIABILITY              ,05/07/2013,3481270,ERS INVOICE86515         ,1500.00,GRAYSONS SOLICITORS                     ,297241,Legal Services,SOLICITORS                    
SHORT BREAKS FUNDING FOR DISAB,8440,FEE EXPENSES                  ,05/07/2013,3481272,ERS INVOICE86517         ,400.00,REDACTED PERSONAL DATA,558514,Unclassified Non Trade,OUT OF SCOPE FOR SIC MONITORIN
SHORT BREAKS FUNDING FOR DISAB,8440,FEE EXPENSES                  ,05/07/2013,3481273,ERS INVOICE86518         ,400.00,REDACTED PERSONAL DATA,576780,Unclassified Non Trade,OUT OF SCOPE FOR SIC MONITORIN
SHORT BREAKS FUNDING FOR DISAB,8440,FEE EXPENSES                  ,05/07/2013,3481274,ERS INVOICE86519         ,400.00,REDACTED PERSONAL DATA,536674,Unclassified Non Trade,OUT OF SCOPE FOR SIC MONITORIN
SHORT BREAKS FUNDING FOR DISAB,8440,FEE EXPENSES                  ,05/07/2013,3481275,ERS INVOICE86520         ,400.00,REDACTED PERSONAL DATA,570667,Unclassified Non Trade,OUT OF SCOPE FOR SIC MONITORIN
SHORT BREAKS FUNDING FOR DISAB,8440,FEE EXPENSES                  ,05/07/2013,3481276,ERS INVOICE86521         ,400.00,REDACTED PERSONAL DATA,555268,Unclassified Non Trade,OUT OF SCOPE FOR SIC MONITORIN
SHORT BREAKS FUNDING FOR DISAB,8440,FEE EXPENSES                  ,05/07/2013,3481277,ERS INVOICE86522         ,400.00,REDACTED PERSONAL DATA,555288,Unclassified Non Trade,OUT OF SCOPE FOR SIC MONITORIN
SHORT BREAKS FUNDING FOR DISAB,8440,FEE EXPENSES                  ,05/07/2013,3481278,ERS INVOICE86523         ,400.00,REDACTED PERSONAL DATA,557638,Unclassified Non Trade,OUT OF SCOPE FOR SIC MONITORIN
SHORT BREAKS FUNDING FOR DISAB,8440,FEE EXPENSES                  ,05/07/2013,3481279,ERS INVOICE86524         ,400.00,REDACTED PERSONAL DATA,562474,Unclassified Non Trade,OUT OF SCOPE FOR SIC MONITORIN
SHORT BREAKS FUNDING FOR DISAB,8440,FEE EXPENSES                  ,05/07/2013,3481280,ERS INVOICE86525         ,400.00,REDACTED PERSONAL DATA,538862,Unclassified Non Trade,OUT OF SCOPE FOR SIC MONITORIN
SHORT BREAKS FUNDING FOR DISAB,8440,FEE EXPENSES                  ,05/07/2013,3481281,ERS INVOICE86526         ,400.00,REDACTED PERSONAL DATA,538649,Unclassified Non Trade,OUT OF SCOPE FOR SIC MONITORIN
SHORT BREAKS FUNDING FOR DISAB,8440,FEE EXPENSES                  ,05/07/2013,3481282,ERS INVOICE86527         ,400.00,REDACTED PERSONAL DATA,557234,Unclassified Non Trade,OUT OF SCOPE FOR SIC MONITORIN
SHORT BREAKS FUNDING FOR DISAB,8440,FEE EXPENSES                  ,05/07/2013,3481283,ERS INVOICE86528         ,400.00,REDACTED PERSONAL DATA,561852,Unclassified Non Trade,OUT OF SCOPE FOR SIC MONITORIN
SHORT BREAKS FUNDING FOR DISAB,8440,FEE EXPENSES                  ,05/07/2013,3481284,ERS INVOICE86529         ,400.00,REDACTED PERSONAL DATA,532755,Unclassified Non Trade,OUT OF SCOPE FOR SIC MONITORIN
SHORT BREAKS FUNDING FOR DISAB,8440,FEE EXPENSES                  ,05/07/2013,3481285,ERS INVOICE86530         ,400.00,REDACTED PERSONAL DATA,570649,Unclassified Non Trade,OUT OF SCOPE FOR SIC MONITORIN
SHORT BREAKS FUNDING FOR DISAB,8440,FEE EXPENSES                  ,05/07/2013,3481286,ERS INVOICE86531         ,400.00,REDACTED PERSONAL DATA,538872,Unclassified Non Trade,OUT OF SCOPE FOR SIC MONITORIN
SECTOR GWTH ENHANCEMENT PROG  ,9050,OTHER LOCAL AUTHORITIES       ,05/07/2013,3481301,ERS INVOICE86546         ,7974.70,BARNSLEY M B C                          ,504141,Unclassified Non Trade,LOCAL GOVERNMENT              
SECTOR GWTH ENHANCEMENT PROG  ,9050,OTHER LOCAL AUTHORITIES       ,05/07/2013,3481302,ERS INVOICE86547         ,4213.97,ROTHERHAM M B C                         ,296984,Unclassified Non Trade,LOCAL GOVERNMENT              
DISABLED GRANTS               ,1165,NC&A OTHER                    ,05/07/2013,3481381,ERS INVOICE86562         ,2600.00,CLARK & PARTNERS LTD                    ,203928,Medical ,DISABILITY EQUIPMENT - MNFRS &
DISABLED GRANTS               ,1165,NC&A OTHER                    ,05/07/2013,3481382,ERS INVOICE86563         ,1766.00,STANNAH LIFT SERVICES LTD.              ,208625,Social Community Care,STAIRLIFTS - MNFRS & INSTALLER
DISABLED GRANTS               ,1165,NC&A OTHER                    ,05/07/2013,3481383,ERS INVOICE86564         ,8774.00,WOODSEATS PLUMBING CO LTD               ,209595,Construction,PLUMBERS                      
SECTOR GWTH ENHANCEMENT PROG  ,9050,OTHER LOCAL AUTHORITIES       ,05/07/2013,3481384,ERS INVOICE86565         ,15909.24,DONCASTER MBC                           ,563246,Unclassified Non Trade,COUNCILS                      
KENNELLING                    ,8440,FEE EXPENSES                  ,05/07/2013,3449339,2794/0041134             ,332.29,HALLAM VETERINARY CENTRE                ,443384,Environmental Services,VETERINARY SURGEONS & PRACTITI
KENNELLING                    ,8440,FEE EXPENSES                  ,05/07/2013,3449465,2794/0040118             ,327.57,HALLAM VETERINARY CENTRE                ,443384,Environmental Services,VETERINARY SURGEONS & PRACTITI
PERFORMANCE & RESEARCH        ,8620,COMPUTER SOFTWARE LICENCES    ,05/07/2013,3470466,SCC035                   ,300.00,FLUENT TECHNOLOGY LIMITED               ,492542,ICT,COMPUTER SYSTEMS & SOFTWARE (S
KENNELLING                    ,8440,FEE EXPENSES                  ,05/07/2013,3470863,2794/0043322             ,257.01,HALLAM VETERINARY CENTRE                ,443384,Environmental Services,VETERINARY SURGEONS & PRACTITI
TREE TEAM                     ,6370,GROUNDS MTCE AND ARBORICULTURE,05/07/2013,3471198,45,1445.00,J B HIBBERD LIMITED                     ,510434,Environmental Services,TREE WORK & FORESTRY SERVICES 
FOSTERING DEVELOPMENT         ,6280,HIRE OF PREMISES              ,05/07/2013,3471207,43253,300.00,LOCAL                                   ,299197,Unclassified Non Trade,COMMUNITY CENTRES             
ADOPTION SERVICE              ,8550,OTHER SERVICES                ,05/07/2013,3473633,46/13                    ,5000.00,CHRYSALIS ASSOCIATES LTD                ,520856,Medical ,PSYCHOLOGISTS                 
FOSTERING DEVELOPMENT         ,8230,HOSPITALITY                   ,05/07/2013,3475251,1307,295.00,HEALTHY EATING SOLUTIONS LTD            ,584283,Medical ,Dieticians & Nutritionists
SHORT BREAKS FUNDING FOR DISAB,9120,OTHER AGENCIES                ,05/07/2013,3476044,41446,8000.00,RAY OF HOPE                             ,385097,Unclassified Non Trade,CHARITIES & VOLUNTARY ORGANISA
SHARROW ALMO WORKS            ,1165,NC&A OTHER                    ,05/07/2013,3477137,12120040,55620.94,KIER SHEFFIELD LLP                      ,352687,Construction,PROPERTY MAINTENANCE & REPAIRS
EAST - BURNGREAVE             ,1157,DWELLINGS MAIN CONTRACT       ,05/07/2013,3477511,12120036,12370.00,KIER SHEFFIELD LLP                      ,352687,Construction,PROPERTY MAINTENANCE & REPAIRS
HEATING BREAKDOWNS            ,1157,DWELLINGS MAIN CONTRACT       ,05/07/2013,3477512,12120030,8370.00,KIER SHEFFIELD LLP                      ,352687,Construction,PROPERTY MAINTENANCE & REPAIRS
NORTH - NEW PARSON CROSS      ,1157,DWELLINGS MAIN CONTRACT       ,05/07/2013,3477513,12120035,39584.00,KIER SHEFFIELD LLP                      ,352687,Construction,PROPERTY MAINTENANCE & REPAIRS
SOUTH WEST - ABBEY BROOK      ,1157,DWELLINGS MAIN CONTRACT       ,05/07/2013,3477514,12120034,4948.00,KIER SHEFFIELD LLP                      ,352687,Construction,PROPERTY MAINTENANCE & REPAIRS
HEATING BREAKDOWNS            ,1157,DWELLINGS MAIN CONTRACT       ,05/07/2013,3477515,12120031,17318.00,KIER SHEFFIELD LLP                      ,352687,Construction,PROPERTY MAINTENANCE & REPAIRS
OBSOLETE HEATING              ,1157,DWELLINGS MAIN CONTRACT       ,05/07/2013,3477516,12120032,89284.00,KIER SHEFFIELD LLP                      ,352687,Construction,PROPERTY MAINTENANCE & REPAIRS
NEW HEATING INSTALLATIONS     ,1157,DWELLINGS MAIN CONTRACT       ,05/07/2013,3477517,12120033,5523.17,KIER SHEFFIELD LLP                      ,352687,Construction,PROPERTY MAINTENANCE & REPAIRS
SCHOOLS ACCESS INITIATIVE     ,1183,PURCHASE OF EQUIPMENT         ,05/07/2013,3478242,INV40118                 ,4710.00,HUMANWARE                               ,469073,Medical ,DISABILITY EQUIPMENT - MNFRS &
SURVEYS                       ,8460,CONSULTANTS FEES              ,05/07/2013,3478267,SLINV2/00048853          ,368.52,IOM CONSULTING LTD                      ,442538,Health and Safety,SAFETY CONSULTANTS            
SURVEYS                       ,8460,CONSULTANTS FEES              ,05/07/2013,3478270,SLINV2/00048855          ,257.52,IOM CONSULTING LTD                      ,442538,Health and Safety,SAFETY CONSULTANTS            
INTER AGENCY FEES             ,9120,OTHER AGENCIES                ,05/07/2013,3478330,9817,3583.00,CLIFTON CHILDREN'S SOCIETY              ,584369,Social Community Care,ADOPTION & FOSTERING          
INTER AGENCY FEES             ,9120,OTHER AGENCIES                ,05/07/2013,3478334,9810,28667.00,CLIFTON CHILDREN'S SOCIETY              ,584369,Social Community Care,ADOPTION & FOSTERING          
LOCALITY 2 SUPPORT STAFF      ,5610,AGENCY STAFF                  ,05/07/2013,3478402,29433,465.06,CITIZENSHIP FIRST                       ,329379,Unclassified Non Trade,CHARITIES & VOLUNTARY ORGANISA
LOCALITY 2 SUPPORT STAFF      ,5610,AGENCY STAFF                  ,05/07/2013,3478566,29432,862.72,CITIZENSHIP FIRST                       ,329379,Unclassified Non Trade,CHARITIES & VOLUNTARY ORGANISA
SURVEYS                       ,8460,CONSULTANTS FEES              ,05/07/2013,3478874,SLINV2/00048905          ,768.67,IOM CONSULTING LTD                      ,442538,Health and Safety,SAFETY CONSULTANTS            
PERFORMANCE & ANALYSIS        ,8240,CONFERENCE EXPENSES           ,05/07/2013,3479180,INV-09677                ,700.00,CAPITA CONFERENCES                      ,474665,Education,CAREER GUIDANCE SERVICES      
SHARROW ALMO WORKS            ,1165,NC&A OTHER                    ,05/07/2013,3479785,12120041,140287.95,KIER SHEFFIELD LLP                      ,352687,Construction,PROPERTY MAINTENANCE & REPAIRS
AREA CENTAL                   ,6370,GROUNDS MTCE AND ARBORICULTURE,05/07/2013,3480041,IN95987                  ,250.00,EGBERT H TAYLOR & CO LTD                ,204624,Construction,ENGINEERS - GENERAL           
DISADVANTAGED AREA FUNDING    ,5750,TRAINING EXPENDITURE          ,05/07/2013,3480043,ITFI03327                ,700.00,SHEFFIELD HALLAM UNIVERSITY             ,501783,Unclassified Non Trade,UNIVERSITIES & MEDICAL SCHOOLS
PARTNERSHIP INV AGREEMNT      ,9160,PARTNERSHIP CONTRACTS         ,05/07/2013,3480057,GFI001121011             ,39737.42,MAKING SPACE                            ,574625,Social Community Care,MENTAL HEALTH CENTRES         
SHORT BREAKS FUNDING FOR DISAB,9120,OTHER AGENCIES                ,05/07/2013,3480080,SNIPS008/13              ,313.37,STEPHEN HARRISON ACADEMY                ,479429,Leisure Services,"SNOOKER, BILLIARDS & POOL HALL"
SHORT BREAKS FUNDING FOR DISAB,9120,OTHER AGENCIES                ,05/07/2013,3480081,SNIPS0013/13             ,313.37,STEPHEN HARRISON ACADEMY                ,479429,Leisure Services,"SNOOKER, BILLIARDS & POOL HALL"
SHORT BREAKS FUNDING FOR DISAB,9120,OTHER AGENCIES                ,05/07/2013,3480082,SNIPS009/13              ,313.37,STEPHEN HARRISON ACADEMY                ,479429,Leisure Services,"SNOOKER, BILLIARDS & POOL HALL"
SHORT BREAKS FUNDING FOR DISAB,9120,OTHER AGENCIES                ,05/07/2013,3480083,SNIPS0014/13             ,313.37,STEPHEN HARRISON ACADEMY                ,479429,Leisure Services,"SNOOKER, BILLIARDS & POOL HALL"
SHORT BREAKS FUNDING FOR DISAB,9120,OTHER AGENCIES                ,05/07/2013,3480084,SNIPS0010/13             ,313.37,STEPHEN HARRISON ACADEMY                ,479429,Leisure Services,"SNOOKER, BILLIARDS & POOL HALL"
SHORT BREAKS FUNDING FOR DISAB,9120,OTHER AGENCIES                ,05/07/2013,3480085,SNIPS0011/13             ,313.37,STEPHEN HARRISON ACADEMY                ,479429,Leisure Services,"SNOOKER, BILLIARDS & POOL HALL"
PARKS OPS EAST & NORTH EAST   ,8010,EQUIPMENT PURCHASE AND REPAIR ,05/07/2013,3480098,SIN352174                ,1820.00,SEDDONS (PLANT & ENGINEERS) LTD         ,533323,Construction,ENGINEERS - GENERAL           
INCOME MANAGEMENT             ,8230,HOSPITALITY                   ,05/07/2013,3480546,21053,458.00,CHARITY GIFT VOUCHER MARKETING LTD      ,427858,Unclassified Non Trade,CHARITIES & VOLUNTARY ORGANISA
CRYSTAL PEAKS                 ,8060,MATERIALS AND SUPPLIES GENERAL,05/07/2013,3480664,4465574470,1625.00,KALON PLC                               ,308737,Building Construction Materials,PAINT MNFRS                   
PARTNERSHIP INV AGREEMNT      ,9160,PARTNERSHIP CONTRACTS         ,05/07/2013,3480755,GFI001121010             ,39737.42,MAKING SPACE                            ,574625,Social Community Care,MENTAL HEALTH CENTRES         
SUPPORT FOR HIV PATIENTS      ,9030,HEALTH                        ,05/07/2013,3480862,41388,656.50,SHIELD HIV SUPPORT                      ,580728,Unclassified Non Trade,PUBLIC HEALTH SUPPLIERS       
HEALTH TRAINERS               ,9030,HEALTH                        ,05/07/2013,3480866,SOARCO/1021              ,4395.00,SOAR COMMUNITY                          ,581261,Unclassified Non Trade,PUBLIC HEALTH SUPPLIERS       
OLDER PERSONS LIVING          ,8010,EQUIPMENT PURCHASE AND REPAIR ,05/07/2013,3480874,T00014507                ,393.30,TEAL FURNITURE LIMITED                  ,482632,Furniture,CONTRACT FURNISHERS           
GOING LOCAL                   ,8560,TPB SOUTH EAST                ,05/07/2013,3480884,00109/2013               ,1390.00,VIPAUK LTD                              ,563900,Facilities Management,CCTV & VIDEO EQUIPMENT        
MINIBUSES - SHEFFTAX TENDERED ,7060,EXTERNAL VEHICLE HIRE         ,05/07/2013,3480896,1126,35046.80,SHEFFIELD TAXI SERVICES LTD             ,208407,Transport,TAXIS & PRIVATE HIRE          
SCHOOLS ACCESS INITIATIVE     ,1183,PURCHASE OF EQUIPMENT         ,05/07/2013,3480935,2013568,375.00,MOUNTS & MORE                           ,487237,Medical ,MOBILITY EQUIPMENT            
BOOKS & OTHER MATERIALS       ,8080,LIBRARY MATERIALS             ,05/07/2013,3481053,1751989,809.10,BERTRAM LIBRARY SERVICES                ,418929,Education,EDUCATIONAL EQUIPMENT & SUPPLI
BOOKS & OTHER MATERIALS       ,8080,LIBRARY MATERIALS             ,05/07/2013,3481056,1750578,418.22,BERTRAM LIBRARY SERVICES                ,418929,Education,EDUCATIONAL EQUIPMENT & SUPPLI
HEATING BREAKDOWNS            ,1157,DWELLINGS MAIN CONTRACT       ,05/07/2013,3481060,12120126,2790.00,KIER SHEFFIELD LLP                      ,352687,Construction,PROPERTY MAINTENANCE & REPAIRS
SOUTH EAST (SH)               ,1157,DWELLINGS MAIN CONTRACT       ,05/07/2013,3481061,12120131,2474.00,KIER SHEFFIELD LLP                      ,352687,Construction,PROPERTY MAINTENANCE & REPAIRS
HEATING BREAKDOWNS            ,1157,DWELLINGS MAIN CONTRACT       ,05/07/2013,3481062,12120127,32834.55,KIER SHEFFIELD LLP                      ,352687,Construction,PROPERTY MAINTENANCE & REPAIRS
TRANSPORT FLEET MANAGEMENT    ,8020,EQUIPMENT LEASE/ RENTAL/ HIRE ,05/07/2013,3481063,1665,1800.00,TRISCAN SYSTEMS LIMITED                 ,459710,Unclassified Trade,ELECTRONIC COMPONENT MNFRS & D
OBSOLETE HEATING              ,1157,DWELLINGS MAIN CONTRACT       ,05/07/2013,3481064,12120129,144086.85,KIER SHEFFIELD LLP                      ,352687,Construction,PROPERTY MAINTENANCE & REPAIRS
NEW HEATING INSTALLATIONS     ,1157,DWELLINGS MAIN CONTRACT       ,05/07/2013,3481065,12120130,7103.07,KIER SHEFFIELD LLP                      ,352687,Construction,PROPERTY MAINTENANCE & REPAIRS
OBSOLETE HEATING              ,1157,DWELLINGS MAIN CONTRACT       ,05/07/2013,3481066,12120128,605.65,KIER SHEFFIELD LLP                      ,352687,Construction,PROPERTY MAINTENANCE & REPAIRS
BOOKS & OTHER MATERIALS       ,8080,LIBRARY MATERIALS             ,05/07/2013,3481212,1748245,340.76,BERTRAM LIBRARY SERVICES                ,418929,Education,EDUCATIONAL EQUIPMENT & SUPPLI
BOOKS & OTHER MATERIALS       ,8080,LIBRARY MATERIALS             ,05/07/2013,3481214,1757025,507.17,BERTRAM LIBRARY SERVICES                ,418929,Education,EDUCATIONAL EQUIPMENT & SUPPLI
EAST - BURNGREAVE             ,1157,DWELLINGS MAIN CONTRACT       ,05/07/2013,3481239,12120133,16555.00,KIER SHEFFIELD LLP                      ,352687,Construction,PROPERTY MAINTENANCE & REPAIRS
NORTH - NEW PARSON CROSS      ,1157,DWELLINGS MAIN CONTRACT       ,05/07/2013,3481240,12120132,43374.20,KIER SHEFFIELD LLP                      ,352687,Construction,PROPERTY MAINTENANCE & REPAIRS
BOOKS & OTHER MATERIALS       ,8080,MEDIA                         ,05/07/2013,3481242,1756431,1290.52,BERTRAM LIBRARY SERVICES                ,418929,Education,EDUCATIONAL EQUIPMENT & SUPPLI
BOOKS & OTHER MATERIALS       ,8080,LIBRARY MATERIALS             ,05/07/2013,3481246,1750434,974.92,BERTRAM LIBRARY SERVICES                ,418929,Education,EDUCATIONAL EQUIPMENT & SUPPLI
FOOD HYGIENE                  ,5750,TRAINING EXPENDITURE          ,05/07/2013,3481251,71,497.00,THE NATIONAL SOCIAL MARKETING CENTRE CIC,578974,Facilities Management,MARKETING CONSULTANTS & SERVIC
BOOKS & OTHER MATERIALS       ,8080,LIBRARY MATERIALS             ,05/07/2013,3481319,1752946,257.13,BERTRAM LIBRARY SERVICES                ,418929,Education,EDUCATIONAL EQUIPMENT & SUPPLI
BOOKS & OTHER MATERIALS       ,8080,LIBRARY MATERIALS             ,05/07/2013,3481320,1751665,563.87,BERTRAM LIBRARY SERVICES                ,418929,Education,EDUCATIONAL EQUIPMENT & SUPPLI
MFDS                          ,8370,MFD CHARGES                   ,05/07/2013,3481241,1108354033,9784.79,KONICA MINOLTA BUSINESS SOLUTIONS EAST  ,206267,ICT,OFFICE EQUIPMENT MNFRS & DISTR
MFDS                          ,8370,MFD CHARGES                   ,05/07/2013,3481243,1108353594,3155.40,KONICA MINOLTA BUSINESS SOLUTIONS EAST  ,206267,ICT,OFFICE EQUIPMENT MNFRS & DISTR
MFDS                          ,8370,MFD CHARGES                   ,05/07/2013,3481245,1108352528,758.33,KONICA MINOLTA BUSINESS SOLUTIONS EAST  ,206267,ICT,OFFICE EQUIPMENT MNFRS & DISTR
MFDS                          ,8370,MFD CHARGES                   ,05/07/2013,3481248,1108352288,443.02,KONICA MINOLTA BUSINESS SOLUTIONS EAST  ,206267,ICT,OFFICE EQUIPMENT MNFRS & DISTR
MFDS                          ,8370,MFD CHARGES                   ,05/07/2013,3481250,1108116941,956.59,KONICA MINOLTA BUSINESS SOLUTIONS EAST  ,206267,ICT,OFFICE EQUIPMENT MNFRS & DISTR
PURCHASING LEARNING DISABILITI,9180,OTHER CLIENT EXPENDITURE      ,05/07/2013,3481070,J640972 070713           ,419.26,REDACTED PERSONAL DATA,332448,Social Community Care,HOME CARE SERVICES            
PURCHASING LEARNING DISABILITI,9180,OTHER CLIENT EXPENDITURE      ,05/07/2013,3481075,J640977 070713           ,433.12,REDACTED PERSONAL DATA,328070,Social Community Care,HOME CARE SERVICES            
PURCHASING LEARNING DISABILITI,9180,OTHER CLIENT EXPENDITURE      ,05/07/2013,3481077,J640979 070713           ,419.26,REDACTED PERSONAL DATA,408112,Social Community Care,HOME CARE SERVICES            
PURCHASING LEARNING DISABILITI,9180,OTHER CLIENT EXPENDITURE      ,05/07/2013,3481082,J640984 070713           ,433.12,REDACTED PERSONAL DATA,369406,Social Community Care,HOME CARE SERVICES            
ADULT SOCIAL CARE PURCHASING  ,9190,DIRECT PAYMENTS               ,05/07/2013,3481130,J646636                  ,5199.58,REDACTED PERSONAL DATA,582806,Social Community Care,CAREFIRST DIRECT PAYMENTS     
PDSI PURCHASING               ,9190,DIRECT PAYMENTS               ,05/07/2013,3481131,J646636                  ,6941.53,REDACTED PERSONAL DATA,584253,Social Community Care,CAREFIRST DIRECT PAYMENTS     
ADULT SOCIAL CARE PURCHASING  ,9190,SUPPORT PLANNING COSTS        ,05/07/2013,3481132,J646637                  ,295.00,AGE UK                                  ,568628,Social Community Care,CAREFIRST DIRECT PAYMENTS     
PURCHASING LEARNING DISABILITI,9190,DIRECT PAYMENTS               ,05/07/2013,3481134,J646636                  ,3836.57,A4E                                     ,547567,Human Resources,TRAINING SERVICES             
PURCHASING                    ,9190,DIRECT PAYMENTS               ,05/07/2013,3481134,J646636                  ,4207.71,A4E                                     ,547567,Human Resources,TRAINING SERVICES             
ADULT SOCIAL CARE PURCHASING  ,9190,DIRECT PAYMENTS               ,05/07/2013,3481135,J646636                  ,2642.62,REDACTED PERSONAL DATA,549235,Social Community Care,CAREFIRST DIRECT PAYMENTS     
PURCHASING                    ,4260,DIRECT PAYMENTS               ,05/07/2013,3481136,J646636                  ,355.16,SHEFFIELD MIND                          ,556296,Social Community Care,CAREFIRST DIRECT PAYMENTS     
PURCHASING                    ,9190,DIRECT PAYMENTS               ,05/07/2013,3481136,J646636                  ,4263.06,SHEFFIELD MIND                          ,556296,Social Community Care,CAREFIRST DIRECT PAYMENTS     
PURCHASING LEARNING DISABILITI,9190,DIRECT PAYMENTS               ,05/07/2013,3481137,J646636                  ,2047.18,AUTISM PLUS                             ,557461,Social Community Care,CAREFIRST DIRECT PAYMENTS     
PURCHASING LEARNING DISABILITI,9190,DIRECT PAYMENTS               ,05/07/2013,3481138,J646636                  ,3133.70,SPECTRUM SOCIAL CARE                    ,557844,Social Community Care,CAREFIRST DIRECT PAYMENTS     
ADULT SOCIAL CARE PURCHASING  ,9190,DIRECT PAYMENTS               ,05/07/2013,3481139,J646636                  ,569.53,IDK SUPPORT 4 YOU LTD - SUPPORT PLANNING,562178,Social Community Care,CAREFIRST DIRECT PAYMENTS     
ADULT SOCIAL CARE PURCHASING  ,9190,DIRECT PAYMENTS               ,05/07/2013,3481140,J646636                  ,2705.06,NOMAD OPENING DOORS                     ,568571,Social Community Care,HOME SUPPORT SERVICES         
PURCHASING LEARNING DISABILITI,9190,DIRECT PAYMENTS               ,05/07/2013,3481141,J646636                  ,4854.86,REDACTED PERSONAL DATA,581546,Social Community Care,CAREFIRST DIRECT PAYMENTS     
DRUG & ALCOHOL MH -PURCHASING ,9250,INDEPENDENT DAY CARE          ,05/07/2013,3481142,1202255,1965.00,PHOENIX HOUSE (BEXHILL)                 ,361847,Medical ,DRUG MISUSE - ADVICE & COUNSEL
DRUG & ALCOHOL MH -PURCHASING ,9250,INDEPENDENT DAY CARE          ,05/07/2013,3481143,1202604,524.00,PHOENIX HOUSE (BEXHILL)                 ,361847,Medical ,DRUG MISUSE - ADVICE & COUNSEL
DRUG & ALCOHOL MH -PURCHASING ,9250,INDEPENDENT DAY CARE          ,05/07/2013,3481155,1204253,484.00,PHOENIX HOUSE (BEXHILL)                 ,361847,Medical ,DRUG MISUSE - ADVICE & COUNSEL
PURCHASING LEARNING DISABILITI,9190,CITYWIDE SPOT                 ,05/07/2013,3481158,SMM14089                 ,710.50,UNITED RESPONSE                         ,329604,Unclassified Non Trade,CHARITIES & VOLUNTARY ORGANISA
PURCHASING LEARNING DISABILITI,9190,CITYWIDE SPOT                 ,05/07/2013,3481159,1766663,354.58,RANDSTAD CARE LTD                       ,329324,Human Resources,EMPLOYMENT & RECRUITMENT AGENC
PURCHASING                    ,9230,CCSP FURNITURE STORAGE        ,05/07/2013,3481162,229547,266.00,A B CASTLE LTD                          ,202563,Transport,REMOVALS & STORAGE - HOUSEHOLD
PURCHASING LEARNING DISABILITI,9230,CCSP OTHER                    ,05/07/2013,3481163,732,810.00,NEWFIELD VIEW SUPPORTED LIVING LTD      ,487359,Social Community Care,DISABILITY & SPECIAL NEEDS - S
ADULT SOCIAL CARE PURCHASING  ,9190,CITYWIDE SPOT                 ,05/07/2013,3481165,75282,1455.36,SCOPE(ROTHERHAM DAY SERVICE)            ,361950,Unclassified Non Trade,CHARITIES & VOLUNTARY ORGANISA
PURCHASING LEARNING DISABILITI,9190,CITYWIDE SPOT                 ,05/07/2013,3481166,8473DL                   ,3606.88,NEW ERA HOUSING AUTHORITY               ,505956,Unclassified Non Trade,"HOUSING ASSOCIATIONS, SOCIETIE"
LEAVING CARE                  ,9270,CARELEAVERS ACCOMMODATION     ,05/07/2013,3481112,333,7301.00,PATHWAY 2 PROGRESS                      ,540030,Social Community Care,RESIDENTIAL CARE HOMES        
UASC/ASYLUM - LEAVING CARE    ,9440,LOOKED AFTER CHILDREN         ,05/07/2013,3481113,3SE50383B                ,750.00,ANDREW SHARLAND                         ,583441,Legal Services,BARRISTERS                    
LEAVING CARE                  ,9270,CARELEAVERS ACCOMMODATION     ,05/07/2013,3481114,5889,3200.00,PROGRESSIVE CARE LTD                    ,343548,Social Community Care,CHILDREN'S HOMES              
INDEPENDENT RES BLOCK PLACEMEN,9270,INDEPENDENT RESIDENTIAL PMENT ,05/07/2013,3481115,5963,1950.16,PROGRESSIVE CARE LTD                    ,343548,Social Community Care,CHILDREN'S HOMES              
LEAVING CARE                  ,9270,CARELEAVERS ACCOMMODATION     ,05/07/2013,3481116,AC/SHEF/024              ,1600.00,FIRSTPOINT SUPPORTED LIVING             ,575497,Social Community Care,HOME SUPPORT SERVICES         
TRANSITIONS                   ,9270,CARELEAVERS INDEPENDENT LIVING,05/07/2013,3481117,225343759,727.09,R M S PAYROLL MANAGEMENT LTD            ,478856,Financial Services,PAYROLL SERVICES              
NORTH SA - LAC                ,9440,LOOKED AFTER CHILDREN         ,05/07/2013,3481125,51/13                    ,2400.00,CHRYSALIS ASSOCIATES LTD                ,520856,Medical ,PSYCHOLOGISTS                 
ADULT SOCIAL CARE PURCHASING  ,9200,CONTINUING RESIDENTIAL CARE   ,05/07/2013,3481093,J646639 210713           ,1692.86,LEAHYRST RESIDENTIAL CARE HOME          ,361842,Social Community Care,RESIDENTIAL CARE HOMES        
ADULT SOCIAL CARE PURCHASING  ,9210,CONTINUING NURSING CARE       ,05/07/2013,3481094,J646640 210713           ,14105.00,EAGLE HOUSE CARE HOME                   ,361977,Social Community Care,RESIDENTIAL CARE HOMES        
ADULT SOCIAL CARE PURCHASING  ,9210,CONTINUING NURSING CARE       ,05/07/2013,3481095,J646642 210713           ,7820.00,WESTBOURNE HOUSE                        ,362111,Social Community Care,NURSING HOMES                 
ADULT SOCIAL CARE PURCHASING  ,9210,CONTINUING NURSING CARE       ,05/07/2013,3481096,J646643 210713           ,1423.91,CRAEGMOOR  - RICHMOND HEIGHTS           ,361933,Social Community Care,NURSING HOMES                 
ADULT SOCIAL CARE PURCHASING  ,9200,CONTINUING RESIDENTIAL CARE   ,05/07/2013,3481097,J646645 210713           ,6647.00,ROSEBERRY CARE CENTRES GB LTD           ,361953,Social Community Care,NURSING HOMES                 
ADULT SOCIAL CARE PURCHASING  ,9200,CONTINUING RESIDENTIAL CARE   ,05/07/2013,3481098,J637275 210713           ,37708.57,MIDHURST ROAD                           ,361801,Social Community Care,RESIDENTIAL CARE HOMES        
